DEPARTMENT,NOMINAL,TYPE OF EXPENDITURE,DESCRIPTION,PERIOD,YEARCODE,VALUE,ECFRS Ref,INVOICE DATE,DOCUMENT TYPE,SUPPLIER,Type
Purchases,B207,Stocks & WIP (Fleet Stores),CONTRACTOR,04,2019,411.91,525,28/06/2018,TMEX,INTELLITEC MV LIMITED,
Purchases,B207,Stocks & WIP (Fleet Stores),SHELL TELLUS,04,2019,457.00,526,27/06/2018,TMEX,ONLINE LUBRICANTS LTD,
Purchases,B207,Stocks & WIP (Fleet Stores),AIR BOX,04,2019,38.37,527,28/06/2018,TMEX,FISCHER PANDA UK LIMITED,
Purchases,B207,Stocks & WIP (Fleet Stores),TRUCK WASH,04,2019,748.00,528,30/06/2018,TMEX,W J SERVICES,
Purchases,B207,Stocks & WIP (Fleet Stores),NUT,04,2019,15.30,529,29/06/2018,TMEX,SOUTH ESSEX FASTENERS LTD,
Purchases,B207,Stocks & WIP (Fleet Stores),VARIOUS,04,2019,46.23,530,08/06/2018,TMEX,SOUTH ESSEX FASTENERS LTD,
Purchases,B207,Stocks & WIP (Fleet Stores),SPEED LIMITER,04,2019,175.00,531,04/06/2018,TMEX,TRUCKEAST LTD,
Purchases,B207,Stocks & WIP (Fleet Stores),RE TMEX 531,04,2019,-350.00,532,04/06/2018,TMEX,TRUCKEAST LTD,
Purchases,B207,Stocks & WIP (Fleet Stores),V-BELT,04,2019,-9.68,533,24/04/2018,TMEX,JOHN GROSE GROUP LTD,
Technical Services,2085,Breathing Apparatus,valve service kits,04,2019,5150.00,534,18/06/2018,TMEX,CYLINDER TESTING & SALES UK LTD,
Purchases,B207,Stocks & WIP (Fleet Stores),OIL,04,2019,68.96,535,02/07/2018,TMEX,MOTOR PARTS DIRECT,
Technical Services,2085,Breathing Apparatus,RE TMPI 7352,04,2019,-10.00,536,19/06/2018,TMEX,INTERSPIRO LTD,
Technical Services,2085,Breathing Apparatus,RE TMPI 7452,04,2019,-121.44,537,28/06/2018,TMEX,WEBER RESCUE UK LTD,
Technical Services,2085,Breathing Apparatus,RE TMPI 7452,04,2019,-17.00,538,03/07/2018,TMEX,WEBER RESCUE UK LTD,
Purchases,B207,Stocks & WIP (Fleet Stores),VARIOUS,04,2019,69.95,539,04/07/2018,TMEX,MOTOR PARTS DIRECT,
Purchases,B207,Stocks & WIP (Fleet Stores),VARIOUS,04,2019,134.79,540,05/07/2018,TMEX,GODIVA LTD,
Purchases,B207,Stocks & WIP (Fleet Stores),VARIOUS,04,2019,325.37,541,05/07/2018,TMEX,WOODWAY ENGINEERING LTD,
Technical Services,2085,Breathing Apparatus,TEST/VALVE,04,2019,667.00,542,28/06/2018,TMEX,CYLINDER TESTING & SALES UK LTD,
Technical Services,2085,Breathing Apparatus,TEST/PAINT,04,2019,15.00,543,28/06/2018,TMEX,CYLINDER TESTING & SALES UK LTD,
Purchases,B207,Stocks & WIP (Fleet Stores),VARIOUS,04,2019,113.22,544,09/07/2018,TMEX,TRUCKEAST LTD,
Purchases,B207,Stocks & WIP (Fleet Stores),VARIOUS,04,2019,70.21,545,09/07/2018,TMEX,JOHN GROSE GROUP LTD,
Workshops Management,3201,Petrol and Diesel,Petrol and Diesel,04,2019,209.70,546,10/07/2018,TMEX,MOTOR PARTS DIRECT,
Purchases,B207,Stocks & WIP (Fleet Stores),VARIOUS,04,2019,171.07,547,11/07/2018,TMEX,TRUCKEAST LTD,
Technical Services,2085,Breathing Apparatus,"Breathing valve, M16 thread, f",04,2019,-480.00,548,19/06/2018,TMEX,INTERSPIRO LTD,
Technical Services,2085,Breathing Apparatus,RE TMPI 7352,04,2019,490.00,549,19/06/2018,TMEX,INTERSPIRO LTD,
Purchases,B207,Stocks & WIP (Fleet Stores),VARIOUS ITEMS TMPI 7531,04,2019,286.13,550,09/07/2018,TMEX,HOLMATRO UK LIMITED,
Purchases,B207,Stocks & WIP (Fleet Stores),VARIOUS ITEM TMPI7538,04,2019,87.50,551,22/06/2018,TMEX,ERNEST DOE & SONS LTD,
Purchases,B207,Stocks & WIP (Fleet Stores),VARIOUS ITEMS TMPI7549,04,2019,116.20,552,12/07/2018,TMEX,TRUCKEAST LTD,
Purchases,B207,Stocks & WIP (Fleet Stores),VARIOUS TMPI 7574,04,2019,3.68,553,16/07/2018,TMEX,SOUTH ESSEX FASTENERS LTD,
Purchases,B207,Stocks & WIP (Fleet Stores),VARIOUS TMPI 7585,04,2019,20.35,554,13/07/2018,TMEX,SOUTH ESSEX FASTENERS LTD,
Purchases,B207,Stocks & WIP (Fleet Stores),VARIOUS ITEMS TMPI 7598,04,2019,383.88,555,13/07/2018,TMEX,TRUCKEAST LTD,
Purchases,B207,Stocks & WIP (Fleet Stores),VARIOUS ITEMS TMPI 7600,04,2019,66.09,556,17/07/2018,TMEX,TRUCKEAST LTD,
Purchases,B207,Stocks & WIP (Fleet Stores),VARIOUS ITEMS TMPI 7165,04,2019,60.30,557,18/07/2018,TMEX,MOTOR PARTS DIRECT,
Workshops Management,3201,Petrol and Diesel,Petrol and Diesel,04,2019,209.70,558,19/07/2018,TMEX,MOTOR PARTS DIRECT,
Purchases,B207,Stocks & WIP (Fleet Stores),VARIOUS,04,2019,226.43,559,13/07/2018,TMEX,ATS EUROMASTER LIMITED,
Purchases,B207,Stocks & WIP (Fleet Stores),KIT,04,2019,312.38,560,23/07/2018,TMEX,TRUCKEAST LTD,
Purchases,B207,Stocks & WIP (Fleet Stores),VARIOUS,04,2019,140.14,561,20/07/2018,TMEX,JOHN GROSE GROUP LTD,
Purchasing & Supply,2303,Clothing & Footwear,VARIOUS,04,2019,44.75,562,25/07/2018,TMEX,SIBBONS (ALRESFORD) LTD,
Purchases,B207,Stocks & WIP (Fleet Stores),SOCKET SCREW,04,2019,12.82,563,25/07/2018,TMEX,SOUTH ESSEX FASTENERS LTD,
Stores,B205,Stocks & WIP (Purchasing & Supply Stores),ADD'L VAT DUE ON EARLIER INV'S,04,2019,173.66,4354,21/09/2017,KPIN,KASHKET & PARTNERS LIMITED,
Workshop Engineering,3404,Vehicle Spares,OIL FILTER,04,2019,4.60,7435,02/07/2018,TMPI,JOHN GROSE GROUP LTD,
Workshop Engineering,3404,Vehicle Spares,TUBING,04,2019,27.51,7436,02/07/2018,TMPI,MOTOR PARTS DIRECT,
Workshop Engineering,3404,Vehicle Spares,TUBELESS VALVE,04,2019,6.20,7437,12/06/2018,TMPI,ATS EUROMASTER LIMITED,
Workshop Engineering,3404,Vehicle Spares,HP CAP,04,2019,0.62,7437,12/06/2018,TMPI,ATS EUROMASTER LIMITED,
Workshop Engineering,3404,Vehicle Spares,VALVE EXTENTION,04,2019,6.20,7437,12/06/2018,TMPI,ATS EUROMASTER LIMITED,
Workshop Engineering,3404,Vehicle Spares,OUT OF HOURS RESPONCE,04,2019,35.43,7437,12/06/2018,TMPI,ATS EUROMASTER LIMITED,
Workshop Engineering,3404,Vehicle Spares,HEAD GASKET KIT,04,2019,206.26,7438,29/06/2018,TMPI,NORFOLK TRUCK & VAN LTD,
Workshop Engineering,3404,Vehicle Spares,CARRIAGE CHARGE,04,2019,12.00,7439,26/06/2018,TMPI,E RAND AND SONS LTD,
Workshop Engineering,3404,Vehicle Spares,PTO Pressure Switch - PARKER,04,2019,95.00,7439,26/06/2018,TMPI,E RAND AND SONS LTD,
Workshop Engineering,3404,Vehicle Spares,CARRIAGE CHARGE,04,2019,8.95,7440,26/06/2018,TMPI,ANGLO NET LTD,
Workshop Engineering,3404,Vehicle Spares,EVAPOWAY SOLVENT DE GREASER,04,2019,102.48,7440,26/06/2018,TMPI,ANGLO NET LTD,
Workshop Engineering,3404,Vehicle Spares,EVAPOWAY SOLVENT DE GREASER,04,2019,102.48,7440,26/06/2018,TMPI,ANGLO NET LTD,
Workshop Engineering,3404,Vehicle Spares,PTO - SOLENOID WIRING HARNESS,04,2019,166.06,7441,26/06/2018,TMPI,E RAND AND SONS LTD,
Workshop Engineering,3404,Vehicle Spares,CARRIAGE CHARGE,04,2019,12.00,7441,26/06/2018,TMPI,E RAND AND SONS LTD,
Workshop Engineering,3404,Vehicle Spares,8MM ELBOW ATTACHMENT,04,2019,14.55,7442,27/06/2018,TMPI,GODIVA LTD,
Workshop Engineering,3404,Vehicle Spares,PRESSURE SWITCH FOR BODY LOCK,04,2019,42.89,7443,27/06/2018,TMPI,JOHN DENNIS COACHBUILDERS LTD,
Workshop Engineering,3404,Vehicle Spares,BODY LOCK VALVE - ALSO REQUIRE,04,2019,42.89,7443,27/06/2018,TMPI,JOHN DENNIS COACHBUILDERS LTD,
Workshop Engineering,3404,Vehicle Spares,CARRIAGE CHARGE,04,2019,15.00,7443,27/06/2018,TMPI,JOHN DENNIS COACHBUILDERS LTD,
Workshop Engineering,3404,Vehicle Spares,TAPE INSULATING BLACK (CARD 12,04,2019,21.36,7444,29/06/2018,TMPI,MOTOR PARTS DIRECT,
Workshop Engineering,3404,Vehicle Spares,MIRROR CASING,04,2019,23.62,7445,29/06/2018,TMPI,LOOKERS FORD,
Workshop Engineering,3404,Vehicle Spares,MIRROR,04,2019,89.65,7446,29/06/2018,TMPI,LOOKERS FORD,
Workshop Engineering,3404,Vehicle Spares,"4"" X 2"" X 1/8"" ALUMINIUM ANGLE",04,2019,106.66,7449,11/06/2018,TMPI,SOUTH ESSEX FASTENERS LTD,
Technical Services,2085,Breathing Apparatus,Controller Joystick Complete,04,2019,151.80,7452,14/06/2018,TMPI,WEBER RESCUE UK LTD,
Technical Services,2085,Breathing Apparatus,3/8 UNF Threaded with 8mm Tail,04,2019,20.50,7452,14/06/2018,TMPI,WEBER RESCUE UK LTD,
Technical Services,2085,Breathing Apparatus,Carriage Charge,04,2019,21.50,7452,14/06/2018,TMPI,WEBER RESCUE UK LTD,
Workshop Engineering,3404,Vehicle Spares,FIT C;O;P,04,2019,20.00,7454,26/06/2018,TMPI,ATS EUROMASTER LIMITED,
Workshop Engineering,3404,Vehicle Spares,HP CAP,04,2019,0.62,7454,26/06/2018,TMPI,ATS EUROMASTER LIMITED,
Workshop Engineering,3404,Vehicle Spares,HP CAP,04,2019,0.62,7455,26/06/2018,TMPI,ATS EUROMASTER LIMITED,
Workshop Engineering,3404,Vehicle Spares,MINOR REPAIR,04,2019,32.86,7455,26/06/2018,TMPI,ATS EUROMASTER LIMITED,
Workshop Engineering,3404,Vehicle Spares,OIL FILTER - AY13;AVG ( AMBULA,04,2019,5.84,7456,21/05/2018,TMPI,MOTOR PARTS DIRECT,
Workshop Engineering,3404,Vehicle Spares,FUEL FILTER,04,2019,12.70,7456,21/05/2018,TMPI,MOTOR PARTS DIRECT,
Workshop Engineering,3404,Vehicle Spares,ENGINE OIL - 1LTR ( 0W-30 ),04,2019,8.82,7456,21/05/2018,TMPI,MOTOR PARTS DIRECT,
Workshop Engineering,3404,Vehicle Spares,AIR FILTER,04,2019,12.48,7456,21/05/2018,TMPI,MOTOR PARTS DIRECT,
Workshop Engineering,3404,Vehicle Spares,POLLEN FILTER,04,2019,12.57,7456,21/05/2018,TMPI,MOTOR PARTS DIRECT,
Workshop Engineering,3404,Vehicle Spares,ENGINE OIL - 5LTR ( 0W-30 ),04,2019,34.57,7456,21/05/2018,TMPI,MOTOR PARTS DIRECT,
Workshop Engineering,2070,Tools & Light Equipment,DIGITAL THERMOMETER,04,2019,4.80,7457,25/06/2018,TMPI,MOTOR PARTS DIRECT,
Workshop Engineering,2070,Tools & Light Equipment,DIGITAL THERMOMETER,04,2019,-4.80,7458,25/06/2018,TMPI,MOTOR PARTS DIRECT,
Workshop Engineering,3404,Vehicle Spares,WHEEL TRIM COVER,04,2019,18.12,7459,03/07/2018,TMPI,JOHN GROSE GROUP LTD,
Workshop Engineering,3404,Vehicle Spares,TALEGATE LATCH,04,2019,70.44,7460,03/07/2018,TMPI,LOOKERS LANDROVER,
Workshop Engineering,2070,Tools & Light Equipment,TORCH - WORKLAMP,04,2019,99.96,7461,02/07/2018,TMPI,JOHN GROSE GROUP LTD,
Workshop Engineering,3404,Vehicle Spares,PLATINUM PRESTIGE BATTERYS - 0,04,2019,196.12,7462,03/07/2018,TMPI,MOTOR PARTS DIRECT,
Workshop Engineering,3404,Vehicle Spares,N/S/R INNER ARCH,04,2019,-274.31,7463,03/07/2018,TMPI,NORFOLK TRUCK & VAN LTD,
Workshop Engineering,3404,Vehicle Spares,VENTILATION PIPE,04,2019,17.58,7464,06/07/2018,TMPI,TRUCKEAST LTD,
Workshop Engineering,3404,Vehicle Spares,COUPLING,04,2019,3.85,7464,06/07/2018,TMPI,TRUCKEAST LTD,
Workshop Engineering,3404,Vehicle Spares,SEAL,04,2019,5.56,7464,06/07/2018,TMPI,TRUCKEAST LTD,
Workshop Engineering,3404,Vehicle Spares,AIR VALVE ASSY,04,2019,113.90,7465,05/07/2018,TMPI,TRUCKEAST LTD,
Workshop Engineering,3404,Vehicle Spares,AIR FILTER - SCANIA,04,2019,41.49,7466,04/07/2018,TMPI,CENTRAL TRUCK AND BUS PARTS LTD,
Workshop Engineering,3404,Vehicle Spares,AIR FILTER - SCANIA,04,2019,41.49,7467,03/07/2018,TMPI,CENTRAL TRUCK AND BUS PARTS LTD,
Workshop Engineering,3404,Vehicle Spares,N/S MIRROR ASSY C/W WIDE ANGLE,04,2019,95.00,7467,03/07/2018,TMPI,CENTRAL TRUCK AND BUS PARTS LTD,
Workshop Engineering,3404,Vehicle Spares,FIXED MONTHLY WASTE FEE - JUNE,04,2019,26.04,7468,27/06/2018,TMPI,MORELLI GROUP LTD,
Workshop Engineering,3404,Vehicle Spares,CYLINDER HEAD BOLTS,04,2019,2.98,7469,02/07/2018,TMPI,NORFOLK TRUCK & VAN LTD,
Workshop Engineering,3404,Vehicle Spares,CYLINDER HEAD BOLTS,04,2019,25.40,7470,03/07/2018,TMPI,NORFOLK TRUCK & VAN LTD,
Workshop Engineering,3404,Vehicle Spares,CYLINDER HEAD BOLTS,04,2019,42.96,7470,03/07/2018,TMPI,NORFOLK TRUCK & VAN LTD,
Workshop Engineering,3404,Vehicle Spares,CYLINDER HEAD BOLTS,04,2019,15.08,7470,03/07/2018,TMPI,NORFOLK TRUCK & VAN LTD,
Workshop Engineering,3404,Vehicle Spares,PROWORX ELITE BODY FILLER,04,2019,12.00,7472,04/07/2018,TMPI,HALSTEAD REFINISHING SUPPLIES LTD,
Workshop Engineering,3404,Vehicle Spares,0;25LTR PAINT TO PATTERN - MOO,04,2019,12.56,7472,04/07/2018,TMPI,HALSTEAD REFINISHING SUPPLIES LTD,
Workshop Engineering,2070,Tools & Light Equipment,GAS BOTTLE ADAPTOR,04,2019,3.66,7473,04/07/2018,TMPI,JAYAR CAR PARTS,
Purchasing & Supply,2303,Clothing & Footwear,MEDIUM NITRILE GLOVES POWDER F,04,2019,85.20,7474,28/06/2018,TMPI,WURTH UK LTD,
Workshop Engineering,3404,Vehicle Spares,Hand brake electrical cut off,04,2019,12.18,7475,12/06/2018,TMPI,GRASSHOPPER (HORTICULTURAL) LTD,
Workshop Engineering,3404,Vehicle Spares,WINDSCREEN REPAIR,04,2019,40.00,7476,28/06/2018,TMPI,THE WINDSCREEN COMPANY,
Workshop Engineering,3404,Vehicle Spares,O/S CREW CAB DOOR PANEL,04,2019,20.16,7477,03/07/2018,TMPI,TRUCKEAST LTD,
Workshop Engineering,3404,Vehicle Spares,FRONT TIMING COVER OIL SEAL -,04,2019,12.00,7478,04/07/2018,TMPI,NORFOLK TRUCK & VAN LTD,
Workshop Engineering,3404,Vehicle Spares,5W20 ECO OIL - 5LTR,04,2019,31.05,7479,05/07/2018,TMPI,MOTOR PARTS DIRECT,
Workshop Engineering,3404,Vehicle Spares,DELIVERY TO LUDO,04,2019,12.40,7480,29/06/2018,TMPI,T N T UK LTD,
Workshop Engineering,3404,Vehicle Spares,CARRIAGE TO FACTAIR,04,2019,14.14,7480,29/06/2018,TMPI,T N T UK LTD,
Workshop Engineering,3404,Vehicle Spares,W400 PATCH REPAIR WORK,04,2019,90.83,7481,04/07/2018,TMPI,SUFFOLK MARINE SAFETY LTD,
Workshop Engineering,3404,Vehicle Spares,VISCOUS COUPLING/FAN ASSEMBLY,04,2019,464.10,7482,06/07/2018,TMPI,TRUCKEAST LTD,
Workshop Engineering,3404,Vehicle Spares,TERMINAL EYE 8;40MM  YELLOW (D,04,2019,6.60,7483,03/07/2018,TMPI,MOTOR PARTS DIRECT,
Workshop Engineering,3404,Vehicle Spares,TERM FEMALE YELLOW 10;00MM,04,2019,4.80,7483,03/07/2018,TMPI,MOTOR PARTS DIRECT,
Workshop Engineering,3404,Vehicle Spares,FUSE MINI GREEN,04,2019,2.34,7483,03/07/2018,TMPI,MOTOR PARTS DIRECT,
Workshop Engineering,3404,Vehicle Spares,TERMINAL EYE 4BA BLUE,04,2019,1.73,7483,03/07/2018,TMPI,MOTOR PARTS DIRECT,
Workshop Engineering,3404,Vehicle Spares,FUSE BLADE 10AMP RED,04,2019,1.34,7483,03/07/2018,TMPI,MOTOR PARTS DIRECT,
Workshop Engineering,3404,Vehicle Spares,FUSE BLADE 20AMP YELLOW,04,2019,1.34,7483,03/07/2018,TMPI,MOTOR PARTS DIRECT,
Workshop Engineering,3404,Vehicle Spares,FUSE BLADE 3AMP VIOLET,04,2019,1.34,7483,03/07/2018,TMPI,MOTOR PARTS DIRECT,
Workshop Engineering,3404,Vehicle Spares,"TERMINAL EYE 3/16"" BLUE",04,2019,1.88,7483,03/07/2018,TMPI,MOTOR PARTS DIRECT,
Workshop Engineering,3404,Vehicle Spares,FUSE BLADE 5AMP TAN,04,2019,1.34,7483,03/07/2018,TMPI,MOTOR PARTS DIRECT,
Workshop Engineering,3404,Vehicle Spares,FUSE BLADE 15AMP BLUE,04,2019,1.34,7483,03/07/2018,TMPI,MOTOR PARTS DIRECT,
Workshop Engineering,3404,Vehicle Spares,TERMINAL EYE BLUE 6;40MM,04,2019,2.25,7483,03/07/2018,TMPI,MOTOR PARTS DIRECT,
Workshop Engineering,3404,Vehicle Spares,TERMINAL EYE BLUE 8MM,04,2019,2.25,7483,03/07/2018,TMPI,MOTOR PARTS DIRECT,
Workshop Engineering,3404,Vehicle Spares,FUSE MINI RED,04,2019,2.34,7483,03/07/2018,TMPI,MOTOR PARTS DIRECT,
Workshop Engineering,3404,Vehicle Spares,ORANGE FUSE BLADE,04,2019,6.45,7483,03/07/2018,TMPI,MOTOR PARTS DIRECT,
Workshop Engineering,3404,Vehicle Spares,KEY SWITCH,04,2019,13.12,7484,11/05/2018,TMPI,R S COMPONENTS LTD,
Workshop Engineering,3404,Vehicle Spares,LUBE FIN TF SHUTTER/LDRS,04,2019,222.00,7485,04/07/2018,TMPI,INTERFLON (UK) LTD,
Workshop Engineering,3404,Vehicle Spares,CARRIAGE CHARGE,04,2019,9.00,7485,04/07/2018,TMPI,INTERFLON (UK) LTD,
Workshop Engineering,3404,Vehicle Spares,ACCIDENT REPAIR,04,2019,3359.21,7486,01/06/2018,TMPI,FASEKO LIMITED,
Workshop Engineering,2070,Tools & Light Equipment,GENERAL PURPOSE KIT,04,2019,11.23,7487,03/07/2018,TMPI,RAPID ELECTRONICS LIMITED,
Workshop Engineering,3404,Vehicle Spares,CARRIAGE CHARGE,04,2019,9.15,7489,05/07/2018,TMPI,SUPPLY PLUS LIMITED,
Workshop Engineering,3404,Vehicle Spares,PAC FLEXMOUNT II,04,2019,474.60,7489,05/07/2018,TMPI,SUPPLY PLUS LIMITED,
Purchasing & Supply,2303,Clothing & Footwear,SAFETY GOGGLES - CLEAR,04,2019,5.20,7490,02/07/2018,TMPI,MOTOR PARTS DIRECT,
Purchasing & Supply,2303,Clothing & Footwear,SAFETY GOGGLES - CLEAR,04,2019,20.80,7491,02/07/2018,TMPI,MOTOR PARTS DIRECT,
Workshop Engineering,3404,Vehicle Spares,INJECTOR SURCHARGE,04,2019,105.00,7493,04/07/2018,TMPI,MOTOR PARTS DIRECT,
Workshop Engineering,3404,Vehicle Spares,INJECTORS,04,2019,510.00,7493,04/07/2018,TMPI,MOTOR PARTS DIRECT,
Purchasing & Supply,2303,Clothing & Footwear,HARD HAT,04,2019,52.40,7494,02/07/2018,TMPI,R S COMPONENTS LTD,
Workshop Engineering,3404,Vehicle Spares,TERMINAL FEMALE BLUE 6;35mm,04,2019,9.28,7495,03/07/2018,TMPI,R S COMPONENTS LTD,
Workshop Engineering,3404,Vehicle Spares,ADHESIVE HEAT SHRINK 6/2,04,2019,52.70,7495,03/07/2018,TMPI,R S COMPONENTS LTD,
Workshop Engineering,3404,Vehicle Spares,TERM F/MALE SHROUD 0;25 BLUE -,04,2019,12.37,7495,03/07/2018,TMPI,R S COMPONENTS LTD,
Workshop Engineering,3404,Vehicle Spares,TERM F/MALE SHROUD 0;25 YELLOW,04,2019,12.56,7495,03/07/2018,TMPI,R S COMPONENTS LTD,
Workshop Engineering,3404,Vehicle Spares,FLEETGUARD AIR FILTER - AF1867,04,2019,34.50,7496,06/07/2018,TMPI,CENTRAL TRUCK AND BUS PARTS LTD,
Operations,2401,Laundry,CLEAN RAG BAGS,04,2019,172.56,7497,29/06/2018,TMPI,BELMONT SERVICES,
Workshop Engineering,3404,Vehicle Spares,CARRIAGE CHARGE,04,2019,10.00,7498,06/07/2018,TMPI,LUDO MCGURK TRANSPORT EQUIPMENT LTD,
Workshop Engineering,3404,Vehicle Spares,CARRIAGE CHARGE,04,2019,9.50,7499,06/07/2018,TMPI,SURE24 LTD,
Workshop Engineering,3404,Vehicle Spares,1TB HARD DRIVE,04,2019,360.00,7499,06/07/2018,TMPI,SURE24 LTD,
Workshop Engineering,3404,Vehicle Spares,(NO;28) EXHAUST VALVE SPRING,04,2019,3.45,7500,29/06/2018,TMPI,GODIVA LTD,
Workshop Engineering,3404,Vehicle Spares,CARRIAGE CHARGE,04,2019,12.00,7500,29/06/2018,TMPI,GODIVA LTD,
Workshop Engineering,3404,Vehicle Spares,CARRIAGE CHARGE,04,2019,-12.00,7501,03/07/2018,TMPI,GODIVA LTD,
Technical Services,2085,Breathing Apparatus,5GM SUPER GLUE BOTTLE,04,2019,5.05,7502,02/07/2018,TMPI,ANGLIA HOSE & HYDRAULICS LTD,
Workshop Engineering,3404,Vehicle Spares,SEAT HEIGHT ADJUSTER,04,2019,48.67,7506,10/07/2018,TMPI,TRUCKEAST LTD,
Workshop Engineering,3404,Vehicle Spares,LIGHTER PLUG,04,2019,8.32,7507,10/07/2018,TMPI,MOTOR PARTS DIRECT,
Workshop Engineering,3404,Vehicle Spares,GAS STRUT LPP TRAY,04,2019,128.34,7508,10/07/2018,TMPI,JOHN DENNIS COACHBUILDERS LTD,
Workshop Engineering,3404,Vehicle Spares,CARRIAGE CHARGE,04,2019,15.00,7508,10/07/2018,TMPI,JOHN DENNIS COACHBUILDERS LTD,
Workshop Engineering,3404,Vehicle Spares,CARRIAGE CHARGE,04,2019,10.00,7509,09/07/2018,TMPI,LUDO MCGURK TRANSPORT EQUIPMENT LTD,
Workshop Engineering,3404,Vehicle Spares,SUPER 16 AUTO-EJECT 24 V,04,2019,80.69,7509,09/07/2018,TMPI,LUDO MCGURK TRANSPORT EQUIPMENT LTD,
Workshop Engineering,3404,Vehicle Spares,5LTR ECO OIL 0W30,04,2019,27.99,7510,09/07/2018,TMPI,JOHN GROSE GROUP LTD,
Workshop Engineering,3404,Vehicle Spares,CARRIAGE CHARGE,04,2019,9.15,7513,09/07/2018,TMPI,SUPPLY PLUS LIMITED,
Workshop Engineering,3404,Vehicle Spares,11 METRE EXTENTING ROPE - 105,04,2019,86.78,7513,09/07/2018,TMPI,SUPPLY PLUS LIMITED,
Workshop Engineering,3404,Vehicle Spares,SCANIA FRONT SEAT BASE,04,2019,55.00,7514,10/07/2018,TMPI,BWR & JJ ROOKS,
Workshop Engineering,3404,Vehicle Spares,FRONT SEAT REPAIR - SCANIA,04,2019,55.00,7514,10/07/2018,TMPI,BWR & JJ ROOKS,
Technical Services,2085,Breathing Apparatus,SpiroCom W/less Mask Unit RAGB,04,2019,257.00,7515,10/07/2018,TMPI,INTERSPIRO LTD,
Technical Services,2085,Breathing Apparatus,SpiroCom Marsk Unit  RAGB18031,04,2019,182.00,7515,10/07/2018,TMPI,INTERSPIRO LTD,
Workshop Engineering,3404,Vehicle Spares,BODY LOCK VALVE - ALSO REQUIRE,04,2019,85.78,7516,11/07/2018,TMPI,JOHN DENNIS COACHBUILDERS LTD,
Workshop Engineering,3404,Vehicle Spares,CARRIAGE CHARGE,04,2019,15.00,7516,11/07/2018,TMPI,JOHN DENNIS COACHBUILDERS LTD,
Workshop Engineering,3404,Vehicle Spares,PRESSURE SWITCH FOR BODY LOCK,04,2019,85.78,7516,11/07/2018,TMPI,JOHN DENNIS COACHBUILDERS LTD,
Workshop Engineering,3404,Vehicle Spares,5LTR ECO OIL 0W30,04,2019,55.98,7517,10/07/2018,TMPI,JOHN GROSE GROUP LTD,
Workshop Engineering,3404,Vehicle Spares,HIGH PERFORMANCE DRY CHAIN LUB,04,2019,35.60,7519,04/07/2018,TMPI,WURTH UK LTD,
Workshop Engineering,3404,Vehicle Spares,HHS 2000 - ( 500ml ),04,2019,52.50,7519,04/07/2018,TMPI,WURTH UK LTD,
Workshop Engineering,3404,Vehicle Spares,COPPER EASE in TUBES,04,2019,73.60,7519,04/07/2018,TMPI,WURTH UK LTD,
Workshop Engineering,3404,Vehicle Spares,N/S/F FLOOR MATT,04,2019,25.72,7520,11/07/2018,TMPI,TRUCKEAST LTD,
Workshop Engineering,3404,Vehicle Spares,FRONT NUMBER PLATE - EK18OGU,04,2019,6.80,7521,11/07/2018,TMPI,COLCHESTER RADIATOR SPECIALISTS,
Workshop Engineering,3404,Vehicle Spares,PIT FEE,04,2019,45.00,7522,10/07/2018,TMPI,NORFOLK TRUCK & VAN LTD,
Workshop Engineering,3404,Vehicle Spares,MOT TEST FEE,04,2019,91.00,7522,10/07/2018,TMPI,NORFOLK TRUCK & VAN LTD,
Workshop Engineering,3404,Vehicle Spares,FRONT PADS & SENSOR,04,2019,30.25,7523,12/07/2018,TMPI,JOHN GROSE GROUP LTD,
Workshop Engineering,3404,Vehicle Spares,DISSOLVED ACETYLENE SIZE D,04,2019,10.40,7524,28/06/2018,TMPI,B O C LTD,
Workshop Engineering,3404,Vehicle Spares,DISSOLVED ACETYLENE SIZE F,04,2019,34.00,7524,28/06/2018,TMPI,B O C LTD,
Workshop Engineering,3404,Vehicle Spares,OXYGEN SIZE W,04,2019,7.29,7524,28/06/2018,TMPI,B O C LTD,
Workshop Engineering,3404,Vehicle Spares,ARGOSHIELD UNIVERSAL SIZE W,04,2019,14.58,7524,28/06/2018,TMPI,B O C LTD,
Workshop Engineering,3404,Vehicle Spares,PURESHIELD ARGON SIZE W,04,2019,21.87,7524,28/06/2018,TMPI,B O C LTD,
Operations,2401,Laundry,RENTAL CHARGES 27;05;2018 - 30,04,2019,658.40,7525,30/06/2018,TMPI,JOHNSONS APPARELMASTER LTD,
Workshop Engineering,3404,Vehicle Spares,WINDSCREEN REPAIR,04,2019,545.00,7526,15/06/2018,TMPI,THE WINDSCREEN COMPANY,
Workshop Engineering,3404,Vehicle Spares,WINDSCREEN REPAIR,04,2019,40.00,7527,04/07/2018,TMPI,THE WINDSCREEN COMPANY,
Workshop Engineering,3404,Vehicle Spares,BLADE SET-pedal cutter,04,2019,412.30,7528,10/07/2018,TMPI,HOLMATRO UK LIMITED,
Workshop Engineering,3404,Vehicle Spares,STARCHEM SPIRIT WIPES,04,2019,27.95,7529,10/07/2018,TMPI,HALSTEAD REFINISHING SUPPLIES LTD,
Workshops Management,3320,Purchase of Machinery & Plant,PRESSURE WASHER REPAIR,04,2019,493.44,7530,17/04/2018,TMPI,A1 PRESSURE WASHERS LTD,
Workshop Engineering,3404,Vehicle Spares,N/S/F ANTI ROLL BAR LINK,04,2019,12.02,7532,11/07/2018,TMPI,MOTOR PARTS DIRECT,
Workshop Engineering,3404,Vehicle Spares,N/S/R WHEEL BEARING,04,2019,17.02,7532,11/07/2018,TMPI,MOTOR PARTS DIRECT,
Workshop Engineering,3404,Vehicle Spares,CARRIAGE CHARGE - TSI INSTRUME,04,2019,12.40,7533,06/07/2018,TMPI,T N T UK LTD,
Workshop Engineering,2070,Tools & Light Equipment,CARRIAGE TO TURNKEY INSTRUMENT,04,2019,14.26,7533,06/07/2018,TMPI,T N T UK LTD,
Workshop Engineering,3404,Vehicle Spares,WHEEL SENSOR,04,2019,168.73,7534,06/07/2018,TMPI,TRUCKEAST LTD,
Workshop Engineering,3404,Vehicle Spares,BRAKE PAD KIT,04,2019,76.50,7534,06/07/2018,TMPI,TRUCKEAST LTD,
Workshop Engineering,3404,Vehicle Spares,WHEEL SENSOR,04,2019,278.59,7534,06/07/2018,TMPI,TRUCKEAST LTD,
Workshop Engineering,3404,Vehicle Spares,CALIPER,04,2019,238.75,7534,06/07/2018,TMPI,TRUCKEAST LTD,
Workshop Engineering,3404,Vehicle Spares,CALIPER - SURCHARGE,04,2019,188.00,7535,06/07/2018,TMPI,TRUCKEAST LTD,
Workshop Engineering,3404,Vehicle Spares,CALIPER - SURCHARGE,04,2019,-188.00,7536,12/07/2018,TMPI,TRUCKEAST LTD,
Workshop Engineering,3404,Vehicle Spares,FUEL FILTER (Holmatro),04,2019,78.50,7537,11/07/2018,TMPI,ERNEST DOE & SONS LTD,
Workshop Engineering,3404,Vehicle Spares,VALVE FUEL SHUT OFF,04,2019,26.66,7539,04/07/2018,TMPI,ERNEST DOE & SONS LTD,
Workshop Engineering,3404,Vehicle Spares,N/S FOG LAMP,04,2019,41.23,7540,12/07/2018,TMPI,TRUCKEAST LTD,
Workshop Engineering,3404,Vehicle Spares,SURCHARGE - ALTERNATOR,04,2019,150.00,7541,20/06/2018,TMPI,TRUCKEAST LTD,
Workshop Engineering,3404,Vehicle Spares,ALTERNATIOR,04,2019,286.50,7542,20/06/2018,TMPI,TRUCKEAST LTD,
Workshop Engineering,3404,Vehicle Spares,ALTERNATIOR,04,2019,-286.50,7543,12/07/2018,TMPI,TRUCKEAST LTD,
Workshop Engineering,3404,Vehicle Spares,SURCHARGE - ALTERNATOR,04,2019,-150.00,7544,12/07/2018,TMPI,TRUCKEAST LTD,
Workshop Engineering,3404,Vehicle Spares,9V BATTERIES,04,2019,56.80,7545,05/07/2018,TMPI,R S COMPONENTS LTD,
Workshop Engineering,3404,Vehicle Spares,CLUTCH SLAVE CYLINDER,04,2019,184.50,7546,12/04/2018,TMPI,UNDERWOODS OF COLCHESTER VAUXHALL,
Workshop Engineering,3404,Vehicle Spares,CLUTCH BOLTS ( FLYWHEEL),04,2019,47.92,7546,12/04/2018,TMPI,UNDERWOODS OF COLCHESTER VAUXHALL,
Workshop Engineering,3404,Vehicle Spares,CLUTCH KIT,04,2019,353.60,7546,12/04/2018,TMPI,UNDERWOODS OF COLCHESTER VAUXHALL,
Workshop Engineering,3404,Vehicle Spares,CLUTCH BOLTS,04,2019,4.32,7546,12/04/2018,TMPI,UNDERWOODS OF COLCHESTER VAUXHALL,
Workshop Engineering,3404,Vehicle Spares,CLUTCH FLY WHEEL - EU11AYC,04,2019,-541.80,7547,10/05/2018,TMPI,UNDERWOODS OF COLCHESTER VAUXHALL,
Workshop Engineering,3404,Vehicle Spares,AD BLU - COMPLETE FILTER KIT,04,2019,63.00,7548,12/07/2018,TMPI,TRUCKEAST LTD,
Workshop Engineering,3404,Vehicle Spares,HOSE REEL BRANCH HANDLE,04,2019,188.40,7550,11/07/2018,TMPI,ROSENBAUER UK PLC,
Workshop Engineering,3404,Vehicle Spares,CARRIAGE CHARGE,04,2019,15.00,7551,12/07/2018,TMPI,VIMPEX LTD,
Workshop Engineering,3404,Vehicle Spares,PARATECH RATCHET STRAP,04,2019,101.00,7551,12/07/2018,TMPI,VIMPEX LTD,
Workshop Engineering,3404,Vehicle Spares,UPOL MATT BLACK,04,2019,42.50,7552,13/07/2018,TMPI,MOTOR PARTS DIRECT,
Workshop Engineering,3404,Vehicle Spares,REAR MAGNETIC BUMP STOP,04,2019,14.00,7553,13/07/2018,TMPI,JOHN GROSE GROUP LTD,
Workshop Engineering,3404,Vehicle Spares,FRONT PADS & SENSOR,04,2019,30.25,7554,12/07/2018,TMPI,JOHN GROSE GROUP LTD,
Workshop Engineering,3404,Vehicle Spares,ECO OIL 1 LTR,04,2019,6.25,7554,12/07/2018,TMPI,JOHN GROSE GROUP LTD,
Workshop Engineering,3404,Vehicle Spares,REAR NUMBER PLATE - KT18CAO,04,2019,6.80,7555,13/07/2018,TMPI,COLCHESTER RADIATOR SPECIALISTS,
Workshop Engineering,3404,Vehicle Spares,FUEL FILTER,04,2019,16.09,7556,25/06/2018,TMPI,IPSWICH TPS,
Workshop Engineering,3404,Vehicle Spares,OIL FILTER,04,2019,4.41,7556,25/06/2018,TMPI,IPSWICH TPS,
Workshop Engineering,3404,Vehicle Spares,FUEL FILTER,04,2019,-16.09,7557,13/07/2018,TMPI,IPSWICH TPS,
Workshop Engineering,3404,Vehicle Spares,OIL FILTER,04,2019,2.46,7558,13/07/2018,TMPI,MOTOR PARTS DIRECT,
Workshop Engineering,3404,Vehicle Spares,OIL FILTER,04,2019,3.04,7559,13/07/2018,TMPI,MOTOR PARTS DIRECT,
Workshop Engineering,3404,Vehicle Spares,AIR FILTER,04,2019,6.55,7559,13/07/2018,TMPI,MOTOR PARTS DIRECT,
Workshop Engineering,3404,Vehicle Spares,CABIN FILTER,04,2019,8.24,7559,13/07/2018,TMPI,MOTOR PARTS DIRECT,
Workshop Engineering,3404,Vehicle Spares,CASING,04,2019,37.25,7560,13/07/2018,TMPI,TRUCKEAST LTD,
Workshop Engineering,3404,Vehicle Spares,CASING,04,2019,117.09,7561,13/07/2018,TMPI,TRUCKEAST LTD,
Workshop Engineering,3404,Vehicle Spares,AIR DRYER FILTER,04,2019,99.95,7562,13/07/2018,TMPI,CENTRAL TRUCK AND BUS PARTS LTD,
Workshop Engineering,3404,Vehicle Spares,AIR FILTER - SCANIA,04,2019,41.49,7562,13/07/2018,TMPI,CENTRAL TRUCK AND BUS PARTS LTD,
Workshop Engineering,3404,Vehicle Spares,FUEL FILTER - SCANIA,04,2019,41.00,7563,13/07/2018,TMPI,CENTRAL TRUCK AND BUS PARTS LTD,
Technical Services,2085,Breathing Apparatus,Monthly Rental Medical Oxygen,04,2019,18.00,7564,28/06/2018,TMPI,B O C LTD,
Technical Services,2085,Breathing Apparatus,Environmental Charge,04,2019,2.88,7565,11/07/2018,TMPI,B O C LTD,
Technical Services,2085,Breathing Apparatus,Gas Supply for J Size Oxy Cyli,04,2019,38.80,7565,11/07/2018,TMPI,B O C LTD,
Technical Services,2085,Breathing Apparatus,Fixed Delivery Charge,04,2019,33.87,7565,11/07/2018,TMPI,B O C LTD,
Workshop Engineering,3404,Vehicle Spares,FRONT DISCS,04,2019,-49.00,7566,11/07/2018,TMPI,JOHN GROSE GROUP LTD,
Workshop Engineering,3404,Vehicle Spares,SPARK PLUG - LPP ( BKR6E ),04,2019,39.80,7567,16/07/2018,TMPI,MOTOR PARTS DIRECT,
Workshop Engineering,3404,Vehicle Spares,CLUTCH PEDAL NUT,04,2019,1.25,7568,13/07/2018,TMPI,COOPER COLCHESTER,
Workshop Engineering,3404,Vehicle Spares,CLUTCH PEDAL PIN,04,2019,3.95,7568,13/07/2018,TMPI,COOPER COLCHESTER,
Workshop Engineering,3404,Vehicle Spares,CLUTCH MASTER CYLINDER,04,2019,112.50,7568,13/07/2018,TMPI,COOPER COLCHESTER,
Workshop Engineering,3404,Vehicle Spares,FUEL FILTER,04,2019,15.31,7569,13/07/2018,TMPI,IPSWICH TPS,
Workshop Engineering,3404,Vehicle Spares,OIL FILTER,04,2019,4.46,7569,13/07/2018,TMPI,IPSWICH TPS,
Workshop Engineering,3404,Vehicle Spares,CABIN FILTER,04,2019,9.50,7569,13/07/2018,TMPI,IPSWICH TPS,
Workshop Engineering,3404,Vehicle Spares,13 PIN ADAPTOR,04,2019,21.90,7570,16/07/2018,TMPI,MOTOR PARTS DIRECT,
Workshop Engineering,3404,Vehicle Spares,BRUSH EXTENTION HANDLE - CLEAN,04,2019,41.88,7571,13/07/2018,TMPI,MOTOR PARTS DIRECT,
Workshop Engineering,3404,Vehicle Spares,BRUSH HEAD - CLEANING,04,2019,83.24,7571,13/07/2018,TMPI,MOTOR PARTS DIRECT,
Workshop Engineering,3404,Vehicle Spares,O/S/F FLOOR MATT,04,2019,25.72,7572,16/07/2018,TMPI,TRUCKEAST LTD,
Workshop Engineering,3404,Vehicle Spares,FUEL FILTER,04,2019,18.66,7573,13/07/2018,TMPI,JOHN GROSE GROUP LTD,
Workshop Engineering,3404,Vehicle Spares,AIR FILTER,04,2019,11.78,7573,13/07/2018,TMPI,JOHN GROSE GROUP LTD,
Workshop Engineering,3404,Vehicle Spares,OIL FILTER,04,2019,7.16,7573,13/07/2018,TMPI,JOHN GROSE GROUP LTD,
Workshop Engineering,3404,Vehicle Spares,ABSORBANT PADS,04,2019,41.70,7575,11/07/2018,TMPI,R S COMPONENTS LTD,
Workshop Engineering,3404,Vehicle Spares,1;5MTR BLACK PVC,04,2019,46.82,7576,06/07/2018,TMPI,REXEL UK LIMITED,
Workshop Engineering,2924,Quality Assurance,RE-CERTIFICATION AUDIT 18;7;18,04,2019,954.00,7577,19/07/2018,TMPI,BRITISH STANDARDS INSTITUTION,
Workshop Engineering,3404,Vehicle Spares,REAR COIL SPRINGS,04,2019,68.52,7578,19/07/2018,TMPI,MOTOR PARTS DIRECT,
Workshop Engineering,3404,Vehicle Spares,FRONT PADS,04,2019,33.60,7578,19/07/2018,TMPI,MOTOR PARTS DIRECT,
Workshop Engineering,3404,Vehicle Spares,FRONT DISCS,04,2019,54.84,7578,19/07/2018,TMPI,MOTOR PARTS DIRECT,
Workshop Engineering,3404,Vehicle Spares,STRAINER - PRIMA PUMP,04,2019,68.72,7579,16/07/2018,TMPI,GODIVA LTD,
Workshop Engineering,3404,Vehicle Spares,STRAINER - PRIMAPUMP,04,2019,68.72,7579,16/07/2018,TMPI,GODIVA LTD,
Workshop Engineering,3404,Vehicle Spares,CARRIAGE CHARGE,04,2019,12.00,7580,17/07/2018,TMPI,GODIVA LTD,
Workshop Engineering,3404,Vehicle Spares,WINDSCREEN REPAIR,04,2019,40.00,7581,13/07/2018,TMPI,THE WINDSCREEN COMPANY,
Workshop Engineering,3404,Vehicle Spares,WINDSCREEN REPAIR,04,2019,225.00,7582,09/07/2018,TMPI,THE WINDSCREEN COMPANY,
Workshop Engineering,3404,Vehicle Spares,WINDSCREEN REPAIR,04,2019,40.00,7583,13/07/2018,TMPI,THE WINDSCREEN COMPANY,
Workshop Engineering,3404,Vehicle Spares,DELIVERY ,04,2019,18.92,7584,19/07/2018,TMPI,T N T UK LTD,
Workshop Engineering,3404,Vehicle Spares,REAR NUMBER PLATE,04,2019,6.80,7586,18/07/2018,TMPI,COLCHESTER RADIATOR SPECIALISTS,
Workshop Engineering,3404,Vehicle Spares,CARRIAGE CHARGE,04,2019,15.00,7587,18/07/2018,TMPI,JOHN DENNIS COACHBUILDERS LTD,
Workshop Engineering,3404,Vehicle Spares,TRAY ROLLER WITH GROOVE,04,2019,81.50,7587,18/07/2018,TMPI,JOHN DENNIS COACHBUILDERS LTD,
Workshop Engineering,3404,Vehicle Spares,SCENELITE LED (GREY) 10-32V -,04,2019,408.10,7588,17/07/2018,TMPI,DUN-BRI SERVICES LTD,
Workshop Engineering,2070,Tools & Light Equipment,SEALEY HOSE CUTTER,04,2019,29.00,7589,17/07/2018,TMPI,MOTOR PARTS DIRECT,
Workshop Engineering,3404,Vehicle Spares,BELT,04,2019,14.26,7590,18/07/2018,TMPI,MOTOR PARTS DIRECT,
Workshop Engineering,3404,Vehicle Spares,TAIL LIFT INSPECTION,04,2019,92.29,7591,18/07/2018,TMPI,RANSOME ENGINEERING SERVICES LTD,
Workshop Engineering,3404,Vehicle Spares,TAIL LIFT INSPECTION,04,2019,92.29,7592,18/07/2018,TMPI,RANSOME ENGINEERING SERVICES LTD,
Workshop Engineering,3404,Vehicle Spares,AIR VALVE ASSY (INC SWITCH),04,2019,113.90,7593,18/07/2018,TMPI,TRUCKEAST LTD,
Workshop Engineering,3404,Vehicle Spares,TURBO SPEED SENSOR - T120,04,2019,155.34,7594,18/07/2018,TMPI,TRUCKEAST LTD,
Workshop Engineering,3404,Vehicle Spares,OIL FILTER,04,2019,4.37,7595,17/07/2018,TMPI,IPSWICH TPS,
Purchasing & Supply,1310,Cleaning products,CLEANER HAND POWER - LEMON,04,2019,71.80,7596,13/07/2018,TMPI,JAYAR CAR PARTS,
Workshop Engineering,3404,Vehicle Spares,SCRAP,04,2019,1.16,7597,11/07/2018,TMPI,ATS EUROMASTER LIMITED,
Workshop Engineering,3404,Vehicle Spares,MICH - 215/55/16,04,2019,165.02,7597,11/07/2018,TMPI,ATS EUROMASTER LIMITED,
Workshop Engineering,3404,Vehicle Spares,TRK BALANCE,04,2019,4.35,7597,11/07/2018,TMPI,ATS EUROMASTER LIMITED,
Workshop Engineering,3404,Vehicle Spares,TRK VALVE,04,2019,1.86,7597,11/07/2018,TMPI,ATS EUROMASTER LIMITED,
Workshop Engineering,3404,Vehicle Spares,FUEL FILLER CAP,04,2019,45.48,7599,17/07/2018,TMPI,TRUCKEAST LTD,
Workshop Engineering,3404,Vehicle Spares,SWITCH  WITH LOCKING BUTTON,04,2019,151.30,7599,17/07/2018,TMPI,TRUCKEAST LTD,
Purchasing & Supply,1310,Cleaning products,CARRIAGE CHARGE,04,2019,16.00,7601,13/07/2018,TMPI,FIRSTCALL CORPORATION LTD,
Purchasing & Supply,1310,Cleaning products,SCREENWASH ALL SEASON premium,04,2019,217.50,7601,13/07/2018,TMPI,FIRSTCALL CORPORATION LTD,
Workshop Engineering,3404,Vehicle Spares,N/S/F WISHBONE,04,2019,55.00,7602,17/07/2018,TMPI,MOTOR PARTS DIRECT,
Workshop Engineering,3404,Vehicle Spares,N/S MIRROR ASSY C/W WIDE ANGLE,04,2019,95.00,7603,17/07/2018,TMPI,CENTRAL TRUCK AND BUS PARTS LTD,
Workshop Engineering,3404,Vehicle Spares,N/S/R door cable,04,2019,21.37,7604,16/07/2018,TMPI,TRUCKEAST LTD,
Workshop Engineering,3404,Vehicle Spares,N/S/R door glass,04,2019,596.70,7605,17/07/2018,TMPI,TRUCKEAST LTD,
Workshop Engineering,3404,Vehicle Spares,OIL FILTER,04,2019,9.53,7606,09/07/2018,TMPI,ORWELL TRUCKS LTD,
Workshop Engineering,3404,Vehicle Spares,ORING,04,2019,0.68,7606,09/07/2018,TMPI,ORWELL TRUCKS LTD,
Workshop Engineering,3404,Vehicle Spares,AIR FILTER,04,2019,14.54,7606,09/07/2018,TMPI,ORWELL TRUCKS LTD,
Workshop Engineering,3404,Vehicle Spares,RETURNED - FUEL FILTER,04,2019,24.14,7606,09/07/2018,TMPI,ORWELL TRUCKS LTD,
Workshop Engineering,3404,Vehicle Spares,FUEL FILTER,04,2019,72.25,7606,09/07/2018,TMPI,ORWELL TRUCKS LTD,
Workshop Engineering,3404,Vehicle Spares,RETURNED - FUEL FILTER,04,2019,-24.14,7607,14/07/2018,TMPI,ORWELL TRUCKS LTD,
Workshop Engineering,3404,Vehicle Spares,N/S/F  LOCKER THRESHOLD - EU54,04,2019,46.80,7608,31/05/2018,TMPI,JOHN DENNIS COACHBUILDERS LTD,
Workshop Engineering,3404,Vehicle Spares,CARRIAGE CHARGE,04,2019,15.00,7608,31/05/2018,TMPI,JOHN DENNIS COACHBUILDERS LTD,
Workshop Engineering,3404,Vehicle Spares,N/S/F  LOCKER THRESHOLD - EU54,04,2019,-46.80,7609,17/07/2018,TMPI,JOHN DENNIS COACHBUILDERS LTD,
Workshop Engineering,3404,Vehicle Spares,CARRIAGE CHARGE,04,2019,-15.00,7609,17/07/2018,TMPI,JOHN DENNIS COACHBUILDERS LTD,
Workshop Engineering,3404,Vehicle Spares,WHEEL SENSOR,04,2019,-278.59,7610,18/07/2018,TMPI,TRUCKEAST LTD,
Workshop Engineering,3404,Vehicle Spares,OIL FILTER - CREDIT,04,2019,8.75,7611,18/07/2018,TMPI,UNDERWOODS OF COLCHESTER VAUXHALL,
Workshop Engineering,3404,Vehicle Spares,OIL FILTER,04,2019,7.70,7612,18/07/2018,TMPI,UNDERWOODS OF COLCHESTER VAUXHALL,
Workshop Engineering,3404,Vehicle Spares,OIL FILTER - CREDIT,04,2019,-8.75,7613,18/07/2018,TMPI,UNDERWOODS OF COLCHESTER VAUXHALL,
Workshop Engineering,3404,Vehicle Spares,BULB 12V 60/55W H4 BULB - (LLB,04,2019,22.40,7614,19/07/2018,TMPI,MOTOR PARTS DIRECT,
Workshop Engineering,3404,Vehicle Spares,REAR OBLONG NUMBER PLATE,04,2019,6.80,7616,19/07/2018,TMPI,COLCHESTER RADIATOR SPECIALISTS,
Workshop Engineering,3404,Vehicle Spares,N/S/F CV BOOT GATOR,04,2019,19.77,7618,20/07/2018,TMPI,IPSWICH TPS,
Workshop Engineering,3404,Vehicle Spares,N/S/F WASHER JET,04,2019,8.91,7618,20/07/2018,TMPI,IPSWICH TPS,
Workshop Engineering,3404,Vehicle Spares,BRAKE PEDAL RUBBER,04,2019,7.91,7620,19/07/2018,TMPI,JOHN GROSE GROUP LTD,
Workshop Engineering,3404,Vehicle Spares,SCANIA RED 68 LINE - AUTO COLO,04,2019,104.24,7621,23/07/2018,TMPI,HALSTEAD REFINISHING SUPPLIES LTD,
Workshop Engineering,3404,Vehicle Spares,NORMAL THINNER 1LTR,04,2019,7.52,7621,23/07/2018,TMPI,HALSTEAD REFINISHING SUPPLIES LTD,
Workshop Engineering,3404,Vehicle Spares,NORMAL HARDENER 1LTR,04,2019,26.15,7621,23/07/2018,TMPI,HALSTEAD REFINISHING SUPPLIES LTD,
Workshop Engineering,3404,Vehicle Spares,KUR Rust Remover,04,2019,13.40,7621,23/07/2018,TMPI,HALSTEAD REFINISHING SUPPLIES LTD,
Workshop Engineering,3404,Vehicle Spares,AIR FILTER,04,2019,4.17,7622,17/07/2018,TMPI,MOTOR PARTS DIRECT,
Workshop Engineering,3404,Vehicle Spares,OIL FILTER,04,2019,3.04,7622,17/07/2018,TMPI,MOTOR PARTS DIRECT,
Workshop Engineering,3404,Vehicle Spares,OIL FILTER - RETURN,04,2019,3.43,7622,17/07/2018,TMPI,MOTOR PARTS DIRECT,
Workshop Engineering,3404,Vehicle Spares,TREAD DEPTH GAUGE,04,2019,59.60,7623,19/07/2018,TMPI,MOTOR PARTS DIRECT,
Workshop Engineering,2070,Tools & Light Equipment,SMALL OIL CAN,04,2019,7.60,7624,20/07/2018,TMPI,MOTOR PARTS DIRECT,
Technical Services,2085,Breathing Apparatus,CARRIAGE,04,2019,15.00,7625,18/07/2018,TMPI,SPEEDINGS LTD,
Technical Services,2085,Breathing Apparatus,orange pvc facemask bag with n,04,2019,760.00,7625,18/07/2018,TMPI,SPEEDINGS LTD,
Workshop Engineering,3404,Vehicle Spares,EU55MVE RECOVERY,04,2019,320.00,7627,23/07/2018,TMPI,D&G TRUCKS LIMITED,
Workshop Engineering,3404,Vehicle Spares,WINDSCREEN REPAIR,04,2019,40.00,7628,23/07/2018,TMPI,THE WINDSCREEN COMPANY,
Workshop Engineering,2070,Tools & Light Equipment,BRAKE TESTER CALIBRATION BEAMS,04,2019,130.00,7629,13/07/2018,TMPI,SNAP ON UK HOLDINGS LIMITED,
Workshop Engineering,2070,Tools & Light Equipment,BRAKE TESTER CALIBRATION,04,2019,50.00,7629,13/07/2018,TMPI,SNAP ON UK HOLDINGS LIMITED,
Technical Services,2085,Breathing Apparatus,Shoulder pad (fabric),04,2019,91.64,7630,18/07/2018,TMPI,INTERSPIRO LTD,
Technical Services,2085,Breathing Apparatus,HIGH PRESSURE HOSE,04,2019,70.66,7630,18/07/2018,TMPI,INTERSPIRO LTD,
Technical Services,2085,Breathing Apparatus,S-Mask First Breath Small,04,2019,828.24,7630,18/07/2018,TMPI,INTERSPIRO LTD,
Technical Services,2085,Breathing Apparatus,"Filter Adapter, S Mask-JAdapt;",04,2019,74.06,7630,18/07/2018,TMPI,INTERSPIRO LTD,
Technical Services,2085,Breathing Apparatus,Foam Insert,04,2019,49.68,7630,18/07/2018,TMPI,INTERSPIRO LTD,
Technical Services,2085,Breathing Apparatus,Breathing hose with bend restr,04,2019,306.00,7630,18/07/2018,TMPI,INTERSPIRO LTD,
Technical Services,2085,Breathing Apparatus,"Breathing valve, M16 thread, f",04,2019,329.92,7630,18/07/2018,TMPI,INTERSPIRO LTD,
Technical Services,2085,Breathing Apparatus,Freight and Packaging,04,2019,23.10,7630,18/07/2018,TMPI,INTERSPIRO LTD,
Workshop Engineering,3404,Vehicle Spares,AMBER LED LAMP - SCANIA,04,2019,50.26,7631,20/07/2018,TMPI,DUN-BRI SERVICES LTD,
Workshop Engineering,3404,Vehicle Spares,CARRIAGE CHARGE,04,2019,11.00,7632,23/07/2018,TMPI,CONCEPT ENGINEERING LTD,
Workshop Engineering,3404,Vehicle Spares,HELICAL HEAT EXCHANGER,04,2019,65.00,7632,23/07/2018,TMPI,CONCEPT ENGINEERING LTD,
Workshop Engineering,3404,Vehicle Spares,OIL FILTER,04,2019,2.71,7633,20/07/2018,TMPI,MOTOR PARTS DIRECT,
Workshop Engineering,3404,Vehicle Spares,Rust Beater Beige 2;5LTR,04,2019,40.94,7634,20/07/2018,TMPI,MOTOR PARTS DIRECT,
Workshop Engineering,3404,Vehicle Spares,CARRIAGE CHARGE,04,2019,13.50,7635,23/07/2018,TMPI,JAYAR CAR PARTS,
Workshop Engineering,3404,Vehicle Spares,PTO PROP SHAFT,04,2019,385.00,7635,23/07/2018,TMPI,JAYAR CAR PARTS,
Workshop Engineering,3404,Vehicle Spares,AIR FILTER,04,2019,55.47,7637,20/07/2018,TMPI,TRUCKEAST LTD,
Workshop Engineering,3404,Vehicle Spares,ECU MODULE,04,2019,808.35,7638,20/07/2018,TMPI,TRUCKEAST LTD,
Workshop Engineering,3404,Vehicle Spares,PUMP WINDSCREEN WASH x reg,04,2019,163.62,7639,23/07/2018,TMPI,ALEXANDER DENNIS LTD (PARTS DIVISION),
Workshop Engineering,3404,Vehicle Spares,(NO;8)  SCREW M4-;7 X 8 PHILLI,04,2019,1.73,7640,23/07/2018,TMPI,GODIVA LTD,
Workshop Engineering,3404,Vehicle Spares,BATTERY,04,2019,49.30,7641,23/07/2018,TMPI,MOTOR PARTS DIRECT,
Workshop Engineering,3404,Vehicle Spares,1LTR SPECTRAL WAVE 2- PATTERN,04,2019,51.65,7642,24/07/2018,TMPI,HALSTEAD REFINISHING SUPPLIES LTD,
Purchasing & Supply,2024,Cleaning Equipment,CAREPOINT SERVICES,04,2019,308.25,7643,13/07/2018,TMPI,SAFETY KLEEN UK LTD,
Purchasing & Supply,1310,Cleaning products,Floor Cleaner & Degreaser - DE,04,2019,799.50,7644,17/07/2018,TMPI,FIRSTCALL CORPORATION LTD,
Purchasing & Supply,1310,Cleaning products,CARRIAGE CHARGE,04,2019,37.00,7644,17/07/2018,TMPI,FIRSTCALL CORPORATION LTD,
Workshop Engineering,3404,Vehicle Spares,OIL FILTER,04,2019,-7.16,7645,19/07/2018,TMPI,JOHN GROSE GROUP LTD,
Workshop Engineering,3404,Vehicle Spares,N/S/R DOOR SEAL,04,2019,43.86,7646,24/07/2018,TMPI,JOHN GROSE GROUP LTD,
Workshop Engineering,3404,Vehicle Spares,N/S/R DOOR HANDLE,04,2019,18.23,7646,24/07/2018,TMPI,JOHN GROSE GROUP LTD,
Workshop Engineering,3404,Vehicle Spares,N/S/R DOOR HANDLE D-CUP,04,2019,7.33,7646,24/07/2018,TMPI,JOHN GROSE GROUP LTD,
Workshop Engineering,3404,Vehicle Spares,N/S/R DOOR,04,2019,290.59,7647,24/07/2018,TMPI,JOHN GROSE GROUP LTD,
Workshop Engineering,3404,Vehicle Spares,NSF OUTER STRETCHY CV GAITER,04,2019,8.51,7648,24/07/2018,TMPI,MOTOR PARTS DIRECT,
Workshop Engineering,3404,Vehicle Spares,DRAPER CAR CLEANING BLADE 7648,04,2019,17.56,7649,23/07/2018,TMPI,MOTOR PARTS DIRECT,
Workshop Engineering,3404,Vehicle Spares,TYRE PRESSURE GAUGE,04,2019,59.21,7650,23/07/2018,TMPI,MOTOR PARTS DIRECT,
Workshop Engineering,3404,Vehicle Spares,TYRE PRESSURE GAUGE,04,2019,59.21,7650,23/07/2018,TMPI,MOTOR PARTS DIRECT,
Workshop Engineering,3404,Vehicle Spares,TYRE PRESSURE GAUGE,04,2019,59.21,7650,23/07/2018,TMPI,MOTOR PARTS DIRECT,
Workshop Engineering,3404,Vehicle Spares,FRONT SEAT REPAIR,04,2019,55.00,7651,23/07/2018,TMPI,BWR & JJ ROOKS,
Workshop Engineering,3404,Vehicle Spares,REAR BENCH SEAT REPAIR,04,2019,80.00,7651,23/07/2018,TMPI,BWR & JJ ROOKS,
Workshop Engineering,3404,Vehicle Spares,DURITE 13 PIN PLUG ADAPTOR,04,2019,21.90,7652,25/07/2018,TMPI,MOTOR PARTS DIRECT,
Workshop Engineering,3404,Vehicle Spares,PAIR FRONT DISKS FORD FOCUS,04,2019,31.77,7653,25/07/2018,TMPI,MOTOR PARTS DIRECT,
Workshop Engineering,3404,Vehicle Spares,OSF BRAKE FLEXI PIPE,04,2019,7.55,7653,25/07/2018,TMPI,MOTOR PARTS DIRECT,
Workshop Engineering,3404,Vehicle Spares,SET FRONT PADS FORD FOCUS,04,2019,19.80,7653,25/07/2018,TMPI,MOTOR PARTS DIRECT,
Workshop Engineering,3404,Vehicle Spares,GLASS,04,2019,123.89,7654,25/07/2018,TMPI,TRUCKEAST LTD,
Workshop Engineering,3404,Vehicle Spares,ATO1000S,04,2019,34.80,7655,24/07/2018,TMPI,MOTOR PARTS DIRECT,
Purchasing & Supply,2303,Clothing & Footwear,SHOE DEODORANT,04,2019,80.00,7656,24/07/2018,TMPI,SIBBONS (ALRESFORD) LTD,
Workshop Engineering,3404,Vehicle Spares,BRONTO TELLUS T32 25L PAIL,04,2019,28.50,7659,04/07/2018,TMPI,ANGLIA HOSE & HYDRAULICS LTD,
Workshop Engineering,3404,Vehicle Spares,GASKET CYLINDER HEAD,04,2019,8.02,7660,19/07/2018,TMPI,ERNEST DOE & SONS LTD,
Workshop Engineering,3404,Vehicle Spares,GASKET,04,2019,4.84,7660,19/07/2018,TMPI,ERNEST DOE & SONS LTD,
Workshop Engineering,3404,Vehicle Spares,TWIN ISONIC VALVE,04,2019,53.82,7661,25/07/2018,TMPI,ANGLIA HOSE & HYDRAULICS LTD,
Workshop Engineering,3404,Vehicle Spares,CARRIAGE TO RING CARNATION,04,2019,13.33,7662,20/07/2018,TMPI,T N T UK LTD,
Workshop Engineering,3404,Vehicle Spares,TACHO GAUGE 0-40 RPM100,04,2019,194.25,7663,24/07/2018,TMPI,JOHN DENNIS COACHBUILDERS LTD,
Workshop Engineering,3404,Vehicle Spares,CARRIAGE CHARGE,04,2019,15.00,7663,24/07/2018,TMPI,JOHN DENNIS COACHBUILDERS LTD,
Workshop Engineering,3404,Vehicle Spares,OIL LEVEL SENSOR SEAL,04,2019,2.94,7664,25/07/2018,TMPI,IPSWICH TPS,
Workshop Engineering,3404,Vehicle Spares,FRONT DISCS,04,2019,48.32,7665,25/07/2018,TMPI,MOTOR PARTS DIRECT,
Workshop Engineering,3404,Vehicle Spares,FRONT PADS,04,2019,22.31,7665,25/07/2018,TMPI,MOTOR PARTS DIRECT,
Workshop Engineering,3404,Vehicle Spares,FRONT NUMBER PLATE,04,2019,6.80,7666,26/07/2018,TMPI,COLCHESTER RADIATOR SPECIALISTS,
Workshop Engineering,3404,Vehicle Spares,"24"" WIPER BLADES WITH WASHER J",04,2019,12.36,7667,26/07/2018,TMPI,MOTOR PARTS DIRECT,
Workshop Engineering,3404,Vehicle Spares,LIQUID METAL,04,2019,3.86,7668,26/07/2018,TMPI,MOTOR PARTS DIRECT,
Workshop Engineering,3404,Vehicle Spares,PAC FLEXMOUNT II,04,2019,189.84,7669,24/07/2018,TMPI,SUPPLY PLUS LIMITED,
Workshop Engineering,3404,Vehicle Spares,CARRIAGE CHARGE,04,2019,9.15,7669,24/07/2018,TMPI,SUPPLY PLUS LIMITED,
Workshop Engineering,3404,Vehicle Spares,CARRIAGE,04,2019,9.00,7670,25/07/2018,TMPI,INTERFLON (UK) LTD,
Workshop Engineering,3404,Vehicle Spares,LUBE FIN TF SHUTTER/LDRS,04,2019,222.00,7670,25/07/2018,TMPI,INTERFLON (UK) LTD,
Workshop Engineering,3404,Vehicle Spares,OIL FILTER - RETURN,04,2019,-3.43,7671,25/07/2018,TMPI,MOTOR PARTS DIRECT,
Workshop Engineering,3404,Vehicle Spares,FRONT BRAKE CHAMBER - WABCO,04,2019,430.00,7672,26/07/2018,TMPI,CENTRAL TRUCK AND BUS PARTS LTD,
Workshop Engineering,3404,Vehicle Spares,REAR BRAKE CHAMBER,04,2019,615.00,7672,26/07/2018,TMPI,CENTRAL TRUCK AND BUS PARTS LTD,
Workshop Engineering,3404,Vehicle Spares,BLACK NYLON HEAVEY JUDY TUBING,04,2019,23.90,7673,26/07/2018,TMPI,MOTOR PARTS DIRECT,
Workshop Engineering,3404,Vehicle Spares,REAR CAMERA WIRING LOOM ;;;( C,04,2019,28.51,7674,26/07/2018,TMPI,LOOKERS FORD,
Technical Services,2085,Breathing Apparatus,US4 DIN/AP6101/AP0849,04,2019,131.38,7675,25/07/2018,TMPI,WEBER RESCUE UK LTD,
Technical Services,2085,Breathing Apparatus,CARRIAGE CHARGE,04,2019,12.50,7675,25/07/2018,TMPI,WEBER RESCUE UK LTD,
Workshop Engineering,3404,Vehicle Spares,FIXING KNOB & WASHERS,04,2019,51.00,7676,26/07/2018,TMPI,CIVIL DEFENCE SUPPLY LTD,
Workshop Engineering,3404,Vehicle Spares,CARRIAGE CHARGE,04,2019,3.00,7676,26/07/2018,TMPI,CIVIL DEFENCE SUPPLY LTD,
Workshop Engineering,3404,Vehicle Spares,PIPE CLIP SNAP IN 15MM,04,2019,7.04,7677,26/07/2018,TMPI,ANGLIA HOSE & HYDRAULICS LTD,
Workshop Engineering,3404,Vehicle Spares,PIPE CLIP SNAP IN 22MM PACK 10,04,2019,9.88,7677,26/07/2018,TMPI,ANGLIA HOSE & HYDRAULICS LTD,
Workshop Engineering,3404,Vehicle Spares,M5 X 16MM PAN HEAD POSI DRIVE,04,2019,8.00,7678,27/07/2018,TMPI,SOUTH ESSEX FASTENERS LTD,
Workshop Engineering,3404,Vehicle Spares,NUT NYLOC 5MM ZINC (1 PACK = 1,04,2019,2.20,7678,27/07/2018,TMPI,SOUTH ESSEX FASTENERS LTD,
Workshop Engineering,3404,Vehicle Spares,BATTERY TERMINAL,04,2019,6.60,7679,27/07/2018,TMPI,MOTOR PARTS DIRECT,
Workshop Engineering,3404,Vehicle Spares,BATTERY TERMINAL,04,2019,3.30,7680,27/07/2018,TMPI,MOTOR PARTS DIRECT,
Workshop Engineering,3404,Vehicle Spares,FUEL METERING VALVE,04,2019,121.04,7681,30/07/2018,TMPI,LOOKERS FORD,
Workshop Engineering,3404,Vehicle Spares,N/S MIRROR CASING,04,2019,18.90,7682,30/07/2018,TMPI,LOOKERS FORD,
Workshop Engineering,3404,Vehicle Spares,TRANSIT BATTERY - PLATINUM 100,04,2019,86.03,7683,30/07/2018,TMPI,MOTOR PARTS DIRECT,
Workshop Engineering,3404,Vehicle Spares,CAM CHAIN TENSIONER,04,2019,12.54,7684,30/07/2018,TMPI,COOPER COLCHESTER,
Workshop Engineering,3404,Vehicle Spares,DUST COVER,04,2019,62.90,7686,27/07/2018,TMPI,TRUCKEAST LTD,
Workshop Engineering,3404,Vehicle Spares,DIFF PRESSURE SENSOR,04,2019,150.88,7687,27/07/2018,TMPI,TRUCKEAST LTD,
Workshop Engineering,3404,Vehicle Spares,FRONT NUMBER PLATE,04,2019,6.80,7688,27/07/2018,TMPI,COLCHESTER RADIATOR SPECIALISTS,
Workshop Engineering,3404,Vehicle Spares,OIL ADDITIVE,04,2019,5.20,7689,27/07/2018,TMPI,MOTOR PARTS DIRECT,
Workshop Engineering,3404,Vehicle Spares,WATER DISTILLED   5 LITRE,04,2019,7.96,7690,27/07/2018,TMPI,MOTOR PARTS DIRECT,
Workshop Engineering,3404,Vehicle Spares,OIL PENATRATING  ( 5 LITRE ) W,04,2019,47.76,7690,27/07/2018,TMPI,MOTOR PARTS DIRECT,
Workshop Engineering,3404,Vehicle Spares,FRONT BRAKE DISCS CONNECT,04,2019,71.84,7691,26/07/2018,TMPI,JOHN GROSE GROUP LTD,
Workshop Engineering,3404,Vehicle Spares,EVOSTICK CONTACT ADHESIVE,04,2019,10.50,7692,26/07/2018,TMPI,MOTOR PARTS DIRECT,
Workshop Engineering,3404,Vehicle Spares,M5 - PLAIN WASHER,04,2019,0.40,7694,25/07/2018,TMPI,SOUTH ESSEX FASTENERS LTD,
Workshop Engineering,3404,Vehicle Spares,"SCREW SELF TAP 1/2"" X 8 PAN HD",04,2019,1.27,7694,25/07/2018,TMPI,SOUTH ESSEX FASTENERS LTD,
Workshop Engineering,3404,Vehicle Spares,NUT STEEL 6 MM,04,2019,1.88,7694,25/07/2018,TMPI,SOUTH ESSEX FASTENERS LTD,
Workshop Engineering,3404,Vehicle Spares,COIL WASHER M12,04,2019,2.53,7694,25/07/2018,TMPI,SOUTH ESSEX FASTENERS LTD,
Workshop Engineering,3404,Vehicle Spares,RIVET POP ALLOY DMD 4;0 X 8;5M,04,2019,1.48,7694,25/07/2018,TMPI,SOUTH ESSEX FASTENERS LTD,
Workshop Engineering,3404,Vehicle Spares,M4 PLAIN WASHER,04,2019,0.33,7694,25/07/2018,TMPI,SOUTH ESSEX FASTENERS LTD,
Workshop Engineering,3404,Vehicle Spares,M5 STAINLESS STEEL WASHER,04,2019,1.10,7694,25/07/2018,TMPI,SOUTH ESSEX FASTENERS LTD,
Workshop Engineering,3404,Vehicle Spares,GUTTER BOLT M6 X 12,04,2019,9.24,7694,25/07/2018,TMPI,SOUTH ESSEX FASTENERS LTD,
Workshop Engineering,3404,Vehicle Spares,REPAIR KIT,04,2019,85.38,7695,26/06/2018,TMPI,IPSWICH TPS,
Workshop Engineering,3404,Vehicle Spares,REPAIR KIT,04,2019,-85.38,7696,26/06/2018,TMPI,IPSWICH TPS,
Workshop Engineering,3404,Vehicle Spares,TURN ON RIM,04,2019,21.29,7697,24/07/2018,TMPI,ATS EUROMASTER LIMITED,
Workshop Engineering,3404,Vehicle Spares,STRIP & REFIT,04,2019,40.00,7698,24/07/2018,TMPI,ATS EUROMASTER LIMITED,
Workshop Engineering,3404,Vehicle Spares,STRIP & REFIT,04,2019,140.00,7699,24/07/2018,TMPI,ATS EUROMASTER LIMITED,
Workshop Engineering,3404,Vehicle Spares,TRK BALANCE,04,2019,4.40,7700,23/07/2018,TMPI,ATS EUROMASTER LIMITED,
Workshop Engineering,3404,Vehicle Spares,SCRAP,04,2019,1.16,7700,23/07/2018,TMPI,ATS EUROMASTER LIMITED,
Workshop Engineering,3404,Vehicle Spares,MICH - 225/75/16,04,2019,99.85,7700,23/07/2018,TMPI,ATS EUROMASTER LIMITED,
Workshop Engineering,3404,Vehicle Spares,TRK VALVE,04,2019,1.88,7700,23/07/2018,TMPI,ATS EUROMASTER LIMITED,
Workshop Engineering,3404,Vehicle Spares,BRUSH HEAD - CLEANING,04,2019,124.86,7701,31/07/2018,TMPI,MOTOR PARTS DIRECT,
Workshop Engineering,3404,Vehicle Spares,FIAT O/S BOTTOM ARM EX10UXR,04,2019,62.76,7702,31/07/2018,TMPI,MOTOR PARTS DIRECT,
Workshop Engineering,3404,Vehicle Spares,SIGHT TUBE - SABRE / JDC SCANI,04,2019,67.54,7941,26/07/2018,TMPI,ALEXANDER DENNIS LTD (PARTS DIVISION),
Catering,2017,Canteen Equipment,Return visit to defective dish,04,2019,60.00,9871,01/03/2018,KPIN,GW COMMERCIAL EQUIPMENT LIMITED,
Human Resources,0961,BUPA Subscriptions,Bupa Annual Subscriptions 2017,04,2019,16014.31,11022,22/03/2018,KPIN,ESSEX COUNTY COUNCIL,
Finance & Pay,4203,Risk Protection - Third Party Costs,19153015379 ,04,2019,4333.00,11220,31/03/2018,KPIN,ZURICH MUNICIPAL,
Finance & Pay,4203,Risk Protection - Third Party Costs,19153015379 ,04,2019,2000.00,11220,31/03/2018,KPIN,ZURICH MUNICIPAL,
Police Collaboration,0180,Casual and Temporary Staff,Casual and Temporary Staff,04,2019,777.91,11381,11/04/2018,KPIN,SUCCESS RECRUIT LIMITED,
Workshops Management,3050,Leasing Charges,Leasing Charges,04,2019,-682.08,11586,28/03/2018,KPIN,LEX AUTOLEASE LTD,
Training,4111,Subsistence Allowances,Subsistence Allowances,04,2019,9246.00,11665,17/04/2018,KPIN,SCANIA (GREAT BRITAIN) LTD,
Purchasing & Supply,4001,Stationery,KF3527 GUSSET ENVELOPES,04,2019,5.61,11908,26/04/2018,KPIN,BANNER GROUP LIMITED,
Property Services,1330,Building Cleaning,Offensive Waste Disposal,04,2019,537.77,12019,26/04/2018,KPIN,PHS GROUP,
Finance & Pay,4203,Risk Protection - Third Party Costs,19153015379 ,04,2019,647.00,12054,30/04/2018,KPIN,ZURICH MUNICIPAL,
Property Services,1040,Planned Works,MOBILE SECURITY,04,2019,252.34,12076,30/04/2018,KPIN,OAKPARK SECURITY SYSTEMS LIMITED,
Human Resources,0180,Casual and Temporary Staff,Casual and Temporary Staff,04,2019,135.90,12339,06/05/2018,KPIN,PURE RESOURCING SOLUTIONS LTD,
Purchasing & Supply,2024,Cleaning Equipment,Cleanline Heavy Duty Degreaser,04,2019,13.60,12366,10/05/2018,KPIN,BUNZL CLEANING & HYGIENE SUPPLIES,
Purchasing & Supply,2024,Cleaning Equipment,Bryta Oven & Grill Foam 500ML ,04,2019,11.96,12366,10/05/2018,KPIN,BUNZL CLEANING & HYGIENE SUPPLIES,
Purchasing & Supply,2024,Cleaning Equipment,Brasso Liquid Metal Polish 175,04,2019,5.12,12366,10/05/2018,KPIN,BUNZL CLEANING & HYGIENE SUPPLIES,
Purchasing & Supply,1310,Cleaning products,Purell Hand Sanitising Gel VF4,04,2019,24.98,12366,10/05/2018,KPIN,BUNZL CLEANING & HYGIENE SUPPLIES,
Purchasing & Supply,2024,Cleaning Equipment,Cleanline Pine Disinfectant QA,04,2019,2.74,12366,10/05/2018,KPIN,BUNZL CLEANING & HYGIENE SUPPLIES,
Purchasing & Supply,2024,Cleaning Equipment,Cleanline Food Safe Sanitiser ,04,2019,9.14,12366,10/05/2018,KPIN,BUNZL CLEANING & HYGIENE SUPPLIES,
Purchasing & Supply,2024,Cleaning Equipment,Cleanline Glass & Stainless St,04,2019,4.56,12366,10/05/2018,KPIN,BUNZL CLEANING & HYGIENE SUPPLIES,
Purchasing & Supply,1310,Cleaning products,Builders Bucket Heavy Duty Bla,04,2019,6.44,12366,10/05/2018,KPIN,BUNZL CLEANING & HYGIENE SUPPLIES,
Purchasing & Supply,2024,Cleaning Equipment,6663 Scott Performance Hand To,04,2019,48.16,12366,10/05/2018,KPIN,BUNZL CLEANING & HYGIENE SUPPLIES,
Property Services,0180,Casual and Temporary Staff,Casual and Temporary Staff,04,2019,111.83,12383,06/05/2018,KPIN,PURE RESOURCING SOLUTIONS LTD,
Property Services,0180,Casual and Temporary Staff,Casual and Temporary Staff,04,2019,238.56,12383,06/05/2018,KPIN,PURE RESOURCING SOLUTIONS LTD,
Property Services,0180,Casual and Temporary Staff,Casual and Temporary Staff,04,2019,119.28,12383,06/05/2018,KPIN,PURE RESOURCING SOLUTIONS LTD,
Training,0715,In House Operational Training,In House Operational Training,04,2019,264.00,12415,11/05/2018,KPIN,AIR PRODUCTS PLC,
Operations,6801,Section 13/16,Cross boarder charges 2017/18,04,2019,29409.33,12734,17/05/2018,KPIN,HERTFORDSHIRE COUNTY COUNCIL,
Technical Services,2030,Operational Equipment Support,Dry suit repairs Serial No. 25,04,2019,36.00,12761,25/05/2018,KPIN,S E M S LTD,
Property Services,1060,Grounds Maintenance,CANCELLED BY KPIN13451,04,2019,262.00,12782,29/05/2018,KPIN,DUNMOW SKIPS LTD,
Water Services,2087,Water Services,FS00000355,04,2019,335.41,12809,23/05/2018,KPIN,NORTHUMBRIAN WATER LTD (HYDRANTS),
Training,0715,In House Operational Training,In House Operational Training,04,2019,50.00,12893,25/05/2018,KPIN,NORDIC TIMBER LTD,
Not Analysed,0715,In House Operational Training,In House Operational Training,04,2019,35.33,12894,25/05/2018,KPIN,NORDIC TIMBER LTD,
Property Services,1060,Grounds Maintenance,CANCELLED BY KPIN13450,04,2019,262.00,12915,31/05/2018,KPIN,DUNMOW SKIPS LTD,
Workshops Management,3201,Petrol and Diesel,Petrol and Diesel,04,2019,-5280.19,12944,31/05/2018,KPIN,ALLSTAR BUSINESS SOLUTIONS LTD,
Workshops Management,3201,Petrol and Diesel,Petrol and Diesel,04,2019,5280.19,12944,31/05/2018,KPIN,ALLSTAR BUSINESS SOLUTIONS LTD,
Workshops Management,3050,Leasing Charges,Leasing Charges,04,2019,310.68,12967,24/05/2018,KPIN,LEX AUTOLEASE LTD,
Water Services,2087,Water Services,FS00000047,04,2019,518.00,12974,23/05/2018,KPIN,AFFINITY WATER LIMITED (HYDRANTS),
Water Services,2087,Water Services,FS00000005,04,2019,518.00,12976,23/05/2018,KPIN,AFFINITY WATER LIMITED (HYDRANTS),
Water Services,2087,Water Services,FS00000397,04,2019,518.00,12979,22/05/2018,KPIN,AFFINITY WATER LIMITED (HYDRANTS),
Property Services,1499,Furniture and Fittings,x1 Ash Bin plus x1 Smoking Sig,04,2019,24.15,13072,04/06/2018,KPIN,BATES OFFICE SERVICES LIMITED,
Workshops Management,3050,Leasing Charges,Leasing Charges,04,2019,445.30,13078,28/05/2018,KPIN,LEX AUTOLEASE LTD,
Finance & Pay,4203,Risk Protection - Third Party Costs,19153013020 ,04,2019,3855.00,13092,31/05/2018,KPIN,ZURICH MUNICIPAL,
Finance & Pay,4203,Risk Protection - Third Party Costs,19153015379 ,04,2019,750.00,13092,31/05/2018,KPIN,ZURICH MUNICIPAL,
Property Services,2903,Consultancy Fees,1617/403 for their professiona,04,2019,1049.25,13104,31/05/2018,KPIN,INGLETON WOOD LLP,
Human Resources,4016,Recruitment,Recruitment,04,2019,650.00,13109,12/06/2018,KPIN,TD SOFTWARE LTD,
Workplace Safety,2903,Consultancy Fees,Consultancy Services May 2018,04,2019,100.00,13130,05/06/2018,KPIN,INDEPENDENT FIRE RISK ASSESSMENTS LTD,
Workplace Safety,2903,Consultancy Fees,Consultancy Services May 2018,04,2019,2000.00,13130,05/06/2018,KPIN,INDEPENDENT FIRE RISK ASSESSMENTS LTD,
Purchasing & Supply,1310,Cleaning products,Bryta Dishwasher Powder 5KG (E,04,2019,23.68,13144,05/06/2018,KPIN,BUNZL CLEANING & HYGIENE SUPPLIES,
Purchasing & Supply,1310,Cleaning products,6336 Kleenex Antibacterial Han,04,2019,28.19,13144,05/06/2018,KPIN,BUNZL CLEANING & HYGIENE SUPPLIES,
Purchasing & Supply,2024,Cleaning Equipment,6663 Scott Performance Hand To,04,2019,48.16,13144,05/06/2018,KPIN,BUNZL CLEANING & HYGIENE SUPPLIES,
Purchasing & Supply,1310,Cleaning products,General Purpose Detergent 5L (,04,2019,7.70,13144,05/06/2018,KPIN,BUNZL CLEANING & HYGIENE SUPPLIES,
Purchasing & Supply,2024,Cleaning Equipment,Cleanline Thin Bleach 4.5% 5L ,04,2019,2.96,13144,05/06/2018,KPIN,BUNZL CLEANING & HYGIENE SUPPLIES,
Water Services,2087,Water Services,HR66142,04,2019,335.41,13174,06/06/2018,KPIN,NORTHUMBRIAN WATER LTD (HYDRANTS),
Catering,0180,Casual and Temporary Staff,Casual and Temporary Staff,04,2019,97.24,13182,06/06/2018,KPIN,FIRST CALL EMPLOYMENT LTD,
Catering,0180,Casual and Temporary Staff,Casual and Temporary Staff,04,2019,65.84,13182,06/06/2018,KPIN,FIRST CALL EMPLOYMENT LTD,
Catering,0180,Casual and Temporary Staff,Casual and Temporary Staff,04,2019,291.72,13182,06/06/2018,KPIN,FIRST CALL EMPLOYMENT LTD,
Catering,0180,Casual and Temporary Staff,Casual and Temporary Staff,04,2019,418.88,13182,06/06/2018,KPIN,FIRST CALL EMPLOYMENT LTD,
Catering,0180,Casual and Temporary Staff,Casual and Temporary Staff,04,2019,311.24,13182,06/06/2018,KPIN,FIRST CALL EMPLOYMENT LTD,
Property Services,1050,Building Maintenance,"Genie lead plug detached
",04,2019,99.90,13205,31/05/2018,KPIN,KIRKMAN & JOURDAIN LTD,,,,
Property Services,1050,Building Maintenance,Genie lead Rescue Pump.  Damag,04,2019,81.90,13206,31/05/2018,KPIN,KIRKMAN & JOURDAIN LTD,
Operations,6801,Section 13/16,Cross boarder charges 2017/18,04,2019,93808.00,13250,06/06/2018,KPIN,LONDON FIRE COMMISSIONER,
Property Services,1499,Furniture and Fittings,CCTV sign A3,04,2019,280.20,13251,06/06/2018,KPIN,NORTH ESSEX SIGNS LTD,
Purchasing & Supply,2024,Cleaning Equipment,Cleanline Thin Bleach 4.5% 5L ,04,2019,1.48,13265,07/06/2018,KPIN,BUNZL CLEANING & HYGIENE SUPPLIES,
Purchasing & Supply,1310,Cleaning products,Bryta Dishwasher Powder 5KG (E,04,2019,23.68,13265,07/06/2018,KPIN,BUNZL CLEANING & HYGIENE SUPPLIES,
Purchasing & Supply,2024,Cleaning Equipment,Cleanline Heavy Duty Degreaser,04,2019,3.40,13265,07/06/2018,KPIN,BUNZL CLEANING & HYGIENE SUPPLIES,
Purchasing & Supply,1310,Cleaning products,General Purpose Detergent 5L (,04,2019,7.70,13265,07/06/2018,KPIN,BUNZL CLEANING & HYGIENE SUPPLIES,
Purchasing & Supply,2024,Cleaning Equipment,Cleanline Pine Disinfectant QA,04,2019,1.37,13265,07/06/2018,KPIN,BUNZL CLEANING & HYGIENE SUPPLIES,
Property Services,1499,Furniture and Fittings,Adapt 610 chair with Coccyx Zo,04,2019,498.72,13294,11/06/2018,KPIN,BATES OFFICE SERVICES LIMITED,
Property Services,1040,Planned Works,Smoke Generator Servicing  1st,04,2019,225.00,13308,31/05/2018,KPIN,L & D SERVICES LTD,
Property Services,1040,Planned Works,Smoke Generator Servicing  1st,04,2019,225.00,13308,31/05/2018,KPIN,L & D SERVICES LTD,
Property Services,1040,Planned Works,Smoke Generator Servicing  1st,04,2019,225.00,13308,31/05/2018,KPIN,L & D SERVICES LTD,
Property Services,1040,Planned Works,OVERCHARGE,04,2019,100.00,13308,31/05/2018,KPIN,L & D SERVICES LTD,
Training,0715,In House Operational Training,In House Operational Training,04,2019,915.00,13329,07/06/2018,KPIN,THE OUTREACH ORGANISATION LTD,
Training,4111,Subsistence Allowances,Subsistence Allowances,04,2019,230.00,13329,07/06/2018,KPIN,THE OUTREACH ORGANISATION LTD,
Workshops Management,3050,Leasing Charges,Leasing Charges,04,2019,828.10,13345,31/05/2018,KPIN,LEX AUTOLEASE LTD,
Workshops Management,3050,Leasing Charges,Leasing Charges,04,2019,-7.20,13346,05/06/2018,KPIN,LEX AUTOLEASE LTD,
Workshops Management,3050,Leasing Charges,Leasing Charges,04,2019,4.66,13347,31/05/2018,KPIN,LEX AUTOLEASE LTD,
Workshops Management,3050,Leasing Charges,Leasing Charges,04,2019,-421.73,13348,31/05/2018,KPIN,LEX AUTOLEASE LTD,
Property Services,1499,Furniture and Fittings,4no. Addis 50ltr Roll Top Bins,04,2019,61.20,13350,12/06/2018,KPIN,BATES OFFICE SERVICES LIMITED,
Training,0715,In House Operational Training,In House Operational Training,04,2019,271.64,13390,12/06/2018,KPIN,AIR PRODUCTS PLC,
Stores,B205,Stocks & WIP (Purchasing & Supply Stores),Extinguisher recharge.4 kg dry,04,2019,186.78,13398,13/06/2018,KPIN,THAMESIDE FIRE PROTECTION CO LTD,
Stores,B205,Stocks & WIP (Purchasing & Supply Stores),Extinguisher recharge.4 kg dry,04,2019,33.96,13398,13/06/2018,KPIN,THAMESIDE FIRE PROTECTION CO LTD,
Stores,B205,Stocks & WIP (Purchasing & Supply Stores),"Extinguisher Service call 
",04,2019,10.00,13398,13/06/2018,KPIN,THAMESIDE FIRE PROTECTION CO LTD,,,,
Property Services,4003,Postage Direct Mailing & Carriage,UK Parcel,04,2019,58.61,13406,11/06/2018,KPIN,ROYAL MAIL GROUP LIMITED,
Training,0710,Organisational Development,Organisational Development,04,2019,350.00,13418,31/05/2018,KPIN,ELIESHA TRAINING LIMITED,
Catering,0180,Casual and Temporary Staff,Casual and Temporary Staff,04,2019,143.65,13421,13/06/2018,KPIN,FIRST CALL EMPLOYMENT LTD,
Catering,0180,Casual and Temporary Staff,Casual and Temporary Staff,04,2019,395.03,13421,13/06/2018,KPIN,FIRST CALL EMPLOYMENT LTD,
Catering,0180,Casual and Temporary Staff,Casual and Temporary Staff,04,2019,523.60,13421,13/06/2018,KPIN,FIRST CALL EMPLOYMENT LTD,
Catering,0180,Casual and Temporary Staff,Casual and Temporary Staff,04,2019,93.50,13421,13/06/2018,KPIN,FIRST CALL EMPLOYMENT LTD,
Property Services,1060,Grounds Maintenance,CREDIT RE KPIN12915,04,2019,-262.00,13450,12/06/2018,KPIN,DUNMOW SKIPS LTD,
Property Services,1060,Grounds Maintenance,CREDIT RE KPIN12782,04,2019,-262.00,13451,12/06/2018,KPIN,DUNMOW SKIPS LTD,
Technical Services,2030,Operational Equipment Support,Repair to S/N 257004/3-001-002,04,2019,72.00,13458,14/06/2018,KPIN,S E M S LTD,
Technical Services,2030,Operational Equipment Support,Repair to S/N 257004/0-001-001,04,2019,36.00,13458,14/06/2018,KPIN,S E M S LTD,
Purchasing & Supply,2012,Office/Admin Equipment (incl copiers),MAR 18 - MAY 18 BRAINTREE,04,2019,18.86,13474,07/06/2018,KPIN,RICOH UK LIMITED (Northampton),
Purchasing & Supply,2012,Office/Admin Equipment (incl copiers),MAR 18 - MAY 18 BRAINTREE,04,2019,60.04,13474,07/06/2018,KPIN,RICOH UK LIMITED (Northampton),
Purchasing & Supply,2012,Office/Admin Equipment (incl copiers),MAR 18 - MAY 18 CTCC,04,2019,3.00,13475,07/06/2018,KPIN,RICOH UK LIMITED (Northampton),
Purchasing & Supply,2012,Office/Admin Equipment (incl copiers),MAR 18 - MAY 18 CTCC,04,2019,111.96,13475,07/06/2018,KPIN,RICOH UK LIMITED (Northampton),
Property Services,4003,Postage Direct Mailing & Carriage,POSTAGE RE-CREDIT 11/06/18,04,2019,50.00,13476,14/06/2018,KPIN,NEOPOST LIMITED,
Workshops Management,3050,Leasing Charges,Leasing Charges,04,2019,-4486.50,13478,31/05/2018,KPIN,LEX AUTOLEASE LTD,
Workshops Management,3050,Leasing Charges,Leasing Charges,04,2019,-117.11,13479,31/05/2018,KPIN,LEX AUTOLEASE LTD,
Workshops Management,3050,Leasing Charges,Leasing Charges,04,2019,682.08,13480,08/06/2018,KPIN,LEX AUTOLEASE LTD,
Workshops Management,3050,Leasing Charges,Leasing Charges,04,2019,-612.30,13481,08/06/2018,KPIN,LEX AUTOLEASE LTD,
Purchasing & Supply,2303,Clothing & Footwear,CZ200BK-18T  - Cadenza Straigh,04,2019,23.38,13483,14/06/2018,KPIN,ALEXANDRA  PLC,
Property Services,1499,Furniture and Fittings,x1 Ash Bin plus x1 Smoking Sig,04,2019,6.99,13489,15/06/2018,KPIN,BATES OFFICE SERVICES LIMITED,
Purchasing & Supply,2024,Cleaning Equipment,Stockinette Dishcloth Super Bl,04,2019,3.46,13492,14/06/2018,KPIN,BUNZL CLEANING & HYGIENE SUPPLIES,
Purchasing & Supply,2024,Cleaning Equipment,Cleanline Food Safe Sanitiser ,04,2019,9.60,13492,14/06/2018,KPIN,BUNZL CLEANING & HYGIENE SUPPLIES,
Purchasing & Supply,2024,Cleaning Equipment,Bryta Oven & Grill Foam 500ML ,04,2019,5.98,13492,14/06/2018,KPIN,BUNZL CLEANING & HYGIENE SUPPLIES,
Purchasing & Supply,2024,Cleaning Equipment,Jumbo Sponge 220x120x50MM (EA),04,2019,0.68,13492,14/06/2018,KPIN,BUNZL CLEANING & HYGIENE SUPPLIES,
Purchasing & Supply,2024,Cleaning Equipment,Wash Leather 2 Foot Square (EA,04,2019,9.12,13492,14/06/2018,KPIN,BUNZL CLEANING & HYGIENE SUPPLIES,
Purchasing & Supply,2024,Cleaning Equipment,Cleanline Glass & Stainless St,04,2019,4.56,13492,14/06/2018,KPIN,BUNZL CLEANING & HYGIENE SUPPLIES,
Purchasing & Supply,2024,Cleaning Equipment,Cleanline Lavender Polish Aero,04,2019,1.70,13492,14/06/2018,KPIN,BUNZL CLEANING & HYGIENE SUPPLIES,
Purchasing & Supply,2024,Cleaning Equipment,Dish Washing Brush Plastic Sma,04,2019,0.74,13492,14/06/2018,KPIN,BUNZL CLEANING & HYGIENE SUPPLIES,
Purchasing & Supply,2024,Cleaning Equipment,Cleanline Pine Disinfectant QA,04,2019,4.11,13492,14/06/2018,KPIN,BUNZL CLEANING & HYGIENE SUPPLIES,
Purchasing & Supply,2024,Cleaning Equipment,Cleanline Heavy Duty Degreaser,04,2019,3.40,13492,14/06/2018,KPIN,BUNZL CLEANING & HYGIENE SUPPLIES,
Purchasing & Supply,2024,Cleaning Equipment,Shield 3 Way Toilet Cleaner 1L,04,2019,4.54,13492,14/06/2018,KPIN,BUNZL CLEANING & HYGIENE SUPPLIES,
Purchasing & Supply,1310,Cleaning products,Builders Bucket Heavy Duty Bla,04,2019,3.22,13492,14/06/2018,KPIN,BUNZL CLEANING & HYGIENE SUPPLIES,
Purchasing & Supply,1310,Cleaning products,Viakal Limescale Remover 500ML,04,2019,3.72,13492,14/06/2018,KPIN,BUNZL CLEANING & HYGIENE SUPPLIES,
Purchasing & Supply,2024,Cleaning Equipment,Shades Air Fresh Summer Flower,04,2019,3.68,13492,14/06/2018,KPIN,BUNZL CLEANING & HYGIENE SUPPLIES,
Purchasing & Supply,2024,Cleaning Equipment,Cleanline Eco Hard Surface Cle,04,2019,6.11,13492,14/06/2018,KPIN,BUNZL CLEANING & HYGIENE SUPPLIES,
Training,4111,Subsistence Allowances,Subsistence Allowances,04,2019,1.50,13499,11/05/2018,KPIN,SARAHS CATERING LIMITED,
Training,4111,Subsistence Allowances,Subsistence Allowances,04,2019,30.00,13499,11/05/2018,KPIN,SARAHS CATERING LIMITED,
Training,4111,Subsistence Allowances,Subsistence Allowances,04,2019,20.25,13499,11/05/2018,KPIN,SARAHS CATERING LIMITED,
Training,4111,Subsistence Allowances,Subsistence Allowances,04,2019,40.00,13499,11/05/2018,KPIN,SARAHS CATERING LIMITED,
Training,4111,Subsistence Allowances,Subsistence Allowances,04,2019,33.75,13499,11/05/2018,KPIN,SARAHS CATERING LIMITED,
Training,4111,Subsistence Allowances,Subsistence Allowances,04,2019,60.75,13499,11/05/2018,KPIN,SARAHS CATERING LIMITED,
Training,4111,Subsistence Allowances,Subsistence Allowances,04,2019,33.75,13499,11/05/2018,KPIN,SARAHS CATERING LIMITED,
Training,4111,Subsistence Allowances,Subsistence Allowances,04,2019,2.00,13499,11/05/2018,KPIN,SARAHS CATERING LIMITED,
Training,4111,Subsistence Allowances,Subsistence Allowances,04,2019,27.00,13499,11/05/2018,KPIN,SARAHS CATERING LIMITED,
Water Services,2087,Water Services,CCC35845 3.9KG PROPANE,04,2019,8.23,13512,08/06/2018,KPIN,CALOR GAS LIMITED,
Finance & Pay,2903,Consultancy Fees,IAS19 Actuary Uniform fees 17 ,04,2019,2110.00,13519,08/06/2018,KPIN,ESSEX PENSION FUND,
Finance & Pay,2903,Consultancy Fees,IAS19 Actuary LGPS fees ,04,2019,300.00,13519,08/06/2018,KPIN,ESSEX PENSION FUND,
Property Services,1499,Furniture and Fittings,Ergo Human Task Mesh chair in ,04,2019,347.50,13528,19/06/2018,KPIN,BATES OFFICE SERVICES LIMITED,
Property Services,1499,Furniture and Fittings,Ergo Human Task Mesh chair in,04,2019,347.50,13529,19/06/2018,KPIN,BATES OFFICE SERVICES LIMITED,
Water Services,2087,Water Services,H9812 / HW1313,04,2019,424.00,13535,07/06/2018,KPIN,NORTHUMBRIAN WATER LTD (HYDRANTS),
Operations,4110,Travelling Expenses,Travelling Expenses,04,2019,25.60,13537,19/06/2018,KPIN,CAPITA TRAVEL AND EVENTS LTD,
Operations,4110,Travelling Expenses,Travelling Expenses,04,2019,3.50,13537,19/06/2018,KPIN,CAPITA TRAVEL AND EVENTS LTD,
Operations,4110,Travelling Expenses,Travelling Expenses,04,2019,59.60,13537,19/06/2018,KPIN,CAPITA TRAVEL AND EVENTS LTD,
Operations,4110,Travelling Expenses,Travelling Expenses,04,2019,43.90,13537,19/06/2018,KPIN,CAPITA TRAVEL AND EVENTS LTD,
Operations,4110,Travelling Expenses,Travelling Expenses,04,2019,62.20,13537,19/06/2018,KPIN,CAPITA TRAVEL AND EVENTS LTD,
Operations,4110,Travelling Expenses,Travelling Expenses,04,2019,-17.30,13537,19/06/2018,KPIN,CAPITA TRAVEL AND EVENTS LTD,
Operations,4110,Travelling Expenses,Travelling Expenses,04,2019,39.50,13537,19/06/2018,KPIN,CAPITA TRAVEL AND EVENTS LTD,
Operations,4110,Travelling Expenses,Travelling Expenses,04,2019,3.50,13537,19/06/2018,KPIN,CAPITA TRAVEL AND EVENTS LTD,
Operations,4110,Travelling Expenses,Travelling Expenses,04,2019,10.50,13537,19/06/2018,KPIN,CAPITA TRAVEL AND EVENTS LTD,
Operations,4110,Travelling Expenses,Travelling Expenses,04,2019,10.50,13537,19/06/2018,KPIN,CAPITA TRAVEL AND EVENTS LTD,
Operations,4110,Travelling Expenses,Travelling Expenses,04,2019,21.10,13537,19/06/2018,KPIN,CAPITA TRAVEL AND EVENTS LTD,
Operations,4110,Travelling Expenses,Travelling Expenses,04,2019,3.50,13537,19/06/2018,KPIN,CAPITA TRAVEL AND EVENTS LTD,
Operations,4110,Travelling Expenses,Travelling Expenses,04,2019,32.30,13537,19/06/2018,KPIN,CAPITA TRAVEL AND EVENTS LTD,
Operations,4110,Travelling Expenses,Travelling Expenses,04,2019,43.70,13537,19/06/2018,KPIN,CAPITA TRAVEL AND EVENTS LTD,
Operations,4110,Travelling Expenses,Travelling Expenses,04,2019,7.00,13537,19/06/2018,KPIN,CAPITA TRAVEL AND EVENTS LTD,
Operations,4110,Travelling Expenses,Travelling Expenses,04,2019,60.20,13537,19/06/2018,KPIN,CAPITA TRAVEL AND EVENTS LTD,
Operations,4110,Travelling Expenses,Travelling Expenses,04,2019,62.20,13537,19/06/2018,KPIN,CAPITA TRAVEL AND EVENTS LTD,
Operations,4110,Travelling Expenses,Travelling Expenses,04,2019,31.90,13537,19/06/2018,KPIN,CAPITA TRAVEL AND EVENTS LTD,
Operations,4110,Travelling Expenses,Travelling Expenses,04,2019,31.30,13537,19/06/2018,KPIN,CAPITA TRAVEL AND EVENTS LTD,
Operations,4110,Travelling Expenses,Travelling Expenses,04,2019,59.60,13537,19/06/2018,KPIN,CAPITA TRAVEL AND EVENTS LTD,
Operations,4110,Travelling Expenses,Travelling Expenses,04,2019,14.00,13537,19/06/2018,KPIN,CAPITA TRAVEL AND EVENTS LTD,
Operations,4110,Travelling Expenses,Travelling Expenses,04,2019,31.90,13537,19/06/2018,KPIN,CAPITA TRAVEL AND EVENTS LTD,
Operations,4110,Travelling Expenses,Travelling Expenses,04,2019,59.60,13537,19/06/2018,KPIN,CAPITA TRAVEL AND EVENTS LTD,
Purchasing & Supply,4001,Stationery,Black n Red Wirebound Notebook,04,2019,9.86,13539,19/06/2018,KPIN,OFFICE IS LIMITED,
Purchasing & Supply,4001,Stationery,WB CONTRACT PENCIL RUBBER TIPP,04,2019,0.39,13539,19/06/2018,KPIN,OFFICE IS LIMITED,
Purchasing & Supply,4001,Stationery,Q-CONNECT DRYWIPE ERASER WASHA,04,2019,7.38,13539,19/06/2018,KPIN,OFFICE IS LIMITED,
Purchasing & Supply,4001,Stationery,WB MEMO PAD A4 FEINT 80LF,04,2019,3.32,13539,19/06/2018,KPIN,OFFICE IS LIMITED,
Purchasing & Supply,4001,Stationery,Q-Connect Whiteboard Surface C,04,2019,2.85,13539,19/06/2018,KPIN,OFFICE IS LIMITED,
Purchasing & Supply,4001,Stationery,XEROX A4 RECYCLED SUPREME PAPE,04,2019,29.10,13539,19/06/2018,KPIN,OFFICE IS LIMITED,
Purchasing & Supply,4001,Stationery,WHITE BOX RUBBER BANDS 454GM S,04,2019,2.18,13539,19/06/2018,KPIN,OFFICE IS LIMITED,
Purchasing & Supply,4001,Stationery,Concord A4 10-Part 1-10 White,04,2019,38.70,13540,19/06/2018,KPIN,OFFICE IS LIMITED,
Purchasing & Supply,4001,Stationery,Elba Panorama Blue A4 Plus,04,2019,107.37,13540,19/06/2018,KPIN,OFFICE IS LIMITED,
Property Services,0180,Casual and Temporary Staff,Casual and Temporary Staff,04,2019,335.76,13545,15/06/2018,KPIN,PURSUIT RESOURCES GROUP LTD,
Property Services,0180,Casual and Temporary Staff,Casual and Temporary Staff,04,2019,111.92,13545,15/06/2018,KPIN,PURSUIT RESOURCES GROUP LTD,
Not Analysed,B118,Asset Protection,1718/420 Various Stations Elec,04,2019,8380.68,13572,31/05/2018,KPIN,MCBS ELECTRICAL LTD,
Training,4112,Conferences & Seminars,On-Call FF working group meeti,04,2019,120.00,13574,20/06/2018,KPIN,CFOA SERVICES LTD,
Training,0702,External Training - L&D Panel,External Training - L&D Panel,04,2019,6285.00,13575,20/06/2018,KPIN,3S FIRE LTD,
Training,0702,External Training - L&D Panel,External Training - L&D Panel,04,2019,2095.00,13575,20/06/2018,KPIN,3S FIRE LTD,
Property Services,1499,Furniture and Fittings,hooks/fixtures to secure mops ,04,2019,162.98,13591,20/06/2018,KPIN,NORMAN DAVID MAINTENANCE,
ITTP Development,4005,IT Consumables,"Travel, accommodation & expens",04,2019,357.39,13594,20/06/2018,KPIN,SAPPHIRE TECHNOLOGIES LTD,
Property Services,0180,Casual and Temporary Staff,Casual and Temporary Staff,04,2019,79.20,13614,20/06/2018,KPIN,HAYS CONSTRUCTION & PROPERTY,
Property Services,0180,Casual and Temporary Staff,Casual and Temporary Staff,04,2019,91.85,13614,20/06/2018,KPIN,HAYS CONSTRUCTION & PROPERTY,
Property Services,0180,Casual and Temporary Staff,Casual and Temporary Staff,04,2019,1178.51,13614,20/06/2018,KPIN,HAYS CONSTRUCTION & PROPERTY,
Not Analysed,B114,Fixed Assets Under Construction ITC Equipment,ATS Key Fobs,04,2019,258.50,13626,08/03/2018,KPIN,CARVAL COMPUTING LIMITED,
Property Services,1060,Grounds Maintenance,To supply 6 yard skip liaise w,04,2019,198.00,13666,21/06/2018,KPIN,DUNMOW SKIPS LTD,
Property Services,1499,Furniture and Fittings,New lockers for nutty Can we p,04,2019,305.64,13671,22/06/2018,KPIN,BATES OFFICE SERVICES LIMITED,
Purchasing & Supply,1310,Cleaning products,Bryta Dishwasher Powder 5KG (E,04,2019,11.84,13673,21/06/2018,KPIN,BUNZL CLEANING & HYGIENE SUPPLIES,
Purchasing & Supply,2024,Cleaning Equipment,6663 Scott Performance Hand To,04,2019,48.16,13673,21/06/2018,KPIN,BUNZL CLEANING & HYGIENE SUPPLIES,
Purchasing & Supply,2024,Cleaning Equipment,Enclosed Toilet Brush Angled &,04,2019,10.80,13673,21/06/2018,KPIN,BUNZL CLEANING & HYGIENE SUPPLIES,
Purchasing & Supply,1310,Cleaning products,General Purpose Detergent 5L (,04,2019,3.85,13673,21/06/2018,KPIN,BUNZL CLEANING & HYGIENE SUPPLIES,
Technical Services,2031,Managed Personal Protective Equipment,Activity No. 93957 - replaceme,04,2019,38.97,13681,21/06/2018,KPIN,BALLYCLARE LIMITED,
Water Services,2087,Water Services,FS00000398,04,2019,531.00,13683,19/06/2018,KPIN,AFFINITY WATER LIMITED (HYDRANTS),
Stores,B205,Stocks & WIP (Purchasing & Supply Stores),T-Shirt - Blue With Logo - M,04,2019,2610.00,13686,19/06/2018,KPIN,HUNTER APPAREL SOLUTIONS LTD,
Stores,B205,Stocks & WIP (Purchasing & Supply Stores),T-Shirt - Blue With Logo - S,04,2019,652.50,13686,19/06/2018,KPIN,HUNTER APPAREL SOLUTIONS LTD,
Property Services,1060,Grounds Maintenance,Grounds Maintenance - May,04,2019,42.60,13691,17/05/2018,KPIN,MITIE LANDSCAPES LIMITED,
Property Services,1060,Grounds Maintenance,Grounds Maintenance - May,04,2019,44.21,13691,17/05/2018,KPIN,MITIE LANDSCAPES LIMITED,
Property Services,1060,Grounds Maintenance,Grounds Maintenance - May,04,2019,35.77,13691,17/05/2018,KPIN,MITIE LANDSCAPES LIMITED,
Property Services,1060,Grounds Maintenance,Grounds Maintenance - May,04,2019,17.88,13691,17/05/2018,KPIN,MITIE LANDSCAPES LIMITED,
Property Services,1060,Grounds Maintenance,Grounds Maintenance - May,04,2019,22.10,13691,17/05/2018,KPIN,MITIE LANDSCAPES LIMITED,
Property Services,1060,Grounds Maintenance,Grounds Maintenance - May,04,2019,68.85,13691,17/05/2018,KPIN,MITIE LANDSCAPES LIMITED,
Property Services,1060,Grounds Maintenance,Grounds Maintenance - May,04,2019,59.95,13691,17/05/2018,KPIN,MITIE LANDSCAPES LIMITED,
Property Services,1060,Grounds Maintenance,Grounds Maintenance - May,04,2019,43.35,13691,17/05/2018,KPIN,MITIE LANDSCAPES LIMITED,
Property Services,1060,Grounds Maintenance,Grounds Maintenance - May,04,2019,98.32,13691,17/05/2018,KPIN,MITIE LANDSCAPES LIMITED,
Property Services,1060,Grounds Maintenance,Grounds Maintenance - May,04,2019,42.06,13691,17/05/2018,KPIN,MITIE LANDSCAPES LIMITED,
Property Services,1060,Grounds Maintenance,Grounds Maintenance - May,04,2019,84.12,13691,17/05/2018,KPIN,MITIE LANDSCAPES LIMITED,
Property Services,1060,Grounds Maintenance,Grounds Maintenance - May,04,2019,334.36,13691,17/05/2018,KPIN,MITIE LANDSCAPES LIMITED,
Property Services,1060,Grounds Maintenance,Grounds Maintenance - May,04,2019,352.05,13691,17/05/2018,KPIN,MITIE LANDSCAPES LIMITED,
Property Services,1060,Grounds Maintenance,Grounds Maintenance - May,04,2019,31.62,13691,17/05/2018,KPIN,MITIE LANDSCAPES LIMITED,
Property Services,1060,Grounds Maintenance,Grounds Maintenance - May,04,2019,51.58,13691,17/05/2018,KPIN,MITIE LANDSCAPES LIMITED,
Property Services,1060,Grounds Maintenance,Grounds Maintenance - May,04,2019,76.76,13691,17/05/2018,KPIN,MITIE LANDSCAPES LIMITED,
Property Services,1060,Grounds Maintenance,Grounds Maintenance - May,04,2019,25.86,13691,17/05/2018,KPIN,MITIE LANDSCAPES LIMITED,
Property Services,1060,Grounds Maintenance,Grounds Maintenance - May,04,2019,117.78,13691,17/05/2018,KPIN,MITIE LANDSCAPES LIMITED,
Property Services,1060,Grounds Maintenance,Grounds Maintenance - May,04,2019,162.89,13691,17/05/2018,KPIN,MITIE LANDSCAPES LIMITED,
Property Services,1060,Grounds Maintenance,Grounds Maintenance - May,04,2019,35.77,13691,17/05/2018,KPIN,MITIE LANDSCAPES LIMITED,
Property Services,1060,Grounds Maintenance,Grounds Maintenance - May,04,2019,35.77,13691,17/05/2018,KPIN,MITIE LANDSCAPES LIMITED,
Property Services,1060,Grounds Maintenance,Grounds Maintenance - May,04,2019,55.73,13691,17/05/2018,KPIN,MITIE LANDSCAPES LIMITED,
Property Services,1060,Grounds Maintenance,Grounds Maintenance - May,04,2019,84.12,13691,17/05/2018,KPIN,MITIE LANDSCAPES LIMITED,
Property Services,1060,Grounds Maintenance,Grounds Maintenance - May,04,2019,35.77,13691,17/05/2018,KPIN,MITIE LANDSCAPES LIMITED,
Property Services,1060,Grounds Maintenance,Grounds Maintenance - May,04,2019,23.18,13691,17/05/2018,KPIN,MITIE LANDSCAPES LIMITED,
Property Services,1060,Grounds Maintenance,Grounds Maintenance - May,04,2019,9.48,13691,17/05/2018,KPIN,MITIE LANDSCAPES LIMITED,
Property Services,1060,Grounds Maintenance,Grounds Maintenance - May,04,2019,29.47,13691,17/05/2018,KPIN,MITIE LANDSCAPES LIMITED,
Property Services,1060,Grounds Maintenance,Grounds Maintenance - May,04,2019,18.96,13691,17/05/2018,KPIN,MITIE LANDSCAPES LIMITED,
Property Services,1060,Grounds Maintenance,Grounds Maintenance - May,04,2019,37.91,13691,17/05/2018,KPIN,MITIE LANDSCAPES LIMITED,
Property Services,1060,Grounds Maintenance,Grounds Maintenance - May,04,2019,52.95,13691,17/05/2018,KPIN,MITIE LANDSCAPES LIMITED,
Property Services,1060,Grounds Maintenance,Grounds Maintenance - May,04,2019,17.88,13691,17/05/2018,KPIN,MITIE LANDSCAPES LIMITED,
Property Services,1060,Grounds Maintenance,Grounds Maintenance - May,04,2019,110.38,13691,17/05/2018,KPIN,MITIE LANDSCAPES LIMITED,
Property Services,1060,Grounds Maintenance,Grounds Maintenance - May,04,2019,37.91,13691,17/05/2018,KPIN,MITIE LANDSCAPES LIMITED,
Property Services,1060,Grounds Maintenance,Grounds Maintenance - May,04,2019,86.27,13691,17/05/2018,KPIN,MITIE LANDSCAPES LIMITED,
Purchasing & Supply,2024,Cleaning Equipment,Cleanline Thin Bleach 4.5% 5L ,04,2019,8.88,13704,22/06/2018,KPIN,BUNZL CLEANING & HYGIENE SUPPLIES,
Purchasing & Supply,2024,Cleaning Equipment,Swarfega Lemon Hand Cleaner 4L,04,2019,12.55,13704,22/06/2018,KPIN,BUNZL CLEANING & HYGIENE SUPPLIES,
Purchasing & Supply,2024,Cleaning Equipment,Cleanline Heavy Duty Degreaser,04,2019,13.60,13704,22/06/2018,KPIN,BUNZL CLEANING & HYGIENE SUPPLIES,
Purchasing & Supply,1310,Cleaning products,General Purpose Detergent 5L (,04,2019,23.10,13704,22/06/2018,KPIN,BUNZL CLEANING & HYGIENE SUPPLIES,
Property Services,1499,Furniture and Fittings,2no Ergohuman Task blue mesh c,04,2019,347.50,13705,25/06/2018,KPIN,BATES OFFICE SERVICES LIMITED,
Property Services,1302,Electricity,13 TYRELLS WAY FIXED CHG,04,2019,25.57,13706,19/06/2018,KPIN,SOUTHERN ELECTRIC PLC,
Property Services,1301,Gas,13 TYRELLS WAY FIXED CHG,04,2019,25.57,13707,19/06/2018,KPIN,SOUTHERN ELECTRIC PLC,
Training,0715,In House Operational Training,In House Operational Training,04,2019,445.00,13711,21/06/2018,KPIN,GOVNET COMMUNICATIONS,
Training,0715,In House Operational Training,In House Operational Training,04,2019,395.00,13711,21/06/2018,KPIN,GOVNET COMMUNICATIONS,
Property Services,1060,Grounds Maintenance,40 yard skip,04,2019,600.00,13712,21/06/2018,KPIN,T D & A M BUGG LTD,
Operations,2401,Laundry,Cleaning of Thermal Undersuits,04,2019,27.08,13713,20/06/2018,KPIN,BRISTOL UNIFORMS LTD RE BRISTOL CARE,
Property Services,1499,Furniture and Fittings,Please provide 2no. pedestal K,04,2019,11.65,13776,25/06/2018,KPIN,BRENTWOOD LOCK & SAFE CO LTD,
Training,0715,In House Operational Training,In House Operational Training,04,2019,120.00,13777,25/06/2018,KPIN,A12 MACHINERY LTD,
Training,0715,In House Operational Training,In House Operational Training,04,2019,25.00,13777,25/06/2018,KPIN,A12 MACHINERY LTD,
Training,0715,In House Operational Training,In House Operational Training,04,2019,78.00,13777,25/06/2018,KPIN,A12 MACHINERY LTD,
Workshops Management,3050,Leasing Charges,Leasing Charges,04,2019,4866.29,13779,18/06/2018,KPIN,LEX AUTOLEASE LTD,
Water Services,2087,Water Services,CCC27067 3.9KG PROPANE,04,2019,8.23,13826,18/06/2018,KPIN,CALOR GAS LIMITED,
Police Collaboration,2903,Consultancy Fees,Evaluation Work & Exps,04,2019,2919.75,13827,26/03/2018,KPIN,NOTTINGHAM CONSULTANTS LTD,
Training,0707,Operational Training Contracts,All works as per schedule outs,04,2019,1420.00,13830,14/06/2018,KPIN,K P EYRE,
Training,0707,Operational Training Contracts,To provide initial and mainten,04,2019,5500.00,13830,14/06/2018,KPIN,K P EYRE,
Property Services,1330,Building Cleaning,Monthly Clean - June,04,2019,1221.56,13831,28/06/2018,KPIN,MONTHIND CLEAN LLP,
Property Services,1330,Building Cleaning,Monthly Clean - June,04,2019,628.26,13831,28/06/2018,KPIN,MONTHIND CLEAN LLP,
Property Services,1330,Building Cleaning,Monthly Clean - June,04,2019,987.14,13831,28/06/2018,KPIN,MONTHIND CLEAN LLP,
Property Services,1330,Building Cleaning,Monthly Clean - June,04,2019,1285.97,13831,28/06/2018,KPIN,MONTHIND CLEAN LLP,
Property Services,1330,Building Cleaning,Monthly Clean - June,04,2019,1064.40,13831,28/06/2018,KPIN,MONTHIND CLEAN LLP,
Property Services,1330,Building Cleaning,Monthly Clean - June,04,2019,1983.37,13831,28/06/2018,KPIN,MONTHIND CLEAN LLP,
Property Services,1330,Building Cleaning,Monthly Clean - June,04,2019,604.59,13831,28/06/2018,KPIN,MONTHIND CLEAN LLP,
Property Services,1330,Building Cleaning,Monthly Clean - June,04,2019,1329.19,13831,28/06/2018,KPIN,MONTHIND CLEAN LLP,
Property Services,1330,Building Cleaning,Monthly Clean - June,04,2019,859.40,13831,28/06/2018,KPIN,MONTHIND CLEAN LLP,
Property Services,1330,Building Cleaning,Monthly Clean - June,04,2019,4221.03,13831,28/06/2018,KPIN,MONTHIND CLEAN LLP,
Property Services,1330,Building Cleaning,Monthly Clean - June,04,2019,1158.71,13831,28/06/2018,KPIN,MONTHIND CLEAN LLP,
Property Services,1330,Building Cleaning,Monthly Clean - June,04,2019,2016.74,13831,28/06/2018,KPIN,MONTHIND CLEAN LLP,
Property Services,1330,Building Cleaning,Monthly Clean - June,04,2019,506.40,13831,28/06/2018,KPIN,MONTHIND CLEAN LLP,
Property Services,1330,Building Cleaning,Monthly Clean - June,04,2019,1114.68,13831,28/06/2018,KPIN,MONTHIND CLEAN LLP,
Property Services,1330,Building Cleaning,Monthly Clean - June,04,2019,1352.29,13831,28/06/2018,KPIN,MONTHIND CLEAN LLP,
Property Services,1330,Building Cleaning,Monthly Clean - June,04,2019,1046.23,13831,28/06/2018,KPIN,MONTHIND CLEAN LLP,
Property Services,1330,Building Cleaning,Monthly Clean - June,04,2019,834.89,13831,28/06/2018,KPIN,MONTHIND CLEAN LLP,
Property Services,1330,Building Cleaning,Monthly Clean - June,04,2019,1064.40,13831,28/06/2018,KPIN,MONTHIND CLEAN LLP,
Property Services,1040,Planned Works,Vermin Control Bi Monthly,04,2019,65.00,13835,25/06/2018,KPIN,MID-ESSEX PEST CONTROL,
Training,4111,Subsistence Allowances,Subsistence Allowances,04,2019,75.00,13838,20/06/2018,KPIN,SERCO LIMITED,
Training,0715,In House Operational Training,In House Operational Training,04,2019,1950.00,13838,20/06/2018,KPIN,SERCO LIMITED,
ICT,2510,IT Communications,Rental Managed IP Clear ADSL C,04,2019,1625.00,13840,15/06/2018,KPIN,BT GLOBAL SERVICES,
ICT,2510,IT Communications,CSAC327971 IP Clear Year 1 Ann,04,2019,1470.00,13842,18/06/2018,KPIN,BT GLOBAL SERVICES,
ICT,2510,IT Communications,Retrospective PO for Microsoft,04,2019,1852.20,13842,18/06/2018,KPIN,BT GLOBAL SERVICES,
ICT,2510,IT Communications,Maintenance Business Premium C,04,2019,118.12,13842,18/06/2018,KPIN,BT GLOBAL SERVICES,
ICT,2510,IT Communications,Microsoft cloud connect direct,04,2019,720.30,13842,18/06/2018,KPIN,BT GLOBAL SERVICES,
ICT,2510,IT Communications,Fault Management Year 1,04,2019,8.71,13842,18/06/2018,KPIN,BT GLOBAL SERVICES,
ICT,2510,IT Communications,CSAC327971 IP Clear Year 1 Ann,04,2019,689.00,13842,18/06/2018,KPIN,BT GLOBAL SERVICES,
ICT,2510,IT Communications,Configuration management - Arc,04,2019,9.23,13842,18/06/2018,KPIN,BT GLOBAL SERVICES,
Purchasing & Supply,4001,Stationery,CREDIT KPIN 13538,04,2019,-174.80,13843,26/06/2018,KPIN,OFFICE IS LIMITED,
Training,4111,Subsistence Allowances,Subsistence Allowances,04,2019,520.00,13844,25/06/2018,KPIN,THE OUTREACH ORGANISATION LTD,
Training,0702,External Training - L&D Panel,External Training - L&D Panel,04,2019,2560.00,13844,25/06/2018,KPIN,THE OUTREACH ORGANISATION LTD,
Property Services,1040,Planned Works,Vermin Control Bi Monthly,04,2019,65.00,13849,26/06/2018,KPIN,MID-ESSEX PEST CONTROL,
Training,0702,External Training - L&D Panel,External Training - L&D Panel,04,2019,1800.00,13855,26/06/2018,KPIN,COMPUTER AIDED DEVELOPMENT CORPORATION,
Training,0702,External Training - L&D Panel,External Training - L&D Panel,04,2019,3600.00,13855,26/06/2018,KPIN,COMPUTER AIDED DEVELOPMENT CORPORATION,
Training,0702,External Training - L&D Panel,External Training - L&D Panel,04,2019,225.70,13855,26/06/2018,KPIN,COMPUTER AIDED DEVELOPMENT CORPORATION,
ICT,4005,IT Consumables,Black Floor mounted Rack (16U),04,2019,323.00,13856,26/06/2018,KPIN,CONFERENCE COMMUNICATIONS LTD,
ICT,4005,IT Consumables,Stage 1 (on site) - Project Ma,04,2019,600.00,13856,26/06/2018,KPIN,CONFERENCE COMMUNICATIONS LTD,
ICT,4005,IT Consumables,AMX Programming Changes,04,2019,800.00,13856,26/06/2018,KPIN,CONFERENCE COMMUNICATIONS LTD,
ICT,4005,IT Consumables,Cables Connectors and consumab,04,2019,270.00,13856,26/06/2018,KPIN,CONFERENCE COMMUNICATIONS LTD,
ICT,4005,IT Consumables,Stage 2 (on site) -Commissioni,04,2019,160.00,13856,26/06/2018,KPIN,CONFERENCE COMMUNICATIONS LTD,
Property Services,0180,Casual and Temporary Staff,Casual and Temporary Staff,04,2019,114.64,13859,26/06/2018,KPIN,HAYS CONSTRUCTION & PROPERTY,
Property Services,0180,Casual and Temporary Staff,Casual and Temporary Staff,04,2019,1232.06,13859,26/06/2018,KPIN,HAYS CONSTRUCTION & PROPERTY,
Property Services,1050,Building Maintenance,"Recently installed Bleep test,",04,2019,650.00,13865,20/06/2018,KPIN,R J SPECIALIST COATINGS,
Property Services,1050,Building Maintenance,to repaint SentryBox outside B,04,2019,125.00,13866,20/06/2018,KPIN,R J SPECIALIST COATINGS,
Property Services,1040,Planned Works,EyeBolt/Height Access Equipmen,04,2019,525.00,13867,25/06/2018,KPIN,HCL SAFETY,
Training,0707,Operational Training Contracts,All works as per schedule outs,04,2019,70.30,13870,14/06/2018,KPIN,K P EYRE,
Property Services,1040,Planned Works,Drying Rack Servicing 1st half,04,2019,130.00,13872,27/06/2018,KPIN,A T B PLUMBING & BUILDING SERVICES LTD,
Property Services,1040,Planned Works,Drying Rack Servicing 1st half,04,2019,130.00,13872,27/06/2018,KPIN,A T B PLUMBING & BUILDING SERVICES LTD,
Property Services,1040,Planned Works,Drying Rack Servicing 1st half,04,2019,130.00,13872,27/06/2018,KPIN,A T B PLUMBING & BUILDING SERVICES LTD,
Property Services,1040,Planned Works,Drying Rack Servicing 1st half,04,2019,260.00,13872,27/06/2018,KPIN,A T B PLUMBING & BUILDING SERVICES LTD,
Property Services,1040,Planned Works,Drying Rack Servicing 1st half,04,2019,130.00,13872,27/06/2018,KPIN,A T B PLUMBING & BUILDING SERVICES LTD,
Property Services,1040,Planned Works,Drying Rack Servicing 1st half,04,2019,260.00,13872,27/06/2018,KPIN,A T B PLUMBING & BUILDING SERVICES LTD,
Property Services,1040,Planned Works,Drying Rack Servicing 1st half,04,2019,260.00,13872,27/06/2018,KPIN,A T B PLUMBING & BUILDING SERVICES LTD,
Property Services,1040,Planned Works,Drying Rack Servicing 1st half,04,2019,130.00,13872,27/06/2018,KPIN,A T B PLUMBING & BUILDING SERVICES LTD,
Property Services,1040,Planned Works,Drying Rack Servicing 1st half,04,2019,130.00,13872,27/06/2018,KPIN,A T B PLUMBING & BUILDING SERVICES LTD,
Property Services,1040,Planned Works,Drying Rack Servicing 1st half,04,2019,130.00,13872,27/06/2018,KPIN,A T B PLUMBING & BUILDING SERVICES LTD,
Property Services,1040,Planned Works,Drying Rack Servicing 1st half,04,2019,130.00,13872,27/06/2018,KPIN,A T B PLUMBING & BUILDING SERVICES LTD,
Property Services,1040,Planned Works,Drying Rack Servicing 1st half,04,2019,130.00,13872,27/06/2018,KPIN,A T B PLUMBING & BUILDING SERVICES LTD,
Property Services,1040,Planned Works,Drying Rack Servicing 1st half,04,2019,260.00,13872,27/06/2018,KPIN,A T B PLUMBING & BUILDING SERVICES LTD,
Property Services,1040,Planned Works,Drying Rack Servicing 1st half,04,2019,130.00,13872,27/06/2018,KPIN,A T B PLUMBING & BUILDING SERVICES LTD,
Property Services,1040,Planned Works,Drying Rack Servicing 1st half,04,2019,390.00,13872,27/06/2018,KPIN,A T B PLUMBING & BUILDING SERVICES LTD,
Property Services,1040,Planned Works,Drying Rack Servicing 1st half,04,2019,260.00,13872,27/06/2018,KPIN,A T B PLUMBING & BUILDING SERVICES LTD,
Property Services,1040,Planned Works,Drying Rack Servicing 1st half,04,2019,130.00,13872,27/06/2018,KPIN,A T B PLUMBING & BUILDING SERVICES LTD,
Property Services,1040,Planned Works,Drying Rack Servicing 1st half,04,2019,260.00,13872,27/06/2018,KPIN,A T B PLUMBING & BUILDING SERVICES LTD,
Property Services,1040,Planned Works,Drying Rack Servicing 1st half,04,2019,130.00,13872,27/06/2018,KPIN,A T B PLUMBING & BUILDING SERVICES LTD,
Property Services,1040,Planned Works,Drying Rack Servicing 1st half,04,2019,260.00,13872,27/06/2018,KPIN,A T B PLUMBING & BUILDING SERVICES LTD,
Property Services,1040,Planned Works,Drying Rack Servicing 1st half,04,2019,130.00,13872,27/06/2018,KPIN,A T B PLUMBING & BUILDING SERVICES LTD,
Property Services,1040,Planned Works,Drying Rack Servicing 1st half,04,2019,130.00,13872,27/06/2018,KPIN,A T B PLUMBING & BUILDING SERVICES LTD,
Property Services,1040,Planned Works,Drying Rack Servicing 1st half,04,2019,130.00,13872,27/06/2018,KPIN,A T B PLUMBING & BUILDING SERVICES LTD,
Property Services,1040,Planned Works,Drying Rack Servicing 1st half,04,2019,130.00,13872,27/06/2018,KPIN,A T B PLUMBING & BUILDING SERVICES LTD,
Property Services,1040,Planned Works,Drying Rack Servicing 1st half,04,2019,260.00,13872,27/06/2018,KPIN,A T B PLUMBING & BUILDING SERVICES LTD,
Property Services,1040,Planned Works,Drying Rack Servicing 1st half,04,2019,130.00,13872,27/06/2018,KPIN,A T B PLUMBING & BUILDING SERVICES LTD,
Property Services,1040,Planned Works,Drying Rack Servicing 1st half,04,2019,130.00,13872,27/06/2018,KPIN,A T B PLUMBING & BUILDING SERVICES LTD,
Property Services,1040,Planned Works,Drying Rack Servicing 1st half,04,2019,260.00,13872,27/06/2018,KPIN,A T B PLUMBING & BUILDING SERVICES LTD,
Property Services,1040,Planned Works,Drying Rack Servicing 1st half,04,2019,130.00,13872,27/06/2018,KPIN,A T B PLUMBING & BUILDING SERVICES LTD,
Property Services,1040,Planned Works,Drying Rack Servicing 1st half,04,2019,130.00,13872,27/06/2018,KPIN,A T B PLUMBING & BUILDING SERVICES LTD,
Property Services,1040,Planned Works,Drying Rack Servicing 1st half,04,2019,130.00,13872,27/06/2018,KPIN,A T B PLUMBING & BUILDING SERVICES LTD,
Property Services,1040,Planned Works,Drying Rack Servicing 1st half,04,2019,130.00,13872,27/06/2018,KPIN,A T B PLUMBING & BUILDING SERVICES LTD,
Property Services,1040,Planned Works,Drying Rack Servicing 1st half,04,2019,-130.00,13872,27/06/2018,KPIN,A T B PLUMBING & BUILDING SERVICES LTD,
Property Services,1040,Planned Works,Drying Rack Servicing 1st half,04,2019,130.00,13872,27/06/2018,KPIN,A T B PLUMBING & BUILDING SERVICES LTD,
Property Services,1040,Planned Works,Drying Rack Servicing 1st half,04,2019,130.00,13872,27/06/2018,KPIN,A T B PLUMBING & BUILDING SERVICES LTD,
Property Services,1040,Planned Works,Drying Rack Servicing 1st half,04,2019,130.00,13872,27/06/2018,KPIN,A T B PLUMBING & BUILDING SERVICES LTD,
Property Services,1040,Planned Works,Drying Rack Servicing 1st half,04,2019,520.00,13872,27/06/2018,KPIN,A T B PLUMBING & BUILDING SERVICES LTD,
Property Services,1040,Planned Works,Drying Rack Servicing 1st half,04,2019,130.00,13872,27/06/2018,KPIN,A T B PLUMBING & BUILDING SERVICES LTD,
Property Services,1040,Planned Works,Drying Rack Servicing 1st half,04,2019,130.00,13872,27/06/2018,KPIN,A T B PLUMBING & BUILDING SERVICES LTD,
Property Services,1040,Planned Works,Drying Rack Servicing 1st half,04,2019,260.00,13872,27/06/2018,KPIN,A T B PLUMBING & BUILDING SERVICES LTD,
Property Services,1040,Planned Works,Drying Rack Servicing 1st half,04,2019,260.00,13872,27/06/2018,KPIN,A T B PLUMBING & BUILDING SERVICES LTD,
Property Services,1040,Planned Works,Drying Rack Servicing 1st half,04,2019,130.00,13872,27/06/2018,KPIN,A T B PLUMBING & BUILDING SERVICES LTD,
Property Services,1040,Planned Works,Drying Rack Servicing 1st half,04,2019,130.00,13872,27/06/2018,KPIN,A T B PLUMBING & BUILDING SERVICES LTD,
Property Services,1040,Planned Works,Drying Rack Servicing 1st half,04,2019,130.00,13872,27/06/2018,KPIN,A T B PLUMBING & BUILDING SERVICES LTD,
Not Analysed,B113,Fixed Assets Under Construction Vehicles,Community Safety Vehicle as co,04,2019,27425.00,13875,27/06/2018,KPIN,ANGLOCO LTD,
Training,0702,External Training - L&D Panel,External Training - L&D Panel,04,2019,890.00,13877,25/06/2018,KPIN,GOVNET COMMUNICATIONS,
Property Services,1040,Planned Works,Water Hygiene and Check Mechan,04,2019,213.48,13878,25/06/2018,KPIN,BALM & DAVIES LTD,
Property Services,1040,Planned Works,Water Hygiene and Check Mechan,04,2019,213.47,13878,25/06/2018,KPIN,BALM & DAVIES LTD,
Property Services,1040,Planned Works,Water Hygiene and Check Mechan,04,2019,420.54,13878,25/06/2018,KPIN,BALM & DAVIES LTD,
Property Services,1040,Planned Works,Water Hygiene and Check Mechan,04,2019,372.73,13878,25/06/2018,KPIN,BALM & DAVIES LTD,
Property Services,1040,Planned Works,Water Hygiene and Check Mechan,04,2019,474.77,13878,25/06/2018,KPIN,BALM & DAVIES LTD,
Property Services,1040,Planned Works,Water Hygiene and Check Mechan,04,2019,580.89,13878,25/06/2018,KPIN,BALM & DAVIES LTD,
Property Services,1040,Planned Works,Water Hygiene and Check Mechan,04,2019,445.03,13878,25/06/2018,KPIN,BALM & DAVIES LTD,
Property Services,1040,Planned Works,Water Hygiene and Check Mechan,04,2019,361.65,13878,25/06/2018,KPIN,BALM & DAVIES LTD,
Property Services,1040,Planned Works,Water Hygiene and Check Mechan,04,2019,483.51,13878,25/06/2018,KPIN,BALM & DAVIES LTD,
Property Services,1040,Planned Works,Water Hygiene and Check Mechan,04,2019,728.40,13878,25/06/2018,KPIN,BALM & DAVIES LTD,
Property Services,1040,Planned Works,Water Hygiene and Check Mechan,04,2019,435.12,13878,25/06/2018,KPIN,BALM & DAVIES LTD,
Property Services,1040,Planned Works,Water Hygiene and Check Mechan,04,2019,372.14,13878,25/06/2018,KPIN,BALM & DAVIES LTD,
Property Services,1040,Planned Works,Water Hygiene and Check Mechan,04,2019,434.53,13878,25/06/2018,KPIN,BALM & DAVIES LTD,
Property Services,1040,Planned Works,Water Hygiene and Check Mechan,04,2019,482.93,13878,25/06/2018,KPIN,BALM & DAVIES LTD,
Property Services,1040,Planned Works,Water Hygiene and Check Mechan,04,2019,934.81,13878,25/06/2018,KPIN,BALM & DAVIES LTD,
Property Services,1040,Planned Works,Water Hygiene and Check Mechan,04,2019,356.98,13878,25/06/2018,KPIN,BALM & DAVIES LTD,
Property Services,1040,Planned Works,Water Hygiene and Check Mechan,04,2019,384.97,13878,25/06/2018,KPIN,BALM & DAVIES LTD,
Property Services,1040,Planned Works,Water Hygiene and Check Mechan,04,2019,327.18,13878,25/06/2018,KPIN,BALM & DAVIES LTD,
Property Services,1040,Planned Works,Water Hygiene and Check Mechan,04,2019,571.56,13878,25/06/2018,KPIN,BALM & DAVIES LTD,
Property Services,1040,Planned Works,Water Hygiene and Check Mechan,04,2019,595.46,13878,25/06/2018,KPIN,BALM & DAVIES LTD,
Property Services,1040,Planned Works,Water Hygiene and Check Mechan,04,2019,176.45,13878,25/06/2018,KPIN,BALM & DAVIES LTD,
Property Services,1040,Planned Works,Water Hygiene and Check Mechan,04,2019,452.61,13878,25/06/2018,KPIN,BALM & DAVIES LTD,
Property Services,1040,Planned Works,Water Hygiene and Check Mechan,04,2019,650.27,13878,25/06/2018,KPIN,BALM & DAVIES LTD,
Property Services,1040,Planned Works,Water Hygiene and Check Mechan,04,2019,467.19,13878,25/06/2018,KPIN,BALM & DAVIES LTD,
Property Services,1040,Planned Works,Water Hygiene and Check Mechan,04,2019,473.60,13878,25/06/2018,KPIN,BALM & DAVIES LTD,
Property Services,1040,Planned Works,Water Hygiene and Check Mechan,04,2019,387.89,13878,25/06/2018,KPIN,BALM & DAVIES LTD,
Property Services,1040,Planned Works,Water Hygiene and Check Mechan,04,2019,375.06,13878,25/06/2018,KPIN,BALM & DAVIES LTD,
Property Services,1040,Planned Works,Water Hygiene and Check Mechan,04,2019,394.88,13878,25/06/2018,KPIN,BALM & DAVIES LTD,
Property Services,1040,Planned Works,Water Hygiene and Check Mechan,04,2019,372.73,13878,25/06/2018,KPIN,BALM & DAVIES LTD,
Property Services,1040,Planned Works,Water Hygiene and Check Mechan,04,2019,391.97,13878,25/06/2018,KPIN,BALM & DAVIES LTD,
Property Services,1040,Planned Works,Water Hygiene and Check Mechan,04,2019,335.86,13878,25/06/2018,KPIN,BALM & DAVIES LTD,
Property Services,1040,Planned Works,Water Hygiene and Check Mechan,04,2019,346.49,13878,25/06/2018,KPIN,BALM & DAVIES LTD,
Property Services,1040,Planned Works,Water Hygiene and Check Mechan,04,2019,293.65,13878,25/06/2018,KPIN,BALM & DAVIES LTD,
Property Services,1040,Planned Works,Water Hygiene and Check Mechan,04,2019,553.55,13878,25/06/2018,KPIN,BALM & DAVIES LTD,
Property Services,1040,Planned Works,Water Hygiene and Check Mechan,04,2019,340.66,13878,25/06/2018,KPIN,BALM & DAVIES LTD,
Property Services,1040,Planned Works,Water Hygiene and Check Mechan,04,2019,499.25,13878,25/06/2018,KPIN,BALM & DAVIES LTD,
Property Services,1040,Planned Works,Water Hygiene and Check Mechan,04,2019,484.09,13878,25/06/2018,KPIN,BALM & DAVIES LTD,
Property Services,1040,Planned Works,Water Hygiene and Check Mechan,04,2019,1012.52,13878,25/06/2018,KPIN,BALM & DAVIES LTD,
Property Services,1040,Planned Works,Water Hygiene and Check Mechan,04,2019,370.98,13878,25/06/2018,KPIN,BALM & DAVIES LTD,
Property Services,1040,Planned Works,Water Hygiene and Check Mechan,04,2019,425.20,13878,25/06/2018,KPIN,BALM & DAVIES LTD,
Property Services,1040,Planned Works,Water Hygiene and Check Mechan,04,2019,293.65,13878,25/06/2018,KPIN,BALM & DAVIES LTD,
Property Services,1040,Planned Works,Water Hygiene and Check Mechan,04,2019,485.26,13878,25/06/2018,KPIN,BALM & DAVIES LTD,
Property Services,1040,Planned Works,Water Hygiene and Check Mechan,04,2019,351.74,13878,25/06/2018,KPIN,BALM & DAVIES LTD,
Property Services,1040,Planned Works,Water Hygiene and Check Mechan,04,2019,429.87,13878,25/06/2018,KPIN,BALM & DAVIES LTD,
Property Services,1040,Planned Works,Water Hygiene and Check Mechan,04,2019,251.89,13878,25/06/2018,KPIN,BALM & DAVIES LTD,
Property Services,1040,Planned Works,Water Hygiene and Check Mechan,04,2019,612.37,13878,25/06/2018,KPIN,BALM & DAVIES LTD,
Property Services,1040,Planned Works,Water Hygiene and Check Mechan,04,2019,529.57,13878,25/06/2018,KPIN,BALM & DAVIES LTD,
Property Services,1040,Planned Works,Water Hygiene and Check Mechan,04,2019,176.45,13878,25/06/2018,KPIN,BALM & DAVIES LTD,
Property Services,1040,Planned Works,Water Hygiene and Check Mechan,04,2019,360.48,13878,25/06/2018,KPIN,BALM & DAVIES LTD,
Property Services,1040,Planned Works,Water Hygiene and Check Mechan,04,2019,411.79,13878,25/06/2018,KPIN,BALM & DAVIES LTD,
Property Services,1040,Planned Works,Water Hygiene and Check Mechan,04,2019,548.23,13878,25/06/2018,KPIN,BALM & DAVIES LTD,
Property Services,1040,Planned Works,Water Hygiene and Check Mechan,04,2019,520.83,13878,25/06/2018,KPIN,BALM & DAVIES LTD,
Property Services,1040,Planned Works,Water Hygiene and Check Mechan,04,2019,532.49,13878,25/06/2018,KPIN,BALM & DAVIES LTD,
Property Services,1040,Planned Works,Water Hygiene and Check Mechan,04,2019,340.08,13878,25/06/2018,KPIN,BALM & DAVIES LTD,
Property Services,1040,Planned Works,Water Hygiene and Check Mechan,04,2019,363.40,13878,25/06/2018,KPIN,BALM & DAVIES LTD,
Property Services,1040,Planned Works,Water Hygiene and Check Mechan,04,2019,417.04,13878,25/06/2018,KPIN,BALM & DAVIES LTD,
Property Services,1040,Planned Works,Water Hygiene and Check Mechan,04,2019,464.85,13878,25/06/2018,KPIN,BALM & DAVIES LTD,
Property Services,1040,Planned Works,Water Hygiene and Check Mechan,04,2019,432.78,13878,25/06/2018,KPIN,BALM & DAVIES LTD,
Property Services,1040,Planned Works,Water Hygiene and Check Mechan,04,2019,442.11,13878,25/06/2018,KPIN,BALM & DAVIES LTD,
Property Services,1040,Planned Works,Water Hygiene and Check Mechan,04,2019,370.98,13878,25/06/2018,KPIN,BALM & DAVIES LTD,
Training,0707,Operational Training Contracts,Medical ,04,2019,50.00,13881,25/06/2018,KPIN,ROADTRAIN LEGAL & FINANCIAL LTD,
Training,0707,Operational Training Contracts,Theory ,04,2019,37.00,13881,25/06/2018,KPIN,ROADTRAIN LEGAL & FINANCIAL LTD,
Training,0707,Operational Training Contracts,DSA Test Fee,04,2019,115.00,13881,25/06/2018,KPIN,ROADTRAIN LEGAL & FINANCIAL LTD,
Training,0707,Operational Training Contracts,22/05 - 29/05 LGV Driver Train,04,2019,550.00,13881,25/06/2018,KPIN,ROADTRAIN LEGAL & FINANCIAL LTD,
Training,0707,Operational Training Contracts,Admin Fee ,04,2019,55.00,13881,25/06/2018,KPIN,ROADTRAIN LEGAL & FINANCIAL LTD,
Training,0707,Operational Training Contracts,Theory ,04,2019,52.00,13881,25/06/2018,KPIN,ROADTRAIN LEGAL & FINANCIAL LTD,
Human Resources,0960,Occupational Health,Occupational Health,04,2019,148.00,13883,27/06/2018,KPIN,CHELMSFORD PRIORY,
Property Services,1030,Int Decs/Alts & Improvements,1718/428 Various sites -intern,04,2019,23169.36,13885,27/06/2018,KPIN,R J SPECIALIST COATINGS,
Property Services,1050,Building Maintenance,REPAIRS,04,2019,707.73,13886,27/06/2018,KPIN,KIRKMAN & JOURDAIN LTD,
Property Services,1040,Planned Works,PPM 1st VISIT,04,2019,396.90,13886,27/06/2018,KPIN,KIRKMAN & JOURDAIN LTD,
Property Services,1050,Building Maintenance,To repair broken compression g,04,2019,305.30,13887,27/06/2018,KPIN,HS DOOR SYSTEMS LTD,
Property Services,1040,Planned Works,Electrical Servicing 1st Quart,04,2019,198.45,13892,27/06/2018,KPIN,KIRKMAN & JOURDAIN LTD,
Property Services,1050,Building Maintenance,Electrical Servicing 1st Quart,04,2019,307.95,13892,27/06/2018,KPIN,KIRKMAN & JOURDAIN LTD,
Property Services,1050,Building Maintenance,REPAIRS,04,2019,311.25,13893,27/06/2018,KPIN,KIRKMAN & JOURDAIN LTD,
Property Services,1040,Planned Works,PPM 1st VISIT,04,2019,198.45,13893,27/06/2018,KPIN,KIRKMAN & JOURDAIN LTD,
Property Services,1040,Planned Works,PPM 1st VISIT,04,2019,198.45,13894,27/06/2018,KPIN,KIRKMAN & JOURDAIN LTD,
Property Services,1050,Building Maintenance,REPAIRS,04,2019,358.40,13894,27/06/2018,KPIN,KIRKMAN & JOURDAIN LTD,
Property Services,1050,Building Maintenance,REPAIRS,04,2019,259.76,13895,27/06/2018,KPIN,KIRKMAN & JOURDAIN LTD,
Property Services,1040,Planned Works,PPM 1st VISIT,04,2019,198.45,13895,27/06/2018,KPIN,KIRKMAN & JOURDAIN LTD,
Property Services,1050,Building Maintenance,Electrical Servicing 1st Half ,04,2019,135.29,13896,27/06/2018,KPIN,KIRKMAN & JOURDAIN LTD,
Property Services,1040,Planned Works,Electrical Servicing 1st Half ,04,2019,198.45,13896,27/06/2018,KPIN,KIRKMAN & JOURDAIN LTD,
Property Services,1040,Planned Works,PPM 1st VISIT,04,2019,198.45,13897,27/06/2018,KPIN,KIRKMAN & JOURDAIN LTD,
Property Services,1050,Building Maintenance,REPAIRS,04,2019,583.24,13897,27/06/2018,KPIN,KIRKMAN & JOURDAIN LTD,
Property Services,1050,Building Maintenance,REPAIRS,04,2019,961.13,13898,27/06/2018,KPIN,KIRKMAN & JOURDAIN LTD,
Property Services,1040,Planned Works,PPM 1st VISIT,04,2019,198.45,13898,27/06/2018,KPIN,KIRKMAN & JOURDAIN LTD,
Property Services,1050,Building Maintenance,REPAIRS,04,2019,164.79,13899,27/06/2018,KPIN,KIRKMAN & JOURDAIN LTD,
Property Services,1040,Planned Works,PPM 1st VISIT,04,2019,198.45,13899,27/06/2018,KPIN,KIRKMAN & JOURDAIN LTD,
Property Services,1040,Planned Works,PPM 1st VISIT,04,2019,198.45,13900,27/06/2018,KPIN,KIRKMAN & JOURDAIN LTD,
Property Services,1050,Building Maintenance,REPAIRS,04,2019,25.12,13900,27/06/2018,KPIN,KIRKMAN & JOURDAIN LTD,
Property Services,1040,Planned Works,PPM 1st VISIT,04,2019,198.45,13901,27/06/2018,KPIN,KIRKMAN & JOURDAIN LTD,
Property Services,1050,Building Maintenance,REPAIRS,04,2019,371.24,13901,27/06/2018,KPIN,KIRKMAN & JOURDAIN LTD,
Property Services,1040,Planned Works,PPM 1st VISIT,04,2019,198.45,13902,27/06/2018,KPIN,KIRKMAN & JOURDAIN LTD,
Property Services,1050,Building Maintenance,REPAIRS,04,2019,138.05,13902,27/06/2018,KPIN,KIRKMAN & JOURDAIN LTD,
Property Services,1040,Planned Works,PPM 1st VISIT,04,2019,198.45,13903,27/06/2018,KPIN,KIRKMAN & JOURDAIN LTD,
Property Services,1050,Building Maintenance,REPAIRS,04,2019,517.32,13903,27/06/2018,KPIN,KIRKMAN & JOURDAIN LTD,
Property Services,1040,Planned Works,PPM 1st VISIT,04,2019,198.45,13904,27/06/2018,KPIN,KIRKMAN & JOURDAIN LTD,
Property Services,1050,Building Maintenance,REPAIRS,04,2019,164.21,13904,27/06/2018,KPIN,KIRKMAN & JOURDAIN LTD,
Property Services,1050,Building Maintenance,REPAIRS,04,2019,176.03,13905,27/06/2018,KPIN,KIRKMAN & JOURDAIN LTD,
Property Services,1040,Planned Works,PPM 1st VISIT,04,2019,198.45,13905,27/06/2018,KPIN,KIRKMAN & JOURDAIN LTD,
Property Services,1040,Planned Works,PPM 1st VISIT,04,2019,198.45,13906,27/06/2018,KPIN,KIRKMAN & JOURDAIN LTD,
Property Services,1050,Building Maintenance,REPAIRS,04,2019,250.30,13906,27/06/2018,KPIN,KIRKMAN & JOURDAIN LTD,
Property Services,1050,Building Maintenance,REPAIRS,04,2019,247.43,13907,27/06/2018,KPIN,KIRKMAN & JOURDAIN LTD,
Property Services,1040,Planned Works,PPM 1st VISIT,04,2019,198.45,13907,27/06/2018,KPIN,KIRKMAN & JOURDAIN LTD,
Property Services,1040,Planned Works,PPM 1st VISIT,04,2019,198.45,13908,27/06/2018,KPIN,KIRKMAN & JOURDAIN LTD,
Property Services,1050,Building Maintenance,REPAIRS,04,2019,68.59,13908,27/06/2018,KPIN,KIRKMAN & JOURDAIN LTD,
Property Services,1050,Building Maintenance,REPAIRS,04,2019,282.50,13909,27/06/2018,KPIN,KIRKMAN & JOURDAIN LTD,
Property Services,1040,Planned Works,PPM 1st VISIT,04,2019,198.45,13909,27/06/2018,KPIN,KIRKMAN & JOURDAIN LTD,
Property Services,1040,Planned Works,PPM 1st VISIT,04,2019,198.45,13910,27/06/2018,KPIN,KIRKMAN & JOURDAIN LTD,
Property Services,1040,Planned Works,REPAIRS,04,2019,182.58,13910,27/06/2018,KPIN,KIRKMAN & JOURDAIN LTD,
Property Services,1040,Planned Works,Electrical Servicing 1st Half ,04,2019,396.90,13911,27/06/2018,KPIN,KIRKMAN & JOURDAIN LTD,
Property Services,1050,Building Maintenance,Electrical Servicing 1st Half ,04,2019,414.07,13911,27/06/2018,KPIN,KIRKMAN & JOURDAIN LTD,
Property Services,1040,Planned Works,PPM 1st VISIT,04,2019,198.45,13912,27/06/2018,KPIN,KIRKMAN & JOURDAIN LTD,
Property Services,1050,Building Maintenance,REPAIRS,04,2019,80.62,13912,27/06/2018,KPIN,KIRKMAN & JOURDAIN LTD,
Property Services,1050,Building Maintenance,REPAIRS,04,2019,34.08,13913,27/06/2018,KPIN,KIRKMAN & JOURDAIN LTD,
Property Services,1040,Planned Works,PPM 1st VISIT,04,2019,198.45,13913,27/06/2018,KPIN,KIRKMAN & JOURDAIN LTD,
Property Services,1040,Planned Works,PPM 1st  VISIT,04,2019,198.45,13914,27/06/2018,KPIN,KIRKMAN & JOURDAIN LTD,
Property Services,1050,Building Maintenance,Electrical Servicing Annual,04,2019,106.73,13914,27/06/2018,KPIN,KIRKMAN & JOURDAIN LTD,
Property Services,1040,Planned Works,PPM 1st VISIT,04,2019,198.45,13915,27/06/2018,KPIN,KIRKMAN & JOURDAIN LTD,
Property Services,1050,Building Maintenance,REPAIRS,04,2019,54.52,13915,27/06/2018,KPIN,KIRKMAN & JOURDAIN LTD,
Property Services,1050,Building Maintenance,REPAIRS,04,2019,181.18,13916,27/06/2018,KPIN,KIRKMAN & JOURDAIN LTD,
Property Services,1040,Planned Works,PPM 1st VISIT,04,2019,198.45,13916,27/06/2018,KPIN,KIRKMAN & JOURDAIN LTD,
Property Services,1040,Planned Works,PPM 1st VISIT,04,2019,198.45,13917,27/06/2018,KPIN,KIRKMAN & JOURDAIN LTD,
Property Services,1050,Building Maintenance,REPAIRS,04,2019,93.82,13917,27/06/2018,KPIN,KIRKMAN & JOURDAIN LTD,
Property Services,1050,Building Maintenance,REPAIRS,04,2019,21.52,13918,27/06/2018,KPIN,KIRKMAN & JOURDAIN LTD,
Property Services,1040,Planned Works,PPM 1st VISIT,04,2019,198.45,13918,27/06/2018,KPIN,KIRKMAN & JOURDAIN LTD,
Property Services,1040,Planned Works,PPM 1st VISIT,04,2019,198.45,13919,27/06/2018,KPIN,KIRKMAN & JOURDAIN LTD,
Property Services,1050,Building Maintenance,REPAIRS,04,2019,187.20,13919,27/06/2018,KPIN,KIRKMAN & JOURDAIN LTD,
Property Services,1040,Planned Works,PPM 1st VISIT,04,2019,198.45,13920,27/06/2018,KPIN,KIRKMAN & JOURDAIN LTD,
Property Services,1050,Building Maintenance,REPAIRS,04,2019,424.68,13920,27/06/2018,KPIN,KIRKMAN & JOURDAIN LTD,
Property Services,1040,Planned Works,PPM 1st VISIT,04,2019,198.45,13921,27/06/2018,KPIN,KIRKMAN & JOURDAIN LTD,
Property Services,1050,Building Maintenance,REPAIRS,04,2019,1020.23,13921,27/06/2018,KPIN,KIRKMAN & JOURDAIN LTD,
Property Services,1050,Building Maintenance,REPAIRS,04,2019,589.97,13922,27/06/2018,KPIN,KIRKMAN & JOURDAIN LTD,
Property Services,1040,Planned Works,PPM 1st VISIT,04,2019,198.45,13922,27/06/2018,KPIN,KIRKMAN & JOURDAIN LTD,
Property Services,1050,Building Maintenance,REPAIRS,04,2019,748.79,13923,27/06/2018,KPIN,KIRKMAN & JOURDAIN LTD,
Property Services,1040,Planned Works,PPM 2nd VISIT ,04,2019,198.45,13923,27/06/2018,KPIN,KIRKMAN & JOURDAIN LTD,
Property Services,1050,Building Maintenance,PPM - 1st VISIT,04,2019,198.45,13924,27/06/2018,KPIN,KIRKMAN & JOURDAIN LTD,
Property Services,1050,Building Maintenance,REPAIRS,04,2019,90.98,13924,27/06/2018,KPIN,KIRKMAN & JOURDAIN LTD,
Not Analysed,B118,Asset Protection,1718/422 Watch Managers room r,04,2019,3679.52,13926,27/06/2018,KPIN,BEARDWELL CONSTRUCTION LTD,
Not Analysed,B118,Asset Protection,1718/422 Watch Managers room r,04,2019,2999.58,13926,27/06/2018,KPIN,BEARDWELL CONSTRUCTION LTD,
ICT,4005,IT Consumables,"Call out charge - Grays SDP
",04,2019,95.00,13927,27/06/2018,KPIN,UTILIZE PLC,,,,
ICT,4005,IT Consumables,Belt Kit,04,2019,299.00,13927,27/06/2018,KPIN,UTILIZE PLC,
ICT,4005,IT Consumables,Delivery Charge,04,2019,7.50,13927,27/06/2018,KPIN,UTILIZE PLC,
Not Analysed,B113,Fixed Assets Under Construction Vehicles,Completion of equipment stowag,04,2019,22861.97,13928,27/06/2018,KPIN,ANGLOCO LTD,
Not Analysed,B113,Fixed Assets Under Construction Vehicles,CHANGE ORDER P6801/001,04,2019,-1315.02,13928,27/06/2018,KPIN,ANGLOCO LTD,
Not Analysed,B113,Fixed Assets Under Construction Vehicles,CHANGE ORDER P6801/001,04,2019,-1315.02,13929,27/06/2018,KPIN,ANGLOCO LTD,
Not Analysed,B113,Fixed Assets Under Construction Vehicles,Completion of equipment stowag,04,2019,22861.97,13929,27/06/2018,KPIN,ANGLOCO LTD,
ICT,2040,IT Maintenance and Contracts,Zscaler Internet Security Plat,04,2019,4995.00,13930,27/06/2018,KPIN,SECON CYBER SECURITY LTD,
ICT,2040,IT Maintenance and Contracts,"Zscaler Premium Support, 12 mo",04,2019,2600.00,13930,27/06/2018,KPIN,SECON CYBER SECURITY LTD,
ICT,2040,IT Maintenance and Contracts,Zscaler,04,2019,-19995.00,13930,27/06/2018,KPIN,SECON CYBER SECURITY LTD,
ICT,2040,IT Maintenance and Contracts,"Zscaler Web Business Suite, 12",04,2019,12400.00,13930,27/06/2018,KPIN,SECON CYBER SECURITY LTD,
ICT,B217,Payments in Advance,Zscaler renew/supp 2707-260719,04,2019,19995.00,13930,27/06/2018,KPIN,SECON CYBER SECURITY LTD,
Purchasing & Supply,1310,Cleaning products,Bryta Dishwasher Powder 5KG (E,04,2019,23.68,13934,27/06/2018,KPIN,BUNZL CLEANING & HYGIENE SUPPLIES,
Purchasing & Supply,2024,Cleaning Equipment,Cleanline Thin Bleach 4.5% 5L ,04,2019,11.84,13934,27/06/2018,KPIN,BUNZL CLEANING & HYGIENE SUPPLIES,
Purchasing & Supply,2024,Cleaning Equipment,6663 Scott Performance Hand To,04,2019,96.32,13934,27/06/2018,KPIN,BUNZL CLEANING & HYGIENE SUPPLIES,
Purchasing & Supply,2024,Cleaning Equipment,Stockinette Dishcloth Super Bl,04,2019,8.65,13934,27/06/2018,KPIN,BUNZL CLEANING & HYGIENE SUPPLIES,
Purchasing & Supply,1310,Cleaning products,General Purpose Detergent 5L (,04,2019,30.80,13934,27/06/2018,KPIN,BUNZL CLEANING & HYGIENE SUPPLIES,
Property Services,0180,Casual and Temporary Staff,Casual and Temporary Staff,04,2019,1147.90,13935,27/06/2018,KPIN,HAYS CONSTRUCTION & PROPERTY,
Property Services,1060,Grounds Maintenance,Grounds Maintenance,04,2019,20.52,13936,30/06/2018,KPIN,C R SWIFT LANDSCAPING LTD,
ICT,4005,IT Consumables,Lightning to HDMI/Adapter Cabl,04,2019,23.00,13938,28/06/2018,KPIN,DATA PRO IT LIMITED,
ICT,4005,IT Consumables,Logitech R400 Wireless Present,04,2019,70.00,13938,28/06/2018,KPIN,DATA PRO IT LIMITED,
Purchasing & Supply,2024,Cleaning Equipment,6663 Scott Performance Hand To,04,2019,144.48,13940,27/06/2018,KPIN,BUNZL CLEANING & HYGIENE SUPPLIES,
Purchasing & Supply,2024,Cleaning Equipment,Cleanline Food Safe Sanitiser ,04,2019,18.28,13940,27/06/2018,KPIN,BUNZL CLEANING & HYGIENE SUPPLIES,
Purchasing & Supply,2024,Cleaning Equipment,Stockinette Dishcloth Super Bl,04,2019,3.46,13940,27/06/2018,KPIN,BUNZL CLEANING & HYGIENE SUPPLIES,
Purchasing & Supply,2024,Cleaning Equipment,8577 Scott Folded Toilet Tissu,04,2019,46.86,13940,27/06/2018,KPIN,BUNZL CLEANING & HYGIENE SUPPLIES,
Purchasing & Supply,2024,Cleaning Equipment,Cleanline Food Safe Sanitiser ,04,2019,6.00,13941,27/06/2018,KPIN,BUNZL CLEANING & HYGIENE SUPPLIES,
Purchasing & Supply,2024,Cleaning Equipment,Dustpan & Brush Set Soft Blue ,04,2019,2.08,13941,27/06/2018,KPIN,BUNZL CLEANING & HYGIENE SUPPLIES,
Purchasing & Supply,1310,Cleaning products,Bryta Dishwasher Powder 5KG (E,04,2019,47.36,13941,27/06/2018,KPIN,BUNZL CLEANING & HYGIENE SUPPLIES,
Purchasing & Supply,1310,Cleaning products,Builders Bucket Heavy Duty Bla,04,2019,3.22,13941,27/06/2018,KPIN,BUNZL CLEANING & HYGIENE SUPPLIES,
Purchasing & Supply,1310,Cleaning products,Water Softening Granular Salt ,04,2019,7.64,13941,27/06/2018,KPIN,BUNZL CLEANING & HYGIENE SUPPLIES,
Purchasing & Supply,1310,Cleaning products,General Purpose Detergent 5L (,04,2019,15.40,13941,27/06/2018,KPIN,BUNZL CLEANING & HYGIENE SUPPLIES,
Purchasing & Supply,2024,Cleaning Equipment,CleanWorks Aluminium Mop Handl,04,2019,3.20,13942,27/06/2018,KPIN,BUNZL CLEANING & HYGIENE SUPPLIES,
Purchasing & Supply,1310,Cleaning products,General Purpose Detergent 5L (,04,2019,15.40,13942,27/06/2018,KPIN,BUNZL CLEANING & HYGIENE SUPPLIES,
Purchasing & Supply,1310,Cleaning products,Bryta Dishwasher Powder 5KG (E,04,2019,23.68,13942,27/06/2018,KPIN,BUNZL CLEANING & HYGIENE SUPPLIES,
Purchasing & Supply,2024,Cleaning Equipment,Cleanline Thin Bleach 4.5% 5L ,04,2019,1.48,13942,27/06/2018,KPIN,BUNZL CLEANING & HYGIENE SUPPLIES,
Purchasing & Supply,2024,Cleaning Equipment,Bryta Oven & Grill Foam 500ML ,04,2019,2.99,13942,27/06/2018,KPIN,BUNZL CLEANING & HYGIENE SUPPLIES,
Purchasing & Supply,2024,Cleaning Equipment,Cleanline Glass & Stainless St,04,2019,1.14,13942,27/06/2018,KPIN,BUNZL CLEANING & HYGIENE SUPPLIES,
Purchasing & Supply,2024,Cleaning Equipment,6663 Scott Performance Hand To,04,2019,144.48,13942,27/06/2018,KPIN,BUNZL CLEANING & HYGIENE SUPPLIES,
Purchasing & Supply,2024,Cleaning Equipment,Stockinette Dishcloth Super Bl,04,2019,3.46,13942,27/06/2018,KPIN,BUNZL CLEANING & HYGIENE SUPPLIES,
Purchasing & Supply,2024,Cleaning Equipment,CleanWorks Twine Socket Mop Ye,04,2019,5.56,13942,27/06/2018,KPIN,BUNZL CLEANING & HYGIENE SUPPLIES,
Purchasing & Supply,2024,Cleaning Equipment,Cleanline Food Safe Sanitiser ,04,2019,18.28,13942,27/06/2018,KPIN,BUNZL CLEANING & HYGIENE SUPPLIES,
Purchasing & Supply,2024,Cleaning Equipment,Cleanline Pine Disinfectant QA,04,2019,2.74,13942,27/06/2018,KPIN,BUNZL CLEANING & HYGIENE SUPPLIES,
Purchasing & Supply,2024,Cleaning Equipment,Cleanline Heavy Duty Degreaser,04,2019,6.80,13942,27/06/2018,KPIN,BUNZL CLEANING & HYGIENE SUPPLIES,
Purchasing & Supply,2024,Cleaning Equipment,Brasso Liquid Metal Polish 175,04,2019,2.56,13942,27/06/2018,KPIN,BUNZL CLEANING & HYGIENE SUPPLIES,
Purchasing & Supply,2024,Cleaning Equipment,6332 Kleenex Hair & Body Showe,04,2019,45.82,13942,27/06/2018,KPIN,BUNZL CLEANING & HYGIENE SUPPLIES,
Catering,2017,Canteen Equipment,RB6 General Purpose Hand Scour,04,2019,2.04,13942,27/06/2018,KPIN,BUNZL CLEANING & HYGIENE SUPPLIES,
Purchasing & Supply,2024,Cleaning Equipment,White Tea Towel 48X73CM (PK 10,04,2019,5.31,13943,27/06/2018,KPIN,BUNZL CLEANING & HYGIENE SUPPLIES,
Purchasing & Supply,2024,Cleaning Equipment,6663 Scott Performance Hand To,04,2019,120.40,13943,27/06/2018,KPIN,BUNZL CLEANING & HYGIENE SUPPLIES,
Purchasing & Supply,2024,Cleaning Equipment,8577 Scott Folded Toilet Tissu,04,2019,117.15,13943,27/06/2018,KPIN,BUNZL CLEANING & HYGIENE SUPPLIES,
Stores,B205,Stocks & WIP (Purchasing & Supply Stores),Shades Air Fresh Summer Flower,04,2019,8.28,13944,27/06/2018,KPIN,BUNZL CLEANING & HYGIENE SUPPLIES,
Stores,B205,Stocks & WIP (Purchasing & Supply Stores),6332 Kleenex Hair & Body Showe,04,2019,91.64,13944,27/06/2018,KPIN,BUNZL CLEANING & HYGIENE SUPPLIES,
Stores,B205,Stocks & WIP (Purchasing & Supply Stores),Brasso Liquid Metal Polish 175,04,2019,7.68,13944,27/06/2018,KPIN,BUNZL CLEANING & HYGIENE SUPPLIES,
Stores,B205,Stocks & WIP (Purchasing & Supply Stores),6663 Scott Performance Hand To,04,2019,96.32,13944,27/06/2018,KPIN,BUNZL CLEANING & HYGIENE SUPPLIES,
Stores,B205,Stocks & WIP (Purchasing & Supply Stores),Cleanline Food Safe Sanitiser ,04,2019,7.20,13944,27/06/2018,KPIN,BUNZL CLEANING & HYGIENE SUPPLIES,
Stores,B205,Stocks & WIP (Purchasing & Supply Stores),6331 Kleenex Everyday Use Hand,04,2019,27.20,13944,27/06/2018,KPIN,BUNZL CLEANING & HYGIENE SUPPLIES,
Stores,B205,Stocks & WIP (Purchasing & Supply Stores),Viakal Limescale Remover 500ML,04,2019,9.30,13944,27/06/2018,KPIN,BUNZL CLEANING & HYGIENE SUPPLIES,
Stores,B205,Stocks & WIP (Purchasing & Supply Stores),6336 Kleenex Antibacterial Han,04,2019,28.19,13944,27/06/2018,KPIN,BUNZL CLEANING & HYGIENE SUPPLIES,
Property Services,1060,Grounds Maintenance,Grounds Maintenance,04,2019,20.52,13945,30/06/2018,KPIN,C R SWIFT LANDSCAPING LTD,
Property Services,0180,Casual and Temporary Staff,Casual and Temporary Staff,04,2019,221.71,13947,27/06/2018,KPIN,HAYS CONSTRUCTION & PROPERTY,
Property Services,0180,Casual and Temporary Staff,Casual and Temporary Staff,04,2019,1224.40,13947,27/06/2018,KPIN,HAYS CONSTRUCTION & PROPERTY,
Property Services,0180,Casual and Temporary Staff,Casual and Temporary Staff,04,2019,1224.40,13948,27/06/2018,KPIN,HAYS CONSTRUCTION & PROPERTY,
Property Services,0180,Casual and Temporary Staff,Casual and Temporary Staff,04,2019,1029.60,13948,27/06/2018,KPIN,HAYS CONSTRUCTION & PROPERTY,
Property Services,0180,Casual and Temporary Staff,Casual and Temporary Staff,04,2019,947.25,13949,27/06/2018,KPIN,HAYS CONSTRUCTION & PROPERTY,
Property Services,0180,Casual and Temporary Staff,Casual and Temporary Staff,04,2019,1147.90,13950,27/06/2018,KPIN,HAYS CONSTRUCTION & PROPERTY,
Property Services,0180,Casual and Temporary Staff,Casual and Temporary Staff,04,2019,85.05,13950,27/06/2018,KPIN,HAYS CONSTRUCTION & PROPERTY,
Property Services,1301,Gas,11.06.18 STANDING CHG,04,2019,21.37,13952,16/06/2018,KPIN,BRITISH GAS,
Property Services,1302,Electricity,11.06.18 STANDING CHG,04,2019,23.36,13952,16/06/2018,KPIN,BRITISH GAS,
ICT,2510,IT Communications,CALL / DATA CHARGES,04,2019,43.50,13953,23/06/2018,KPIN,VODAFONE LIMITED,
Water Services,2087,Water Services,FS00000392,04,2019,1103.38,13954,27/06/2018,KPIN,NORTHUMBRIAN WATER LTD (HYDRANTS),
Not Analysed,B118,Asset Protection,1617/399B Drill Tower Refurbis,04,2019,6431.32,13963,25/06/2018,KPIN,BEARDWELL CONSTRUCTION LTD,
Not Analysed,B118,Asset Protection,1617/399B Drill Tower Refurbis,04,2019,524.87,13963,25/06/2018,KPIN,BEARDWELL CONSTRUCTION LTD,
Property Services,1050,Building Maintenance,To repair side gate lock,04,2019,324.52,13964,28/06/2018,KPIN,NORMAN DAVID MAINTENANCE,
Workshops Management,B217,Payments in Advance,CHANGE ORDER P7701/002,04,2019,709.69,13973,28/06/2018,KPIN,ANGLOCO LTD,
Workshops Management,B217,Payments in Advance,CHANGE ORDER P7701/003,04,2019,1044.00,13973,28/06/2018,KPIN,ANGLOCO LTD,
Workshops Management,B217,Payments in Advance,YEAR 4 INCREASE,04,2019,870.00,13973,28/06/2018,KPIN,ANGLOCO LTD,
Workshops Management,B217,Payments in Advance,CHANGE ORDER P7701/004,04,2019,1039.23,13973,28/06/2018,KPIN,ANGLOCO LTD,
Workshops Management,B217,Payments in Advance,Stowage Year 1/2/3,04,2019,17995.62,13973,28/06/2018,KPIN,ANGLOCO LTD,
Workshops Management,B217,Payments in Advance,CHANGE ORDER P7701/003,04,2019,1044.00,13974,28/06/2018,KPIN,ANGLOCO LTD,
Workshops Management,B217,Payments in Advance,YEAR 4 INCREASE,04,2019,870.00,13974,28/06/2018,KPIN,ANGLOCO LTD,
Workshops Management,B217,Payments in Advance,CHANGE ORDER P7701/002,04,2019,709.69,13974,28/06/2018,KPIN,ANGLOCO LTD,
Workshops Management,B217,Payments in Advance,CHANGE ORDER P7701/004,04,2019,1039.23,13974,28/06/2018,KPIN,ANGLOCO LTD,
Workshops Management,B217,Payments in Advance,Stowage Year 1/2/3,04,2019,17995.62,13974,28/06/2018,KPIN,ANGLOCO LTD,
Community Safety,4019,Community Safety,SERP Website editorial support,04,2019,480.00,13976,08/06/2018,KPIN,STENNIK ADVERTISING LTD,
Community Safety,4019,Community Safety,Maintenance and Copywriting fo,04,2019,9000.00,13977,08/06/2018,KPIN,STENNIK ADVERTISING LTD,
Finance & Pay,2903,Consultancy Fees,GDPR Readiness,04,2019,388.00,13978,26/06/2018,KPIN,RSM RISK ASSURANCE SERVICES LLP,
Finance & Pay,2903,Consultancy Fees,Management,04,2019,450.00,13978,26/06/2018,KPIN,RSM RISK ASSURANCE SERVICES LLP,
Operations,4110,Travelling Expenses,Travelling Expenses,04,2019,55.60,13979,27/06/2018,KPIN,CAPITA TRAVEL AND EVENTS LTD,
Operations,4110,Travelling Expenses,Travelling Expenses,04,2019,65.60,13979,27/06/2018,KPIN,CAPITA TRAVEL AND EVENTS LTD,
Operations,4110,Travelling Expenses,Travelling Expenses,04,2019,7.00,13979,27/06/2018,KPIN,CAPITA TRAVEL AND EVENTS LTD,
Human Resources,0960,Occupational Health,Occupational Health,04,2019,75.00,13980,06/06/2018,KPIN,CELIA GRAHAM M.A. MBACP,
Property Services,1060,Grounds Maintenance,Rubble bag required for clutte,04,2019,174.00,13981,27/06/2018,KPIN,DUNMOW SKIPS LTD,
Property Services,1499,Furniture and Fittings,Key safe for appliance keys Wo,04,2019,40.09,13982,28/06/2018,KPIN,BATES OFFICE SERVICES LIMITED,
Corporate Comms,4008,Media Expenses,On-call website,04,2019,9300.00,13983,28/06/2018,KPIN,ZERO ABOVE LTD,
Human Resources,0960,Occupational Health,Occupational Health,04,2019,100.00,13984,27/06/2018,KPIN,AMANDA CRAIG CBT SERVICES,
Human Resources,0960,Occupational Health,Occupational Health,04,2019,240.00,13984,27/06/2018,KPIN,AMANDA CRAIG CBT SERVICES,
Property Services,1050,Building Maintenance,Roof gullie clearance,04,2019,2514.00,13985,28/06/2018,KPIN,GARDHAMS PROPERTY SERVICES,
ICT,2510,IT Communications,BT BILL JUNE 2018,04,2019,3362.67,13986,22/06/2018,KPIN,BRITISH TELECOMMUNICATIONS,
Property Services,1322,Sewerage Charges,22.06.18,04,2019,116.44,13987,23/06/2018,KPIN,CASTLE WATER LIMITED,
Training,0715,In House Operational Training,In House Operational Training,04,2019,55.00,13991,27/06/2018,KPIN,DENBY DALE COFFEE LTD,
Training,0715,In House Operational Training,In House Operational Training,04,2019,55.00,13991,27/06/2018,KPIN,DENBY DALE COFFEE LTD,
Technical Services,2030,Operational Equipment Support,2932 Industrial smoke fluid (4,04,2019,125.00,13992,27/06/2018,KPIN,LE MAITRE LTD,
Technical Services,2030,Operational Equipment Support,CARRIAGE,04,2019,14.00,13992,27/06/2018,KPIN,LE MAITRE LTD,
Operations,2401,Laundry,Laundry - 28.05.18 to 24.06.18,04,2019,1370.43,13993,24/06/2018,KPIN,PHS BESAFE,
Finance & Pay,6899,Miscellaneous Expenses,Licence fee 1.8.18 to 1.8.19,04,2019,1042.19,13994,02/06/2018,KPIN,MOTION PICTURE LICENSING COMPANY LTD,
Finance & Pay,6899,Miscellaneous Expenses,Licence fee 1.8.18 to 1.8.19,04,2019,-1042.19,13994,02/06/2018,KPIN,MOTION PICTURE LICENSING COMPANY LTD,
Finance & Pay,B217,Payments in Advance,Licence fee 1.8.18 to 1.8.19,04,2019,1042.19,13994,02/06/2018,KPIN,MOTION PICTURE LICENSING COMPANY LTD,
Training,0715,In House Operational Training,In House Operational Training,04,2019,14.50,13995,28/06/2018,KPIN,RUTH LEE LTD,
Training,0715,In House Operational Training,In House Operational Training,04,2019,150.00,13995,28/06/2018,KPIN,RUTH LEE LTD,
Community Safety,4019,Community Safety,UK Delivery,04,2019,20.00,13996,27/06/2018,KPIN,TOTAL MERCHANDISE LTD,
Community Safety,4019,Community Safety,Set up charge,04,2019,18.50,13996,27/06/2018,KPIN,TOTAL MERCHANDISE LTD,
Community Safety,4019,Community Safety,Quote No: T4121810,04,2019,0.00,13996,27/06/2018,KPIN,TOTAL MERCHANDISE LTD,
Community Safety,4019,Community Safety,Portland torch keyring,04,2019,440.00,13996,27/06/2018,KPIN,TOTAL MERCHANDISE LTD,
Community Safety,4019,Community Safety,Set up charge,04,2019,10.00,13996,27/06/2018,KPIN,TOTAL MERCHANDISE LTD,
Community Safety,4019,Community Safety,Car air fresheners ,04,2019,400.00,13996,27/06/2018,KPIN,TOTAL MERCHANDISE LTD,
ICT,2040,IT Maintenance and Contracts,"Check Point Premium Support, N",04,2019,-49733.00,13997,29/06/2018,KPIN,SAPPHIRE TECHNOLOGIES LTD,
ICT,B217,Payments in Advance,Sapphire SSA  July18-June19,04,2019,15000.00,13997,29/06/2018,KPIN,SAPPHIRE TECHNOLOGIES LTD,
ICT,2040,IT Maintenance and Contracts,"Check Point Premium Support, N",04,2019,49733.00,13997,29/06/2018,KPIN,SAPPHIRE TECHNOLOGIES LTD,
ICT,B217,Payments in Advance,Check Point July18-June19,04,2019,49733.00,13997,29/06/2018,KPIN,SAPPHIRE TECHNOLOGIES LTD,
ICT,2040,IT Maintenance and Contracts,Sapphire SSA � upto 20 days of,04,2019,-15000.00,13997,29/06/2018,KPIN,SAPPHIRE TECHNOLOGIES LTD,
ICT,2040,IT Maintenance and Contracts,Sapphire SSA � upto 20 days of,04,2019,15000.00,13997,29/06/2018,KPIN,SAPPHIRE TECHNOLOGIES LTD,
ITTP Development,4005,IT Consumables,Installation service : 8GB RAM,04,2019,150.00,13998,28/06/2018,KPIN,BREEZE OFFICE SOLUTIONS,
ITTP Development,4005,IT Consumables,"65XE8501 Sony Bravia 65"" 4K HD",04,2019,2698.00,13998,28/06/2018,KPIN,BREEZE OFFICE SOLUTIONS,
ITTP Development,4005,IT Consumables,INSSD120GM280 Integral 120GB S,04,2019,264.30,13998,28/06/2018,KPIN,BREEZE OFFICE SOLUTIONS,
ITTP Development,4005,IT Consumables,Microsoft Windows 10 Pro 64-bi,04,2019,1110.00,13998,28/06/2018,KPIN,BREEZE OFFICE SOLUTIONS,
ITTP Development,4005,IT Consumables,"75XE8501 Sony Bravia 75"" 4K HD",04,2019,3534.00,13998,28/06/2018,KPIN,BREEZE OFFICE SOLUTIONS,
ITTP Development,4005,IT Consumables,GYM5600LKNA Gyration Air Mouse,04,2019,424.80,13998,28/06/2018,KPIN,BREEZE OFFICE SOLUTIONS,
ITTP Development,4005,IT Consumables,"55XE8001 Sony Bravia 55"" 4K HD",04,2019,1938.00,13998,28/06/2018,KPIN,BREEZE OFFICE SOLUTIONS,
ITTP Development,4005,IT Consumables,iN4V4GNDLRX Integral 4 GB DDR4,04,2019,723.00,13998,28/06/2018,KPIN,BREEZE OFFICE SOLUTIONS,
ITTP Development,4005,IT Consumables,UM105LUniversal Super Thin Fix,04,2019,111.00,13998,28/06/2018,KPIN,BREEZE OFFICE SOLUTIONS,
ITTP Development,4005,IT Consumables,"49XE8001Sony Bravia 49"" 4K HDR",04,2019,724.00,13998,28/06/2018,KPIN,BREEZE OFFICE SOLUTIONS,
ITTP Development,4005,IT Consumables,BLKNUC7I3DNHEIntel NUC - Next ,04,2019,2126.00,13998,28/06/2018,KPIN,BREEZE OFFICE SOLUTIONS,
ITTP Development,4005,IT Consumables,UM105M Universal Super Thin Fi,04,2019,69.60,13998,28/06/2018,KPIN,BREEZE OFFICE SOLUTIONS,
ITTP Development,4005,IT Consumables,"Shipping to CM8 3HB
",04,2019,45.00,13998,28/06/2018,KPIN,BREEZE OFFICE SOLUTIONS,,,,
Training,0715,In House Operational Training,In House Operational Training,04,2019,174.00,13999,28/06/2018,KPIN,DUNMOW SKIPS LTD,
Property Services,1499,Furniture and Fittings,DEFLECTO GRAPHTE 210 PT LITERA,04,2019,7.43,14000,29/06/2018,KPIN,BATES OFFICE SERVICES LIMITED,
Property Services,1050,Building Maintenance,works to relocate lockers and ,04,2019,319.72,14001,29/06/2018,KPIN,NORMAN DAVID MAINTENANCE,
Property Services,1050,Building Maintenance,Winding gear to windows in new,04,2019,48.49,14002,29/06/2018,KPIN,NORMAN DAVID MAINTENANCE,
Property Services,1050,Building Maintenance,REMOVE RUNNING CALL BOX,04,2019,100.47,14003,29/06/2018,KPIN,NORMAN DAVID MAINTENANCE,
Property Services,1040,Planned Works,Water Mist servicing Select Fi,04,2019,836.00,14004,27/06/2018,KPIN,BALM & DAVIES LTD,
Property Services,1050,Building Maintenance,Drying room control Duct tempe,04,2019,189.60,14005,27/06/2018,KPIN,BALM & DAVIES LTD,
Property Services,1050,Building Maintenance,Bay door.  Cables slack,04,2019,329.60,14006,29/06/2018,KPIN,HS DOOR SYSTEMS LTD,
Property Services,1040,Planned Works,Sewage Plant Emptying & Servic,04,2019,560.00,14007,29/06/2018,KPIN,ASHWASTE ENVIRONMENTAL LTD,
Property Services,1040,Planned Works,Sewage plant Servicing,04,2019,175.00,14008,29/06/2018,KPIN,ASHWASTE ENVIRONMENTAL LTD,
Human Resources,2016,Fitness Equipment,Investigate the cost to repair,04,2019,30.00,14009,29/06/2018,KPIN,SPORTSAFE UK LTD,
Technical Services,2032,Operational Equip-Initial Purchase,Iris 100 Compass,04,2019,119.10,14010,26/06/2018,KPIN,L H MORGAN & SONS (MARINE) LTD,
Technical Services,2032,Operational Equip-Initial Purchase,WGS84 Chart,04,2019,9.95,14010,26/06/2018,KPIN,L H MORGAN & SONS (MARINE) LTD,
Technical Services,2032,Operational Equip-Initial Purchase,ADHESIVE,04,2019,15.00,14010,26/06/2018,KPIN,L H MORGAN & SONS (MARINE) LTD,
Technical Services,2032,Operational Equip-Initial Purchase,"Paddle, aluminium ",04,2019,66.00,14010,26/06/2018,KPIN,L H MORGAN & SONS (MARINE) LTD,
Technical Services,2032,Operational Equip-Initial Purchase,68606 - Clips,04,2019,3.60,14010,26/06/2018,KPIN,L H MORGAN & SONS (MARINE) LTD,
Technical Services,2032,Operational Equip-Initial Purchase,Radar reflector P25587,04,2019,18.40,14010,26/06/2018,KPIN,L H MORGAN & SONS (MARINE) LTD,
Technical Services,2032,Operational Equip-Initial Purchase,Y18 Chart,04,2019,17.95,14010,26/06/2018,KPIN,L H MORGAN & SONS (MARINE) LTD,
Property Services,1330,Building Cleaning,Disposal of 2 drums of red die,04,2019,188.55,14011,25/06/2018,KPIN,WASTECARE LTD,
Not Analysed,0180,Casual and Temporary Staff,Casual and Temporary Staff,04,2019,506.52,14012,24/06/2018,KPIN,PURE RESOURCING SOLUTIONS LTD,
Not Analysed,0180,Casual and Temporary Staff,Casual and Temporary Staff,04,2019,-506.52,14012,24/06/2018,KPIN,PURE RESOURCING SOLUTIONS LTD,
Workshop Engineering,0180,Casual and Temporary Staff,Casual and Temporary Staff,04,2019,506.52,14012,24/06/2018,KPIN,PURE RESOURCING SOLUTIONS LTD,
Service Leadership Team,6099,Subscriptions - Corporate,Annual subscription to West La,04,2019,6951.89,14013,01/05/2018,KPIN,THOMSON REUTERS (PROFESSIONAL) UK LTD,
Property Services,1050,Building Maintenance,OOH call out on 2/06/18  to de,04,2019,306.90,14014,29/06/2018,KPIN,HS DOOR SYSTEMS LTD,
Property Services,1050,Building Maintenance,Rear bay door off of cable,04,2019,180.40,14015,29/06/2018,KPIN,HS DOOR SYSTEMS LTD,
Property Services,1050,Building Maintenance,OOH fire alarm panel showing f,04,2019,185.80,14016,29/06/2018,KPIN,BLAKE CONTRACTORS LTD,
Human Resources,0960,Occupational Health,Occupational Health,04,2019,151.50,14017,25/06/2018,KPIN,OAKLANDS SURGERY,
Service Leadership Team,6099,Subscriptions - Corporate,CREDIT 010616-300616,04,2019,-759.45,14018,09/07/2016,KPIN,THOMSON REUTERS (PROFESSIONAL) UK LTD,
Property Services,1321,Water Meters,26.06.18 DUNMOW,04,2019,71.26,14019,27/06/2018,KPIN,AFFINITY FOR BUSINESS LTD,
Property Services,1321,Water Meters,DUNMOW FIXED CHG,04,2019,15.60,14019,27/06/2018,KPIN,AFFINITY FOR BUSINESS LTD,
Property Services,1050,Building Maintenance,CREDIT KPIN 13205,04,2019,-99.90,14020,29/06/2018,KPIN,KIRKMAN & JOURDAIN LTD,
Catering,4130,Hospitality & Entertaining,KP MESSCLUB,04,2019,276.71,14021,25/06/2018,KPIN,KENT FROZEN FOODS LIMITED,
Property Services,1321,Water Meters,LEADEN RODING FIXED CHG,04,2019,15.60,14022,28/06/2018,KPIN,AFFINITY FOR BUSINESS LTD,
Property Services,1321,Water Meters,27.06.18 LEADEN RODING,04,2019,17.27,14022,28/06/2018,KPIN,AFFINITY FOR BUSINESS LTD,
Property Services,1050,Building Maintenance,CREDIT KPIN 13206,04,2019,-81.90,14023,29/06/2018,KPIN,KIRKMAN & JOURDAIN LTD,
Catering,0180,Casual and Temporary Staff,Casual and Temporary Staff,04,2019,313.95,14026,28/06/2018,KPIN,PURE RECRUITMENT SOLUTIONS LTD,
Service Leadership Team,6099,Subscriptions - Corporate,Annual subscription to West La,04,2019,1636.35,14027,01/04/2018,KPIN,THOMSON REUTERS (PROFESSIONAL) UK LTD,
Property Services,1060,Grounds Maintenance,Grounds Maintenance - June,04,2019,231.75,14028,30/06/2018,KPIN,CONTOUR LANDSCAPES LTD,
Property Services,1060,Grounds Maintenance,Grounds Maintenance - June,04,2019,27.58,14028,30/06/2018,KPIN,CONTOUR LANDSCAPES LTD,
Property Services,1060,Grounds Maintenance,Grounds Maintenance - June,04,2019,234.44,14028,30/06/2018,KPIN,CONTOUR LANDSCAPES LTD,
Property Services,1060,Grounds Maintenance,Grounds Maintenance - June,04,2019,30.89,14028,30/06/2018,KPIN,CONTOUR LANDSCAPES LTD,
Corporate Comms,4008,Media Expenses,Crowd Control Subs June18,04,2019,493.02,14029,26/06/2018,KPIN,CROWD CONTROL HQ,
Not Analysed,B114,Fixed Assets Under Construction ITC Equipment,Bespoke development -Average h,04,2019,5100.00,14030,29/06/2018,KPIN,CIVICA UK LTD,
Not Analysed,B114,Fixed Assets Under Construction ITC Equipment,Bespoke development - Employee,04,2019,850.00,14031,29/06/2018,KPIN,CIVICA UK LTD,
Not Analysed,B114,Fixed Assets Under Construction ITC Equipment,Bespoke development - Timeshee,04,2019,2125.00,14032,29/06/2018,KPIN,CIVICA UK LTD,
Property Services,1050,Building Maintenance,Assist with the Move of IT & C,04,2019,895.00,14033,29/06/2018,KPIN,C S ELECTRICAL ESSEX LTD,
Property Services,1030,Int Decs/Alts & Improvements,MIN/1819/234 To supply and fit,04,2019,2765.70,14034,29/06/2018,KPIN,C S ELECTRICAL ESSEX LTD,
Property Services,1050,Building Maintenance,Power socket required for trea,04,2019,327.60,14035,29/06/2018,KPIN,C S ELECTRICAL ESSEX LTD,
Property Services,1050,Building Maintenance,Re-route supply to GPS repeate,04,2019,324.20,14036,29/06/2018,KPIN,C S ELECTRICAL ESSEX LTD,
Training,4111,Subsistence Allowances,Subsistence Allowances,04,2019,47.25,14037,30/06/2018,KPIN,SARAHS CATERING LIMITED,
Training,4111,Subsistence Allowances,Subsistence Allowances,04,2019,40.50,14037,30/06/2018,KPIN,SARAHS CATERING LIMITED,
Training,4111,Subsistence Allowances,Subsistence Allowances,04,2019,40.50,14037,30/06/2018,KPIN,SARAHS CATERING LIMITED,
Training,4111,Subsistence Allowances,Subsistence Allowances,04,2019,5.00,14037,30/06/2018,KPIN,SARAHS CATERING LIMITED,
Training,4111,Subsistence Allowances,Subsistence Allowances,04,2019,1.50,14037,30/06/2018,KPIN,SARAHS CATERING LIMITED,
Training,4111,Subsistence Allowances,Subsistence Allowances,04,2019,40.50,14037,30/06/2018,KPIN,SARAHS CATERING LIMITED,
Training,4111,Subsistence Allowances,Subsistence Allowances,04,2019,40.50,14037,30/06/2018,KPIN,SARAHS CATERING LIMITED,
Training,4111,Subsistence Allowances,Subsistence Allowances,04,2019,40.50,14037,30/06/2018,KPIN,SARAHS CATERING LIMITED,
Training,4111,Subsistence Allowances,Subsistence Allowances,04,2019,33.75,14037,30/06/2018,KPIN,SARAHS CATERING LIMITED,
Training,4111,Subsistence Allowances,Subsistence Allowances,04,2019,20.00,14037,30/06/2018,KPIN,SARAHS CATERING LIMITED,
Training,4111,Subsistence Allowances,Subsistence Allowances,04,2019,40.50,14037,30/06/2018,KPIN,SARAHS CATERING LIMITED,
Training,4111,Subsistence Allowances,Subsistence Allowances,04,2019,40.50,14037,30/06/2018,KPIN,SARAHS CATERING LIMITED,
Training,4111,Subsistence Allowances,Subsistence Allowances,04,2019,40.50,14037,30/06/2018,KPIN,SARAHS CATERING LIMITED,
Training,4111,Subsistence Allowances,Subsistence Allowances,04,2019,60.00,14037,30/06/2018,KPIN,SARAHS CATERING LIMITED,
Training,4111,Subsistence Allowances,Subsistence Allowances,04,2019,40.50,14037,30/06/2018,KPIN,SARAHS CATERING LIMITED,
Training,4111,Subsistence Allowances,Subsistence Allowances,04,2019,40.50,14037,30/06/2018,KPIN,SARAHS CATERING LIMITED,
Training,4111,Subsistence Allowances,Subsistence Allowances,04,2019,40.50,14037,30/06/2018,KPIN,SARAHS CATERING LIMITED,
Training,4111,Subsistence Allowances,Subsistence Allowances,04,2019,7.50,14037,30/06/2018,KPIN,SARAHS CATERING LIMITED,
Training,4111,Subsistence Allowances,Subsistence Allowances,04,2019,15.00,14037,30/06/2018,KPIN,SARAHS CATERING LIMITED,
Project 2020,0180,Casual and Temporary Staff,Casual and Temporary Staff,04,2019,331.90,14038,29/06/2018,KPIN,REED SPECIALIST RECRUITMENT LIMITED,
Human Resources,2903,Consultancy Fees,Drug & Alcohol Test - 13/06/20,04,2019,156.00,14039,30/06/2018,KPIN,ALERE TOXICOLOGY PLC,
Stores,B205,Stocks & WIP (Purchasing & Supply Stores),WB YELLOW NOTE 75X125MM,04,2019,16.32,14040,30/06/2018,KPIN,OFFICE IS LIMITED,
Stores,B205,Stocks & WIP (Purchasing & Supply Stores),WB YELLOW NOTE 75X75MM,04,2019,11.20,14040,30/06/2018,KPIN,OFFICE IS LIMITED,
Purchasing & Supply,4001,Stationery,Sharpie China Marker Bullet Ti,04,2019,61.60,14041,30/06/2018,KPIN,OFFICE IS LIMITED,
Purchasing & Supply,4001,Stationery,XEROX A4 RECYCLED SUPREME PAPE,04,2019,16.75,14041,30/06/2018,KPIN,OFFICE IS LIMITED,
Purchasing & Supply,4001,Stationery,XEROX A4 RECYCLED SUPREME PAPE,04,2019,16.75,14042,30/06/2018,KPIN,OFFICE IS LIMITED,
Purchasing & Supply,4001,Stationery,Bostik Blu-Tack Handy (Pack 60,04,2019,1.73,14042,30/06/2018,KPIN,OFFICE IS LIMITED,
Purchasing & Supply,4001,Stationery,Sharpie China Marker Bullet Ti,04,2019,6.16,14042,30/06/2018,KPIN,OFFICE IS LIMITED,
Purchasing & Supply,4001,Stationery,WB CONTRACT PENCIL RUBBER TIPP,04,2019,1.35,14042,30/06/2018,KPIN,OFFICE IS LIMITED,
Purchasing & Supply,4001,Stationery,OFFICE IS CLEAR RULER 300MM KF,04,2019,0.36,14042,30/06/2018,KPIN,OFFICE IS LIMITED,
Purchasing & Supply,4001,Stationery,WB PUNCHED POCKET A4 CLR 27048,04,2019,0.94,14042,30/06/2018,KPIN,OFFICE IS LIMITED,
Purchasing & Supply,4001,Stationery,Ballpoint Pen Black Medium 960,04,2019,4.62,14042,30/06/2018,KPIN,OFFICE IS LIMITED,
Purchasing & Supply,4001,Stationery,WB BOXFILE CLOUD FOOLSCAP,04,2019,13.40,14042,30/06/2018,KPIN,OFFICE IS LIMITED,
Purchasing & Supply,4001,Stationery,WB WHITEBOARD MARKER CHISEL BL,04,2019,1.54,14042,30/06/2018,KPIN,OFFICE IS LIMITED,
Stores,B205,Stocks & WIP (Purchasing & Supply Stores),2Work Anti-Static Screen Clean,04,2019,12.64,14043,30/06/2018,KPIN,OFFICE IS LIMITED,
Stores,B205,Stocks & WIP (Purchasing & Supply Stores),WB RING BINDER A4 BLACK,04,2019,13.08,14043,30/06/2018,KPIN,OFFICE IS LIMITED,
Purchasing & Supply,4001,Stationery,WB WHITEBOARD MARKER CHISEL BL,04,2019,3.08,14044,30/06/2018,KPIN,OFFICE IS LIMITED,
Purchasing & Supply,4001,Stationery,Sharpie China Marker Bullet Ti,04,2019,12.32,14044,30/06/2018,KPIN,OFFICE IS LIMITED,
Purchasing & Supply,4001,Stationery,REPORT FILES PK 25 RED KF01455,04,2019,4.16,14044,30/06/2018,KPIN,OFFICE IS LIMITED,
Purchasing & Supply,4001,Stationery,WB WHITEBOARD MARKER CHISEL RE,04,2019,3.08,14044,30/06/2018,KPIN,OFFICE IS LIMITED,
Purchasing & Supply,2012,Office/Admin Equipment (incl copiers),AV14029 - A3 Guillotine ,04,2019,76.58,14045,30/06/2018,KPIN,OFFICE IS LIMITED,
Property Services,1499,Furniture and Fittings,Small Table for Stores,04,2019,79.50,14046,30/06/2018,KPIN,STAT-EXPRESS,
Human Resources,0960,Occupational Health,Occupational Health,04,2019,429.00,14047,30/06/2018,KPIN,SMART EMPLOYEE EYECARE,
Human Resources,0960,Occupational Health,Occupational Health,04,2019,25.00,14047,30/06/2018,KPIN,SMART EMPLOYEE EYECARE,
Human Resources,0960,Occupational Health,Occupational Health,04,2019,360.00,14047,30/06/2018,KPIN,SMART EMPLOYEE EYECARE,
Human Resources,0960,Occupational Health,Occupational Health,04,2019,190.00,14047,30/06/2018,KPIN,SMART EMPLOYEE EYECARE,
Human Resources,0960,Occupational Health,Occupational Health,04,2019,212.40,14047,30/06/2018,KPIN,SMART EMPLOYEE EYECARE,
Human Resources,0960,Occupational Health,Occupational Health,04,2019,57.00,14047,30/06/2018,KPIN,SMART EMPLOYEE EYECARE,
Human Resources,0960,Occupational Health,Occupational Health,04,2019,141.60,14047,30/06/2018,KPIN,SMART EMPLOYEE EYECARE,
Corporate Comms,4008,Media Expenses,Media Monitoring Subs JUNE,04,2019,562.50,14048,30/06/2018,KPIN,QUANTUM PUBLIC RELATIONS,
ICT,2510,IT Communications,Annual Mast Rental at All Sain,04,2019,350.00,14049,29/06/2018,KPIN,ALL SAINTS CE (VC) PRIMARY SCHOOL,
Property Services,1040,Planned Works,Generator - retainer JUN,04,2019,185.00,14050,30/06/2018,KPIN,OPTIMUM POWER SERVICES LTD,
Property Services,1330,Building Cleaning,Confidential Waste Collection,04,2019,150.00,14051,30/06/2018,KPIN,SHRED 4 SECURITY LTD,
Property Services,1330,Building Cleaning,Confidential Waste Collection,04,2019,150.00,14052,30/06/2018,KPIN,SHRED 4 SECURITY LTD,
Stores,B205,Stocks & WIP (Purchasing & Supply Stores),"Cap Fireman Size 67/8""  (55 cm",04,2019,201.00,14053,27/06/2018,KPIN,TOYE KENNING & SPENCER LTD,
Stores,B205,Stocks & WIP (Purchasing & Supply Stores),"Cap Fireman Size 71/8""  (57 cm",04,2019,201.00,14053,27/06/2018,KPIN,TOYE KENNING & SPENCER LTD,
Stores,B205,Stocks & WIP (Purchasing & Supply Stores),"Cap Fireman Size 73/8""  (59 cm",04,2019,351.75,14053,27/06/2018,KPIN,TOYE KENNING & SPENCER LTD,
Stores,B205,Stocks & WIP (Purchasing & Supply Stores),Freight Misc,04,2019,12.50,14053,27/06/2018,KPIN,TOYE KENNING & SPENCER LTD,
Stores,B205,Stocks & WIP (Purchasing & Supply Stores),"Cap Fireman Size 7""  (56 cms)",04,2019,100.50,14053,27/06/2018,KPIN,TOYE KENNING & SPENCER LTD,
Stores,B205,Stocks & WIP (Purchasing & Supply Stores),"Cap Fireman Size 71/4""  (58 cm",04,2019,100.50,14053,27/06/2018,KPIN,TOYE KENNING & SPENCER LTD,
Stores,B205,Stocks & WIP (Purchasing & Supply Stores),"Cap Fireman Size 71/2""  (60 cm",04,2019,201.00,14053,27/06/2018,KPIN,TOYE KENNING & SPENCER LTD,
Technical Services,2032,Operational Equip-Initial Purchase,Adult Defibrillator Pads - Pow,04,2019,690.00,14054,27/06/2018,KPIN,CARDIAC SCIENCE HOLDINGS UK LTD,
Technical Services,2032,Operational Equip-Initial Purchase,Freight,04,2019,5.95,14054,27/06/2018,KPIN,CARDIAC SCIENCE HOLDINGS UK LTD,
Community Safety,4019,Community Safety,Booking of 17 seat minibus,04,2019,383.33,14055,02/07/2018,KPIN,STEVE'S SELF DRIVE HIRE,
Purchasing & Supply,2303,Clothing & Footwear,6DM0910 DM safety boot size10,04,2019,67.99,14056,02/07/2018,KPIN,ARCO LTD,
Property Services,2903,Consultancy Fees,1718/411 -External Shower/wc w,04,2019,90.00,14057,30/06/2018,KPIN,INGLETON WOOD LLP,
Training,4112,Conferences & Seminars,AFSA National Conference (22 -,04,2019,150.00,14109,27/06/2018,KPIN,ASIAN FIRE SERVICE ASSOCIATION,
Workshops Management,3201,Petrol and Diesel,Petrol and Diesel,04,2019,-5651.37,14110,30/06/2018,KPIN,ALLSTAR BUSINESS SOLUTIONS LTD,
Workshops Management,3201,Petrol and Diesel,Petrol and Diesel,04,2019,5651.37,14110,30/06/2018,KPIN,ALLSTAR BUSINESS SOLUTIONS LTD,
Stores,B205,Stocks & WIP (Purchasing & Supply Stores),"Envelope, Plain, DL White",04,2019,6.41,14111,29/06/2018,KPIN,BANNER GROUP LIMITED,
Stores,B205,Stocks & WIP (Purchasing & Supply Stores),Banner Bar Tag 76Mm Green,04,2019,0.86,14111,29/06/2018,KPIN,BANNER GROUP LIMITED,
Stores,B205,Stocks & WIP (Purchasing & Supply Stores),Bann Env 324X229 Pln 80G Ss Ma,04,2019,4.22,14111,29/06/2018,KPIN,BANNER GROUP LIMITED,
Stores,B205,Stocks & WIP (Purchasing & Supply Stores),Ba Re Env 229X162 90G Wdw Ss W,04,2019,7.34,14111,29/06/2018,KPIN,BANNER GROUP LIMITED,
Stores,B205,Stocks & WIP (Purchasing & Supply Stores),Banner Bar Tag 50Mm Yellow,04,2019,0.92,14111,29/06/2018,KPIN,BANNER GROUP LIMITED,
Stores,B205,Stocks & WIP (Purchasing & Supply Stores),Rubber Bands No 24,04,2019,4.18,14111,29/06/2018,KPIN,BANNER GROUP LIMITED,
Purchasing & Supply,2303,Clothing & Footwear,665107 Arco essential safety s,04,2019,26.69,14112,29/06/2018,KPIN,ARCO LTD,
Purchasing & Supply,2303,Clothing & Footwear,6M7710 Trojan S1P safety train,04,2019,47.99,14112,29/06/2018,KPIN,ARCO LTD,
Operations - USAR,2030,Operational Equipment Support,Oxygen Cylinder Rental Size Y,04,2019,4.28,14113,28/06/2018,KPIN,B O C LTD,
Operations - USAR,2030,Operational Equipment Support,Oxygen Cylinder Rental Size  W,04,2019,80.19,14113,28/06/2018,KPIN,B O C LTD,
Operations - USAR,2030,Operational Equipment Support,Driver Glove size 10 (USAR),04,2019,50.61,14114,08/06/2018,KPIN,R S COMPONENTS LTD,
Operations - USAR,2030,Operational Equipment Support,Driver Glove size 9 (USAR),04,2019,50.61,14114,08/06/2018,KPIN,R S COMPONENTS LTD,
Not Analysed,0715,In House Operational Training,In House Operational Training,04,2019,164.67,14117,14/06/2018,KPIN,NORDIC TIMBER LTD,
ICT,2510,IT Communications,SMS CHARGES - JUNE,04,2019,657.07,14119,30/06/2018,KPIN,SRCL LIMITED,
Purchasing & Supply,2303,Clothing & Footwear,CREDIT RE KPIN12431,04,2019,-44.00,14121,28/06/2018,KPIN,HI-TEC EUROPE LTD,
Purchasing & Supply,2303,Clothing & Footwear,CREDIT RE KPIN12780,04,2019,-47.75,14122,28/06/2018,KPIN,HI-TEC EUROPE LTD,
Technical Services,2030,Operational Equipment Support,CREDIT KPIN 14010,04,2019,-39.17,14123,30/06/2018,KPIN,L H MORGAN & SONS (MARINE) LTD,
Police Collaboration,0180,Casual and Temporary Staff,Casual and Temporary Staff,04,2019,-777.91,14124,02/07/2018,KPIN,SUCCESS RECRUIT LIMITED,
ICT,2510,IT Communications,DAISY BILL 30/06/18,04,2019,40.00,14125,01/07/2018,KPIN,DAISY UPDATA COMMUNICATIONS LTD,
Human Resources,0962,Employee Subscriptions,CIPD Membership Renewals 2018/,04,2019,3282.00,14126,22/06/2018,KPIN,CHARTERED INSTITUTE OF PERSONNEL & DEVELOPMENT,
Property Services,1330,Building Cleaning,Additional cleaning,04,2019,227.70,14127,30/06/2018,KPIN,MONTHIND CLEAN LLP,
Purchasing & Supply,2024,Cleaning Equipment,Jumbo Sponge 220x120x50MM (EA),04,2019,1.36,14128,02/07/2018,KPIN,BUNZL CLEANING & HYGIENE SUPPLIES,
Purchasing & Supply,2024,Cleaning Equipment,6663 Scott Performance Hand To,04,2019,144.48,14128,02/07/2018,KPIN,BUNZL CLEANING & HYGIENE SUPPLIES,
Property Services,1050,Building Maintenance,Lamp recycling - all sites,04,2019,618.00,14129,30/06/2018,KPIN,KIRKMAN & JOURDAIN LTD,
Stores,B205,Stocks & WIP (Purchasing & Supply Stores),Beanie Hat Black with ECFRS Lo,04,2019,114.84,14130,26/06/2018,KPIN,BALLANTYNE EDWARDS LTD,
Stores,B205,Stocks & WIP (Purchasing & Supply Stores),Trousers tracksuit black xlarg,04,2019,59.65,14130,26/06/2018,KPIN,BALLANTYNE EDWARDS LTD,
Stores,B205,Stocks & WIP (Purchasing & Supply Stores),Baseball Cap Black with ECFRS ,04,2019,387.86,14130,26/06/2018,KPIN,BALLANTYNE EDWARDS LTD,
Stores,B205,Stocks & WIP (Purchasing & Supply Stores),Woolly Hat Black with ECFRS Lo,04,2019,210.00,14130,26/06/2018,KPIN,BALLANTYNE EDWARDS LTD,
Stores,B205,Stocks & WIP (Purchasing & Supply Stores),Fleece - Thor III black with c,04,2019,77.95,14130,26/06/2018,KPIN,BALLANTYNE EDWARDS LTD,
Stores,B205,Stocks & WIP (Purchasing & Supply Stores),Wide Brimmed Hat Black with tr,04,2019,116.70,14130,26/06/2018,KPIN,BALLANTYNE EDWARDS LTD,
Human Resources,0960,Occupational Health,Occupational Health,04,2019,320.00,14131,19/06/2018,KPIN,ALERE TOXICOLOGY PLC,
Human Resources,0960,Occupational Health,Occupational Health,04,2019,320.00,14132,03/07/2018,KPIN,AMANDA CRAIG CBT SERVICES,
ICT,2040,IT Maintenance and Contracts,Fully managed cloud backup Sol,04,2019,3250.00,14133,30/06/2018,KPIN,IOMART CLOUD SERVICE,
Property Services,1060,Grounds Maintenance,Grounds Maintenance - June,04,2019,84.12,14136,18/06/2018,KPIN,MITIE LANDSCAPES LIMITED,
Property Services,1060,Grounds Maintenance,Grounds Maintenance - June,04,2019,162.89,14136,18/06/2018,KPIN,MITIE LANDSCAPES LIMITED,
Property Services,1060,Grounds Maintenance,Grounds Maintenance - June,04,2019,35.77,14136,18/06/2018,KPIN,MITIE LANDSCAPES LIMITED,
Property Services,1060,Grounds Maintenance,Grounds Maintenance - June,04,2019,35.77,14136,18/06/2018,KPIN,MITIE LANDSCAPES LIMITED,
Property Services,1060,Grounds Maintenance,Grounds Maintenance - June,04,2019,55.73,14136,18/06/2018,KPIN,MITIE LANDSCAPES LIMITED,
Property Services,1060,Grounds Maintenance,Grounds Maintenance - June,04,2019,17.88,14136,18/06/2018,KPIN,MITIE LANDSCAPES LIMITED,
Property Services,1060,Grounds Maintenance,Grounds Maintenance - June,04,2019,110.38,14136,18/06/2018,KPIN,MITIE LANDSCAPES LIMITED,
Property Services,1060,Grounds Maintenance,Grounds Maintenance - June,04,2019,37.91,14136,18/06/2018,KPIN,MITIE LANDSCAPES LIMITED,
Property Services,1060,Grounds Maintenance,Grounds Maintenance - June,04,2019,84.12,14136,18/06/2018,KPIN,MITIE LANDSCAPES LIMITED,
Property Services,1060,Grounds Maintenance,Grounds Maintenance - June,04,2019,35.77,14136,18/06/2018,KPIN,MITIE LANDSCAPES LIMITED,
Property Services,1060,Grounds Maintenance,Grounds Maintenance - June,04,2019,23.18,14136,18/06/2018,KPIN,MITIE LANDSCAPES LIMITED,
Property Services,1060,Grounds Maintenance,Grounds Maintenance - June,04,2019,9.48,14136,18/06/2018,KPIN,MITIE LANDSCAPES LIMITED,
Property Services,1060,Grounds Maintenance,Grounds Maintenance - June,04,2019,29.47,14136,18/06/2018,KPIN,MITIE LANDSCAPES LIMITED,
Property Services,1060,Grounds Maintenance,Grounds Maintenance - June,04,2019,18.96,14136,18/06/2018,KPIN,MITIE LANDSCAPES LIMITED,
Property Services,1060,Grounds Maintenance,Grounds Maintenance - June,04,2019,37.91,14136,18/06/2018,KPIN,MITIE LANDSCAPES LIMITED,
Property Services,1060,Grounds Maintenance,Grounds Maintenance - June,04,2019,52.95,14136,18/06/2018,KPIN,MITIE LANDSCAPES LIMITED,
Property Services,1060,Grounds Maintenance,Grounds Maintenance - June,04,2019,25.86,14136,18/06/2018,KPIN,MITIE LANDSCAPES LIMITED,
Property Services,1060,Grounds Maintenance,Grounds Maintenance - June,04,2019,86.27,14136,18/06/2018,KPIN,MITIE LANDSCAPES LIMITED,
Property Services,1060,Grounds Maintenance,Grounds Maintenance - June,04,2019,42.60,14136,18/06/2018,KPIN,MITIE LANDSCAPES LIMITED,
Property Services,1060,Grounds Maintenance,Grounds Maintenance - June,04,2019,44.21,14136,18/06/2018,KPIN,MITIE LANDSCAPES LIMITED,
Property Services,1060,Grounds Maintenance,Grounds Maintenance - June,04,2019,35.77,14136,18/06/2018,KPIN,MITIE LANDSCAPES LIMITED,
Property Services,1060,Grounds Maintenance,Grounds Maintenance - June,04,2019,17.88,14136,18/06/2018,KPIN,MITIE LANDSCAPES LIMITED,
Property Services,1060,Grounds Maintenance,Grounds Maintenance - June,04,2019,22.10,14136,18/06/2018,KPIN,MITIE LANDSCAPES LIMITED,
Property Services,1060,Grounds Maintenance,Grounds Maintenance - June,04,2019,31.62,14136,18/06/2018,KPIN,MITIE LANDSCAPES LIMITED,
Property Services,1060,Grounds Maintenance,Grounds Maintenance - June,04,2019,51.58,14136,18/06/2018,KPIN,MITIE LANDSCAPES LIMITED,
Property Services,1060,Grounds Maintenance,Grounds Maintenance - June,04,2019,76.76,14136,18/06/2018,KPIN,MITIE LANDSCAPES LIMITED,
Property Services,1060,Grounds Maintenance,Grounds Maintenance - June,04,2019,53.43,14136,18/06/2018,KPIN,MITIE LANDSCAPES LIMITED,
Property Services,1060,Grounds Maintenance,Grounds Maintenance - June,04,2019,68.85,14136,18/06/2018,KPIN,MITIE LANDSCAPES LIMITED,
Property Services,1060,Grounds Maintenance,Grounds Maintenance - June,04,2019,59.95,14136,18/06/2018,KPIN,MITIE LANDSCAPES LIMITED,
Property Services,1060,Grounds Maintenance,Grounds Maintenance - June,04,2019,43.35,14136,18/06/2018,KPIN,MITIE LANDSCAPES LIMITED,
Property Services,1060,Grounds Maintenance,Grounds Maintenance - June,04,2019,98.32,14136,18/06/2018,KPIN,MITIE LANDSCAPES LIMITED,
Property Services,1060,Grounds Maintenance,Grounds Maintenance - June,04,2019,42.06,14136,18/06/2018,KPIN,MITIE LANDSCAPES LIMITED,
Property Services,1060,Grounds Maintenance,Grounds Maintenance - June,04,2019,84.12,14136,18/06/2018,KPIN,MITIE LANDSCAPES LIMITED,
Property Services,1060,Grounds Maintenance,Grounds Maintenance - June,04,2019,334.36,14136,18/06/2018,KPIN,MITIE LANDSCAPES LIMITED,
Property Services,1060,Grounds Maintenance,Grounds Maintenance - June,04,2019,352.05,14136,18/06/2018,KPIN,MITIE LANDSCAPES LIMITED,
Property Services,1060,Grounds Maintenance,Grounds Maintenance - June,04,2019,53.43,14136,18/06/2018,KPIN,MITIE LANDSCAPES LIMITED,
Human Resources,4518,Other Local Authority Services,Service Level Agreement - JULY,04,2019,8764.83,14137,03/07/2018,KPIN,ESSEX PENSION FUND,
Community Safety,4019,Community Safety,Provision of SERP Advanced Ins,04,2019,140.00,14138,03/07/2018,KPIN,TOTAL ADVANCED,
Police Collaboration,0180,Casual and Temporary Staff,Casual and Temporary Staff,04,2019,787.69,14139,03/07/2018,KPIN,SUCCESS RECRUIT LIMITED,
Workshops Management,3201,Petrol and Diesel,Petrol and Diesel,04,2019,2055.40,14140,29/06/2018,KPIN,CERTAS ENERGY UK LTD,
ICT,2510,IT Communications,Control Pagers - JUL 2018,04,2019,890.00,14141,02/07/2018,KPIN,PAGEONE COMMUNICATIONS LTD,
ICT,4005,IT Consumables,Ownership Audit Process Licens,04,2019,1312.50,14142,03/07/2018,KPIN,SOLLERTIS LIMITED,
Property Services,0180,Casual and Temporary Staff,Casual and Temporary Staff,04,2019,538.62,14144,29/06/2018,KPIN,PURSUIT RESOURCES GROUP LTD,
Property Services,0180,Casual and Temporary Staff,Casual and Temporary Staff,04,2019,545.61,14144,29/06/2018,KPIN,PURSUIT RESOURCES GROUP LTD,
Property Services,1499,Furniture and Fittings,Install Noticeboard,04,2019,47.50,14145,03/07/2018,KPIN,NORMAN DAVID MAINTENANCE,
Property Services,1050,Building Maintenance,Clad external raking shore to ,04,2019,336.17,14146,03/07/2018,KPIN,NORMAN DAVID MAINTENANCE,
Property Services,1050,Building Maintenance,Ease and adjust double doors a,04,2019,191.78,14147,03/07/2018,KPIN,NORMAN DAVID MAINTENANCE,
Property Services,1050,Building Maintenance,Fit single action door lock to,04,2019,84.82,14148,03/07/2018,KPIN,NORMAN DAVID MAINTENANCE,
Purchasing & Supply,2303,Clothing & Footwear,6DM0911 Dr Martin Safety boot ,04,2019,67.99,14149,03/07/2018,KPIN,ARCO LTD,
ICT,4005,IT Consumables,Dell 2400MP Projector lamp & h,04,2019,99.00,14150,04/07/2018,KPIN,DATA PRO IT LIMITED,
ICT,2040,IT Maintenance and Contracts,Citrix Netscaler VPX200,04,2019,4507.06,14151,03/07/2018,KPIN,ESTEEM SYSTEMS LTD,
ICT,2040,IT Maintenance and Contracts,Citrix Netscaler VPX200 Mainte,04,2019,3077.24,14151,03/07/2018,KPIN,ESTEEM SYSTEMS LTD,
ICT,B217,Payments in Advance,Citrix Maint 300618-300621,04,2019,3077.24,14151,03/07/2018,KPIN,ESTEEM SYSTEMS LTD,
ICT,2040,IT Maintenance and Contracts,Citrix Netscaler VPX200 Mainte,04,2019,-3077.24,14151,03/07/2018,KPIN,ESTEEM SYSTEMS LTD,
Property Services,1050,Building Maintenance,Dead flies dropping from ceili,04,2019,65.00,14152,03/07/2018,KPIN,MID-ESSEX PEST CONTROL,
Property Services,4003,Postage Direct Mailing & Carriage,Parcel to Eltec Cambridgeshire,04,2019,13.27,14153,29/06/2018,KPIN,T N T UK LTD,
Human Resources,0963,Childcare Vouchers,Childcare Vouchers July 2018 -,04,2019,5561.14,14154,04/07/2018,KPIN,FIDELITI LIMITED,
Property Services,2903,Consultancy Fees,For works regarding produding ,04,2019,750.00,14155,28/06/2018,KPIN,CONCERTO SUPPORT SERVICES LTD,
Property Services,1050,Building Maintenance,OOH genie lead fault 26/5/18 1,04,2019,110.00,14156,30/06/2018,KPIN,KIRKMAN & JOURDAIN LTD,
Property Services,1050,Building Maintenance,REMEDIALS - 1st PPM VISIT,04,2019,163.68,14157,30/06/2018,KPIN,KIRKMAN & JOURDAIN LTD,
Human Resources,0960,Occupational Health,Occupational Health,04,2019,148.00,14158,04/07/2018,KPIN,CHELMSFORD PRIORY,
Property Services,1040,Planned Works,REMEDIALS - 1st PPM VISIT,04,2019,206.45,14159,30/06/2018,KPIN,KIRKMAN & JOURDAIN LTD,
Property Services,1050,Building Maintenance,Electrical Servicing 1st Quart,04,2019,173.80,14160,30/06/2018,KPIN,KIRKMAN & JOURDAIN LTD,
Property Services,1050,Building Maintenance,REMEDIALS - 1st PPM VISIT,04,2019,139.12,14161,30/06/2018,KPIN,KIRKMAN & JOURDAIN LTD,
Property Services,1050,Building Maintenance,REMEDIALS - 1st PPM VISIT,04,2019,221.15,14162,30/06/2018,KPIN,KIRKMAN & JOURDAIN LTD,
Property Services,1050,Building Maintenance,REMEDIALS - 1st PPM VISIT,04,2019,131.15,14163,30/06/2018,KPIN,KIRKMAN & JOURDAIN LTD,
Property Services,1050,Building Maintenance,Appliance bay lights OOH 26/5/,04,2019,179.36,14164,30/06/2018,KPIN,KIRKMAN & JOURDAIN LTD,
Property Services,1050,Building Maintenance,Key switch damaged in applianc,04,2019,140.86,14165,30/06/2018,KPIN,KIRKMAN & JOURDAIN LTD,
Property Services,1050,Building Maintenance,OOH  call out on 29/05/18 at 2,04,2019,201.00,14166,30/06/2018,KPIN,KIRKMAN & JOURDAIN LTD,
Property Services,1050,Building Maintenance,To remedy defective Genie lead,04,2019,118.00,14167,30/06/2018,KPIN,KIRKMAN & JOURDAIN LTD,
Property Services,1050,Building Maintenance,To remedy defective fan - runn,04,2019,91.00,14168,30/06/2018,KPIN,KIRKMAN & JOURDAIN LTD,
Property Services,1050,Building Maintenance,To replace genie plug with one,04,2019,117.90,14169,30/06/2018,KPIN,KIRKMAN & JOURDAIN LTD,
Property Services,1050,Building Maintenance,To relamp light in chamber as ,04,2019,150.68,14170,30/06/2018,KPIN,KIRKMAN & JOURDAIN LTD,
Property Services,1050,Building Maintenance,To re-lamp light,04,2019,142.68,14171,30/06/2018,KPIN,KIRKMAN & JOURDAIN LTD,
Property Services,1050,Building Maintenance,To remedy defective light,04,2019,130.13,14172,30/06/2018,KPIN,KIRKMAN & JOURDAIN LTD,
Property Services,1050,Building Maintenance,To repair extractor fan.,04,2019,246.00,14173,30/06/2018,KPIN,KIRKMAN & JOURDAIN LTD,
Property Services,1050,Building Maintenance,External power point A new cha,04,2019,473.00,14174,30/06/2018,KPIN,KIRKMAN & JOURDAIN LTD,
Property Services,1040,Planned Works,PAT testing for Control,04,2019,307.00,14175,30/06/2018,KPIN,KIRKMAN & JOURDAIN LTD,
Property Services,1050,Building Maintenance,OOH on 5/06/18 call out on the,04,2019,150.50,14176,30/06/2018,KPIN,KIRKMAN & JOURDAIN LTD,
Property Services,1050,Building Maintenance,Defective Genie lead in WRT ba,04,2019,261.00,14177,30/06/2018,KPIN,KIRKMAN & JOURDAIN LTD,
Operations,4009,Operational Support Costs,74003 Trousers 5.11 BDU Large/,04,2019,41.65,14178,03/07/2018,KPIN,THE OUTDOORS COMPANY,
Operations,4009,Operational Support Costs,Freight Misc,04,2019,8.99,14178,03/07/2018,KPIN,THE OUTDOORS COMPANY,
Operations,4009,Operational Support Costs,"Belt USAR Large, Black 1.5""",04,2019,10.05,14178,03/07/2018,KPIN,THE OUTDOORS COMPANY,
Operations,4009,Operational Support Costs,74003 Trousers 5.11 BDU Large/,04,2019,41.65,14178,03/07/2018,KPIN,THE OUTDOORS COMPANY,
Operations,4009,Operational Support Costs,Belt USAR XLarge,04,2019,10.05,14178,03/07/2018,KPIN,THE OUTDOORS COMPANY,
Property Services,1050,Building Maintenance,Key safe for appliance keys - ,04,2019,79.95,14179,04/07/2018,KPIN,BRENTWOOD LOCK & SAFE CO LTD,
Property Services,1499,Furniture and Fittings,2no.keys for pedestal no 0432,04,2019,9.00,14181,04/07/2018,KPIN,BRENTWOOD LOCK & SAFE CO LTD,
Property Services,1499,Furniture and Fittings,2no. Keys for cube locker no C,04,2019,9.00,14182,04/07/2018,KPIN,BRENTWOOD LOCK & SAFE CO LTD,
Property Services,1060,Grounds Maintenance,Grounds Maintenance,04,2019,208.92,14183,29/06/2018,KPIN,PINNACLE ESSEX,
Property Services,1060,Grounds Maintenance,Grounds Maintenance,04,2019,55.83,14183,29/06/2018,KPIN,PINNACLE ESSEX,
Property Services,1060,Grounds Maintenance,Grounds Maintenance,04,2019,241.58,14183,29/06/2018,KPIN,PINNACLE ESSEX,
Property Services,1060,Grounds Maintenance,Grounds Maintenance,04,2019,83.25,14183,29/06/2018,KPIN,PINNACLE ESSEX,
Property Services,1060,Grounds Maintenance,Grounds Maintenance,04,2019,132.58,14183,29/06/2018,KPIN,PINNACLE ESSEX,
Property Services,1060,Grounds Maintenance,Grounds Maintenance,04,2019,53.17,14183,29/06/2018,KPIN,PINNACLE ESSEX,
Property Services,1060,Grounds Maintenance,Grounds Maintenance,04,2019,53.17,14183,29/06/2018,KPIN,PINNACLE ESSEX,
Property Services,1060,Grounds Maintenance,Grounds Maintenance,04,2019,55.83,14183,29/06/2018,KPIN,PINNACLE ESSEX,
Property Services,1060,Grounds Maintenance,Grounds Maintenance,04,2019,92.25,14183,29/06/2018,KPIN,PINNACLE ESSEX,
Property Services,1060,Grounds Maintenance,Grounds Maintenance,04,2019,64.42,14183,29/06/2018,KPIN,PINNACLE ESSEX,
Property Services,1060,Grounds Maintenance,Grounds Maintenance,04,2019,54.50,14183,29/06/2018,KPIN,PINNACLE ESSEX,
Property Services,1060,Grounds Maintenance,Grounds Maintenance,04,2019,55.83,14183,29/06/2018,KPIN,PINNACLE ESSEX,
Property Services,1330,Building Cleaning,Daily Cleaning,04,2019,221.85,14184,29/06/2018,KPIN,PINNACLE ESSEX,
Property Services,1330,Building Cleaning,Daily Cleaning,04,2019,985.32,14184,29/06/2018,KPIN,PINNACLE ESSEX,
Property Services,1330,Building Cleaning,Daily Cleaning,04,2019,2301.62,14184,29/06/2018,KPIN,PINNACLE ESSEX,
Property Services,1330,Building Cleaning,Daily Cleaning,04,2019,1380.49,14184,29/06/2018,KPIN,PINNACLE ESSEX,
Property Services,1330,Building Cleaning,Daily Cleaning,04,2019,2026.06,14184,29/06/2018,KPIN,PINNACLE ESSEX,
Property Services,1330,Building Cleaning,Daily Cleaning,04,2019,110.93,14184,29/06/2018,KPIN,PINNACLE ESSEX,
Technical Services,2030,Operational Equipment Support,Lifejacket Servicing/ Repairs ,04,2019,397.86,14185,04/07/2018,KPIN,SUFFOLK MARINE SAFETY LTD,
Technical Services,2030,Operational Equipment Support,Collection & Delivery,04,2019,19.00,14185,04/07/2018,KPIN,SUFFOLK MARINE SAFETY LTD,
Technical Services,2030,Operational Equipment Support,Cost of parts used for servici,04,2019,98.36,14185,04/07/2018,KPIN,SUFFOLK MARINE SAFETY LTD,
Human Resources,0960,Occupational Health,Occupational Health,04,2019,150.00,14187,29/06/2018,KPIN,COLCHESTER HOSPITAL UNIVERSITY NHS FOUNDATION TRUST,
Training,0702,External Training - L&D Panel,External Training - L&D Panel,04,2019,-2095.00,14188,03/07/2018,KPIN,3S FIRE LTD,
Property Services,1050,Building Maintenance,Investigative work to test wel,04,2019,1442.00,14190,03/07/2018,KPIN,ECP GROUP,
Human Resources,0960,Occupational Health,Occupational Health,04,2019,180.00,14191,30/06/2018,KPIN,THE PHYSIOTHERAPY PRACTICE LTD,
Human Resources,0960,Occupational Health,Occupational Health,04,2019,312.00,14191,30/06/2018,KPIN,THE PHYSIOTHERAPY PRACTICE LTD,
ICT,4005,IT Consumables,"CA0575610	ECA1HAK2R2X	""PANASON",04,2019,1.30,14193,03/07/2018,KPIN,CPC,
ICT,4005,IT Consumables,"	CB15177	1	7-2-12A	PRO POWER  ",04,2019,58.46,14193,03/07/2018,KPIN,CPC,
ICT,4005,IT Consumables,"	CA07525	10	50ML1MEFC4X5	""RUBY",04,2019,1.50,14193,03/07/2018,KPIN,CPC,
ICT,4005,IT Consumables,"	CA07265	10	ECA1CM100	""PANASON",04,2019,0.70,14193,03/07/2018,KPIN,CPC,
ICT,4005,IT Consumables,"CA05728	10	ECA1CAM101X	""PANASO",04,2019,0.80,14193,03/07/2018,KPIN,CPC,
ICT,4005,IT Consumables,"CA0832910	EEUEB1H3R3S	""PANASON",04,2019,1.40,14193,03/07/2018,KPIN,CPC,
ICT,4005,IT Consumables,"CA07432	10	EEUFM1E221	""PANASON",04,2019,1.90,14193,03/07/2018,KPIN,CPC,
Not Analysed,B114,Fixed Assets Under Construction ITC Equipment,Remote Technical Consultancy a,04,2019,500.00,14194,28/06/2018,KPIN,CIVICA UK LTD,
Operations,4009,Operational Support Costs,Extrication Challenge entry fe,04,2019,250.00,14195,02/07/2018,KPIN,WEST YORKSHIRE FIRE & RESCUE SERVICE,
Property Services,1499,Furniture and Fittings,Collection of furniture for st,04,2019,85.00,14196,22/06/2018,KPIN,PRIMARY OFFICE FURNITURE SERVICES LTD,
ICT,2510,IT Communications,28/07/2018 - 27/10/2018,04,2019,4162.50,14198,04/07/2018,KPIN,PAGEONE COMMUNICATIONS LTD,
ICT,2510,IT Communications,Primary Group Call 28/07/2018 ,04,2019,18.00,14198,04/07/2018,KPIN,PAGEONE COMMUNICATIONS LTD,
Property Services,1330,Building Cleaning,CREDIT KPIN 12019,04,2019,-42.62,14199,01/07/2018,KPIN,PHS GROUP,
Community Safety,4019,Community Safety,Parish Safety Volunteer Consul,04,2019,171.25,14246,02/07/2018,KPIN,STAFF,
Community Safety,4019,Community Safety,Parish Safety Volunteer Mileag,04,2019,40.95,14246,02/07/2018,KPIN,STAFF,
Community Safety,4019,Community Safety,Parish Safety Volunteer Consul,04,2019,56.25,14246,02/07/2018,KPIN,STAFF,
Not Analysed,B118,Asset Protection,1718/417 Shower refurbishment.,04,2019,14896.82,14247,04/07/2018,KPIN,BEARDWELL CONSTRUCTION LTD,
Technical Services,2030,Operational Equipment Support,1260002 3M 7500 Series half ma,04,2019,20.79,14248,04/07/2018,KPIN,ARCO LTD,
Technical Services,2030,Operational Equipment Support,Next day delivery.,04,2019,4.95,14248,04/07/2018,KPIN,ARCO LTD,
Technical Services,2030,Operational Equipment Support,113400 P3 filter for M3 mask,04,2019,7.03,14248,04/07/2018,KPIN,ARCO LTD,
Technical Services,2030,Operational Equipment Support,1J4300 JSP Force 8 half mask w,04,2019,13.03,14248,04/07/2018,KPIN,ARCO LTD,
Property Services,0180,Casual and Temporary Staff,Casual and Temporary Staff,04,2019,947.25,14249,04/07/2018,KPIN,HAYS CONSTRUCTION & PROPERTY,
Property Services,2903,Consultancy Fees,Condition Survey for Workshops,04,2019,3109.80,14250,29/06/2018,KPIN,INGLETON WOOD LLP,
Property Services,2903,Consultancy Fees,1718/416 Colchester Fire Stati,04,2019,336.53,14251,30/06/2018,KPIN,INGLETON WOOD LLP,
Stores,B205,Stocks & WIP (Purchasing & Supply Stores),"Mask, Oxygen Therapy  Child ",04,2019,19.00,14252,04/07/2018,KPIN,S P SERVICES (UK) LTD,
Stores,B205,Stocks & WIP (Purchasing & Supply Stores),Glove Disposable Purple Nitril,04,2019,32.25,14252,04/07/2018,KPIN,S P SERVICES (UK) LTD,
Stores,B205,Stocks & WIP (Purchasing & Supply Stores),Glove Dispoable Purple Nitrile,04,2019,32.25,14252,04/07/2018,KPIN,S P SERVICES (UK) LTD,
Stores,B205,Stocks & WIP (Purchasing & Supply Stores),Glove Disposable Purple Nitril,04,2019,129.00,14252,04/07/2018,KPIN,S P SERVICES (UK) LTD,
Stores,B205,Stocks & WIP (Purchasing & Supply Stores),Saline Solution 500Ml ,04,2019,19.95,14252,04/07/2018,KPIN,S P SERVICES (UK) LTD,
Stores,B205,Stocks & WIP (Purchasing & Supply Stores),Saline Solution Eye 20Ml ,04,2019,4.95,14252,04/07/2018,KPIN,S P SERVICES (UK) LTD,
Stores,B205,Stocks & WIP (Purchasing & Supply Stores),Mask - Oxygene Therapy  Adult ,04,2019,19.00,14252,04/07/2018,KPIN,S P SERVICES (UK) LTD,
Property Services,0180,Casual and Temporary Staff,Casual and Temporary Staff,04,2019,1224.40,14253,04/07/2018,KPIN,HAYS CONSTRUCTION & PROPERTY,
Property Services,0180,Casual and Temporary Staff,Casual and Temporary Staff,04,2019,1147.90,14254,04/07/2018,KPIN,HAYS CONSTRUCTION & PROPERTY,
Property Services,0180,Casual and Temporary Staff,Casual and Temporary Staff,04,2019,58.28,14255,04/07/2018,KPIN,HAYS CONSTRUCTION & PROPERTY,
Property Services,0180,Casual and Temporary Staff,Casual and Temporary Staff,04,2019,221.71,14255,04/07/2018,KPIN,HAYS CONSTRUCTION & PROPERTY,
Property Services,0180,Casual and Temporary Staff,Casual and Temporary Staff,04,2019,1255.01,14255,04/07/2018,KPIN,HAYS CONSTRUCTION & PROPERTY,
Property Services,2903,Consultancy Fees,1718/417 South Woodham Ferrers,04,2019,895.45,14257,29/06/2018,KPIN,INGLETON WOOD LLP,
Property Services,2903,Consultancy Fees,1718/415 - Station Refurbishem,04,2019,2851.20,14258,29/06/2018,KPIN,INGLETON WOOD LLP,
Property Services,2903,Consultancy Fees,1819/430 Window and cladding r,04,2019,7128.00,14259,29/06/2018,KPIN,INGLETON WOOD LLP,
Property Services,1499,Furniture and Fittings,15no crates Del/Hire/Coll,04,2019,137.60,14260,30/06/2018,KPIN,MASTERCRATE LTD,
Property Services,1060,Grounds Maintenance,Interior Plant Hire - JULY,04,2019,252.80,14261,05/07/2018,KPIN,LESLEYS BLOOMERS LTD,
Human Resources,0960,Occupational Health,Occupational Health,04,2019,52.00,14262,30/06/2018,KPIN,SI MEDICAL LTD,
Human Resources,0960,Occupational Health,Occupational Health,04,2019,234.00,14262,30/06/2018,KPIN,SI MEDICAL LTD,
Human Resources,0960,Occupational Health,Occupational Health,04,2019,102.00,14262,30/06/2018,KPIN,SI MEDICAL LTD,
Stores,B205,Stocks & WIP (Purchasing & Supply Stores),"Water Still, Bottled 0.5L (Pal",04,2019,720.00,14263,02/07/2018,KPIN,WATER DIRECT LIMITED,
Stores,B205,Stocks & WIP (Purchasing & Supply Stores),"Water Still, Bottled 0.5L (Pal",04,2019,1080.00,14264,30/06/2018,KPIN,WATER DIRECT LIMITED,
Technical Services,2031,Managed Personal Protective Equipment,Activity No. 94382 Replacement,04,2019,271.86,14265,02/07/2018,KPIN,BALLYCLARE LIMITED,
ITTP Development,4005,IT Consumables,Canvey,04,2019,672.00,14266,29/06/2018,KPIN,C S ELECTRICAL ESSEX LTD,
ITTP Development,4005,IT Consumables,Brentwood,04,2019,930.00,14266,29/06/2018,KPIN,C S ELECTRICAL ESSEX LTD,
Property Services,1040,Planned Works,Oxygen reduction system    Ser,04,2019,623.70,14267,29/06/2018,KPIN,WAGNER UK LIMITED,
Catering,0180,Casual and Temporary Staff,Casual and Temporary Staff,04,2019,418.60,14268,05/07/2018,KPIN,PURE RECRUITMENT SOLUTIONS LTD,
Stores,B205,Stocks & WIP (Purchasing & Supply Stores),Freight Misc,04,2019,7.50,14269,05/07/2018,KPIN,NORTHERN DIVER INTERNATIONAL LTD,
Stores,B205,Stocks & WIP (Purchasing & Supply Stores),"Rescue knife, Squeeze - Lock K",04,2019,132.00,14269,05/07/2018,KPIN,NORTHERN DIVER INTERNATIONAL LTD,
Stores,B205,Stocks & WIP (Purchasing & Supply Stores),Freight Misc,04,2019,5.13,14270,05/07/2018,KPIN,CLF DISTRIBUTION LTD,
Stores,B205,Stocks & WIP (Purchasing & Supply Stores),"Isotonic Drink, Berry Flavour ",04,2019,84.48,14270,05/07/2018,KPIN,CLF DISTRIBUTION LTD,
Stores,B205,Stocks & WIP (Purchasing & Supply Stores),Knife Table Plain Pk12,04,2019,6.86,14271,05/07/2018,KPIN,NISBETS PLC,
Catering,2017,Canteen Equipment,DL921 - Jantex Centrefeed Blue,04,2019,5.99,14271,05/07/2018,KPIN,NISBETS PLC,
Stores,B205,Stocks & WIP (Purchasing & Supply Stores),Fork Dinner Plain Pk 12 ,04,2019,4.00,14271,05/07/2018,KPIN,NISBETS PLC,
Stores,B205,Stocks & WIP (Purchasing & Supply Stores),CB466 Mug White 10oz Pk 36,04,2019,27.60,14271,05/07/2018,KPIN,NISBETS PLC,
Stores,B205,Stocks & WIP (Purchasing & Supply Stores),Jug graduated mixing poly 2 li,04,2019,6.24,14271,05/07/2018,KPIN,NISBETS PLC,
Stores,B205,Stocks & WIP (Purchasing & Supply Stores),Spoon Tea Plain Pk12,04,2019,3.12,14271,05/07/2018,KPIN,NISBETS PLC,
Stores,B205,Stocks & WIP (Purchasing & Supply Stores),Spoon Desert Plain Pk12,04,2019,3.36,14271,05/07/2018,KPIN,NISBETS PLC,
Property Services,1050,Building Maintenance,To change union lock on portac,04,2019,159.95,14272,06/07/2018,KPIN,BRENTWOOD LOCK & SAFE CO LTD,
Training,0710,Organisational Development,Organisational Development,04,2019,80.00,14273,30/06/2018,KPIN,ELIESHA TRAINING LIMITED,
Training,0710,Organisational Development,Organisational Development,04,2019,2010.00,14274,30/06/2018,KPIN,ELIESHA TRAINING LIMITED,
Catering,4130,Hospitality & Entertaining,KP MESSCLUB,04,2019,103.85,14275,02/07/2018,KPIN,DONALD FREESTON,
Catering,4130,Hospitality & Entertaining,KP MESSCLUB,04,2019,26.11,14276,29/06/2018,KPIN,DONALD FREESTON,
Catering,4130,Hospitality & Entertaining,KP MESSCLUB,04,2019,46.56,14277,03/07/2018,KPIN,DONALD FREESTON,
Catering,4130,Hospitality & Entertaining,KP MESSCLUB,04,2019,38.97,14278,04/07/2018,KPIN,DONALD FREESTON,
Catering,4130,Hospitality & Entertaining,KP MESSCLUB,04,2019,108.27,14279,29/06/2018,KPIN,H&J FOODS LTD T/A OLYMPIC FOODS,
Catering,4130,Hospitality & Entertaining,KP MESSCLUB,04,2019,146.75,14280,04/07/2018,KPIN,H&J FOODS LTD T/A OLYMPIC FOODS,
Catering,4130,Hospitality & Entertaining,KP-MESSCLUB,04,2019,61.60,14281,29/06/2018,KPIN,THE LITTLE FISH COMPANY (KELVEDON) LTD,
Property Services,1050,Building Maintenance,Handle fallen off. POD 5,04,2019,148.73,14288,06/07/2018,KPIN,NORMAN DAVID MAINTENANCE,
Property Services,1499,Furniture and Fittings,remove faded speed signs and I,04,2019,76.57,14289,06/07/2018,KPIN,NORMAN DAVID MAINTENANCE,
Property Services,1050,Building Maintenance,Repair steel support to stairc,04,2019,143.09,14290,06/07/2018,KPIN,NORMAN DAVID MAINTENANCE,
Property Services,1050,Building Maintenance,To replace kickboard to rear d,04,2019,131.10,14291,06/07/2018,KPIN,NORMAN DAVID MAINTENANCE,
Property Services,1499,Furniture and Fittings,Fit ash bin and smoking sign,04,2019,29.41,14292,05/07/2018,KPIN,NORMAN DAVID MAINTENANCE,
Property Services,1499,Furniture and Fittings,Install pin board,04,2019,38.00,14293,05/07/2018,KPIN,NORMAN DAVID MAINTENANCE,
Property Services,1499,Furniture and Fittings,Supply and fit locks to cupboa,04,2019,65.80,14294,05/07/2018,KPIN,NORMAN DAVID MAINTENANCE,
Property Services,1499,Furniture and Fittings,Fit pin board and key safe,04,2019,29.07,14295,05/07/2018,KPIN,NORMAN DAVID MAINTENANCE,
Property Services,1499,Furniture and Fittings,Vertical blinds in R/H Gym Ver,04,2019,38.00,14296,05/07/2018,KPIN,NORMAN DAVID MAINTENANCE,
Property Services,1050,Building Maintenance,To repair bollard protecting D,04,2019,124.32,14297,05/07/2018,KPIN,NORMAN DAVID MAINTENANCE,
Stores,B205,Stocks & WIP (Purchasing & Supply Stores),CE401YC Cyan Toner HP507A - 60,04,2019,334.28,14298,04/07/2018,KPIN,XMA LIMITED,
Stores,B205,Stocks & WIP (Purchasing & Supply Stores),CE400X Toner Black HP507X - 11,04,2019,618.65,14299,04/07/2018,KPIN,XMA LIMITED,
Stores,B205,Stocks & WIP (Purchasing & Supply Stores),CE403YC Magenta Toner HP507A -,04,2019,501.42,14299,04/07/2018,KPIN,XMA LIMITED,
Stores,B205,Stocks & WIP (Purchasing & Supply Stores),CE402YC Yellow Toner HP507A - ,04,2019,334.28,14299,04/07/2018,KPIN,XMA LIMITED,
Stores,B205,Stocks & WIP (Purchasing & Supply Stores),"Toner cartridge, Magenta CE253",04,2019,132.63,14299,04/07/2018,KPIN,XMA LIMITED,
Not Analysed,0180,Casual and Temporary Staff,Casual and Temporary Staff,04,2019,300.48,14300,01/07/2018,KPIN,PURE RESOURCING SOLUTIONS LTD,
Property Services,1330,Building Cleaning,Waste collection - June,04,2019,52.64,14301,30/06/2018,KPIN,GREEN RECYCLING LIMITED,
Property Services,1040,Planned Works,Sewage Pump Servicing,04,2019,255.00,14302,27/06/2018,KPIN,PINNACLE ESSEX,
Property Services,1040,Planned Works,Sewage Pump Servicing,04,2019,306.00,14302,27/06/2018,KPIN,PINNACLE ESSEX,
Property Services,1040,Planned Works,Sewage Pump Servicing,04,2019,306.00,14302,27/06/2018,KPIN,PINNACLE ESSEX,
Property Services,1040,Planned Works,Sewage Pump Servicing,04,2019,306.00,14302,27/06/2018,KPIN,PINNACLE ESSEX,
Property Services,1040,Planned Works,Sewage Pump Servicing,04,2019,357.00,14302,27/06/2018,KPIN,PINNACLE ESSEX,
Property Services,1330,Building Cleaning,Waste collection - June,04,2019,54.03,14304,30/06/2018,KPIN,GREEN RECYCLING LIMITED,
Property Services,1330,Building Cleaning,Waste collection - June,04,2019,81.62,14305,30/06/2018,KPIN,GREEN RECYCLING LIMITED,
Property Services,1330,Building Cleaning,Waste collection - June,04,2019,190.88,14306,30/06/2018,KPIN,GREEN RECYCLING LIMITED,
Property Services,1330,Building Cleaning,Waste collection - June,04,2019,151.76,14307,30/06/2018,KPIN,GREEN RECYCLING LIMITED,
Property Services,1330,Building Cleaning,Waste collection - June,04,2019,78.32,14308,30/06/2018,KPIN,GREEN RECYCLING LIMITED,
Property Services,1330,Building Cleaning,Waste collection - June,04,2019,46.23,14309,30/06/2018,KPIN,GREEN RECYCLING LIMITED,
Property Services,1330,Building Cleaning,Waste collection - June,04,2019,46.23,14310,30/06/2018,KPIN,GREEN RECYCLING LIMITED,
Property Services,1330,Building Cleaning,Waste collection - June,04,2019,249.68,14311,30/06/2018,KPIN,GREEN RECYCLING LIMITED,
Property Services,1330,Building Cleaning,Waste collection - June,04,2019,48.83,14312,30/06/2018,KPIN,GREEN RECYCLING LIMITED,
Property Services,1330,Building Cleaning,Waste collection - June,04,2019,48.83,14313,30/06/2018,KPIN,GREEN RECYCLING LIMITED,
Property Services,1330,Building Cleaning,Waste collection - June,04,2019,46.28,14314,30/06/2018,KPIN,GREEN RECYCLING LIMITED,
Property Services,1330,Building Cleaning,Waste collection - June,04,2019,75.12,14315,30/06/2018,KPIN,GREEN RECYCLING LIMITED,
Property Services,1330,Building Cleaning,Waste collection - June,04,2019,53.84,14316,30/06/2018,KPIN,GREEN RECYCLING LIMITED,
Property Services,1330,Building Cleaning,Waste collection - June,04,2019,112.80,14317,30/06/2018,KPIN,GREEN RECYCLING LIMITED,
Property Services,1330,Building Cleaning,Waste collection - June,04,2019,413.36,14318,30/06/2018,KPIN,GREEN RECYCLING LIMITED,
Property Services,1330,Building Cleaning,Waste collection - June,04,2019,68.08,14319,30/06/2018,KPIN,GREEN RECYCLING LIMITED,
Property Services,1330,Building Cleaning,Waste collection - June,04,2019,157.68,14320,30/06/2018,KPIN,GREEN RECYCLING LIMITED,
Property Services,1330,Building Cleaning,Waste collection - June,04,2019,44.24,14321,30/06/2018,KPIN,GREEN RECYCLING LIMITED,
Property Services,1330,Building Cleaning,Waste collection - June,04,2019,46.28,14322,30/06/2018,KPIN,GREEN RECYCLING LIMITED,
Property Services,1330,Building Cleaning,Waste collection - June,04,2019,42.12,14323,30/06/2018,KPIN,GREEN RECYCLING LIMITED,
Property Services,1330,Building Cleaning,Waste collection - June,04,2019,37.96,14324,30/06/2018,KPIN,GREEN RECYCLING LIMITED,
Property Services,1330,Building Cleaning,Waste collection - June,04,2019,75.20,14325,30/06/2018,KPIN,GREEN RECYCLING LIMITED,
Property Services,1330,Building Cleaning,Waste collection - June,04,2019,151.88,14326,30/06/2018,KPIN,GREEN RECYCLING LIMITED,
Property Services,1330,Building Cleaning,Waste collection - June,04,2019,145.64,14327,30/06/2018,KPIN,GREEN RECYCLING LIMITED,
Property Services,1330,Building Cleaning,Waste collection - June,04,2019,53.84,14328,30/06/2018,KPIN,GREEN RECYCLING LIMITED,
Property Services,1330,Building Cleaning,Waste collection - June,04,2019,53.84,14329,30/06/2018,KPIN,GREEN RECYCLING LIMITED,
Property Services,1330,Building Cleaning,Waste collection - June,04,2019,52.64,14330,30/06/2018,KPIN,GREEN RECYCLING LIMITED,
Property Services,1330,Building Cleaning,Waste collection - June,04,2019,58.08,14331,30/06/2018,KPIN,GREEN RECYCLING LIMITED,
Property Services,1330,Building Cleaning,Waste collection - June,04,2019,37.96,14332,30/06/2018,KPIN,GREEN RECYCLING LIMITED,
Property Services,1330,Building Cleaning,Waste collection - June,04,2019,102.88,14333,30/06/2018,KPIN,GREEN RECYCLING LIMITED,
Property Services,1330,Building Cleaning,Waste collection - June,04,2019,39.96,14334,30/06/2018,KPIN,GREEN RECYCLING LIMITED,
Property Services,1330,Building Cleaning,Waste collection - June,04,2019,51.80,14335,30/06/2018,KPIN,GREEN RECYCLING LIMITED,
Property Services,1330,Building Cleaning,Waste collection - June,04,2019,98.64,14336,30/06/2018,KPIN,GREEN RECYCLING LIMITED,
Property Services,1330,Building Cleaning,Waste collection - June,04,2019,37.96,14337,30/06/2018,KPIN,GREEN RECYCLING LIMITED,
Property Services,1330,Building Cleaning,Waste collection - June,04,2019,42.12,14338,30/06/2018,KPIN,GREEN RECYCLING LIMITED,
Property Services,1330,Building Cleaning,Waste collection - June,04,2019,58.08,14339,30/06/2018,KPIN,GREEN RECYCLING LIMITED,
Property Services,1330,Building Cleaning,Waste collection - June,04,2019,42.36,14340,30/06/2018,KPIN,GREEN RECYCLING LIMITED,
Property Services,1330,Building Cleaning,Waste collection - June,04,2019,52.64,14341,30/06/2018,KPIN,GREEN RECYCLING LIMITED,
Property Services,1330,Building Cleaning,Waste collection - June,04,2019,111.28,14342,30/06/2018,KPIN,GREEN RECYCLING LIMITED,
Property Services,1330,Building Cleaning,Waste collection - June,04,2019,98.64,14343,30/06/2018,KPIN,GREEN RECYCLING LIMITED,
Property Services,1330,Building Cleaning,Waste collection - June,04,2019,53.84,14344,30/06/2018,KPIN,GREEN RECYCLING LIMITED,
Property Services,1330,Building Cleaning,Waste collection - June,04,2019,102.88,14345,30/06/2018,KPIN,GREEN RECYCLING LIMITED,
Property Services,1330,Building Cleaning,Waste collection - June,04,2019,51.80,14346,30/06/2018,KPIN,GREEN RECYCLING LIMITED,
Property Services,1330,Building Cleaning,Waste collection - June,04,2019,860.24,14347,30/06/2018,KPIN,GREEN RECYCLING LIMITED,
Property Services,1330,Building Cleaning,Waste collection - June,04,2019,24.56,14349,30/06/2018,KPIN,GREEN RECYCLING LIMITED,
Property Services,1330,Building Cleaning,Waste collection - June,04,2019,68.83,14350,30/06/2018,KPIN,GREEN RECYCLING LIMITED,
Human Resources,4016,Recruitment,Recruitment,04,2019,650.00,14351,04/07/2018,KPIN,TD SOFTWARE LTD,
Workplace Safety,2903,Consultancy Fees,Consultancy Services June 2018,04,2019,1800.00,14352,06/07/2018,KPIN,INDEPENDENT FIRE RISK ASSESSMENTS LTD,
Stores,B205,Stocks & WIP (Purchasing & Supply Stores),Freight Misc,04,2019,8.23,14353,05/07/2018,KPIN,BLIZZARD PROTECTION SYTEMS LTD,
Stores,B205,Stocks & WIP (Purchasing & Supply Stores),"Blizzard Survival blanket, Ora",04,2019,212.50,14353,05/07/2018,KPIN,BLIZZARD PROTECTION SYTEMS LTD,
Workshops Management,3201,Petrol and Diesel,Petrol and Diesel,04,2019,83.33,14354,30/06/2018,KPIN,AMP ENGINEERING,
Human Resources,0960,Occupational Health,Occupational Health,04,2019,8484.00,14355,30/06/2018,KPIN,PEOPLE ASSET MANAGEMENT LIMITED,
Property Services,1050,Building Maintenance,To upgrade vehicle gate all as,04,2019,4815.00,14356,06/07/2018,KPIN,HS DOOR SYSTEMS LTD,
Property Services,1050,Building Maintenance,Supply and install timer and o,04,2019,460.00,14357,06/07/2018,KPIN,HS DOOR SYSTEMS LTD,
Property Services,1050,Building Maintenance,Supply and fit new supply cabl,04,2019,930.00,14357,06/07/2018,KPIN,HS DOOR SYSTEMS LTD,
Property Services,1040,Planned Works,CREDIT KPIN 13308,04,2019,-100.00,14358,06/07/2018,KPIN,L & D SERVICES LTD,
Property Services,1050,Building Maintenance,To remedy defective door no 3 ,04,2019,268.40,14359,06/07/2018,KPIN,HS DOOR SYSTEMS LTD,
Property Services,1050,Building Maintenance,INVESTIGATE MOUSE DROPPINGS,04,2019,25.00,14360,05/07/2018,KPIN,MID-ESSEX PEST CONTROL,
Property Services,1050,Building Maintenance,Rear bay door RP bay.  No powe,04,2019,268.40,14361,06/07/2018,KPIN,HS DOOR SYSTEMS LTD,
Project 2020,0180,Casual and Temporary Staff,Casual and Temporary Staff,04,2019,331.90,14362,06/07/2018,KPIN,REED SPECIALIST RECRUITMENT LIMITED,
Human Resources,4002,Printing - Brochures/Flysheets/Service info,Certificates,04,2019,36.00,14363,29/06/2018,KPIN,BENSONS PRINTING COMPANY LTD,
Project 2020,4002,Printing - Brochures/Flysheets/Service info,A6 Postcards for Dovercourt (1,04,2019,288.00,14364,06/07/2018,KPIN,BENSONS PRINTING COMPANY LTD,
Human Resources,4016,Recruitment,Recruitment,04,2019,20.00,14365,03/07/2018,KPIN,SARAHS CATERING LIMITED,
Human Resources,4016,Recruitment,Recruitment,04,2019,155.00,14365,03/07/2018,KPIN,SARAHS CATERING LIMITED,
Project 2020,4002,Printing - Brochures/Flysheets/Service info,Distribution of leaflets - Dov,04,2019,850.00,14366,06/07/2018,KPIN,LEAFLETS DIRECT (SUFFOLK) LIMITED,
Workplace Safety,4037,Fire Prevention Support,Retainer agreement July to Sep,04,2019,3000.00,14367,09/07/2018,KPIN,ALISON LAMBERT,
Workplace Safety,4037,Fire Prevention Support,Retainer agreement April to Ju,04,2019,3000.00,14367,09/07/2018,KPIN,ALISON LAMBERT,
Not Analysed,B118,Asset Protection,1718/413 - Window and door rep,04,2019,163250.97,14368,04/07/2018,KPIN,CADMAN CONSTRUCTION LTD,
Stores,B205,Stocks & WIP (Purchasing & Supply Stores),6663 Scott Performance Hand To,04,2019,48.16,14369,06/07/2018,KPIN,BUNZL CLEANING & HYGIENE SUPPLIES,
Stores,B205,Stocks & WIP (Purchasing & Supply Stores),Cleanline Food Safe Sanitiser ,04,2019,14.40,14369,06/07/2018,KPIN,BUNZL CLEANING & HYGIENE SUPPLIES,
Stores,B205,Stocks & WIP (Purchasing & Supply Stores),8388 Wypall X80 Cloth 1/4 Fold,04,2019,116.40,14369,06/07/2018,KPIN,BUNZL CLEANING & HYGIENE SUPPLIES,
Stores,B205,Stocks & WIP (Purchasing & Supply Stores),Cleanline Pine Disinfectant QA,04,2019,2.74,14369,06/07/2018,KPIN,BUNZL CLEANING & HYGIENE SUPPLIES,
Stores,B205,Stocks & WIP (Purchasing & Supply Stores),6945 Aquarius Folded Hand Towe,04,2019,0.03,14369,06/07/2018,KPIN,BUNZL CLEANING & HYGIENE SUPPLIES,
Stores,B205,Stocks & WIP (Purchasing & Supply Stores),8577 Scott Folded Toilet Tissu,04,2019,46.86,14369,06/07/2018,KPIN,BUNZL CLEANING & HYGIENE SUPPLIES,
Stores,B205,Stocks & WIP (Purchasing & Supply Stores),Cleanline Glass & Stainless St,04,2019,5.70,14369,06/07/2018,KPIN,BUNZL CLEANING & HYGIENE SUPPLIES,
Training,0715,In House Operational Training,In House Operational Training,04,2019,80.00,14370,06/07/2018,KPIN,BENFLEET SCRAP CO. LTD,
Training,0715,In House Operational Training,In House Operational Training,04,2019,960.00,14370,06/07/2018,KPIN,BENFLEET SCRAP CO. LTD,
Community Safety,4019,Community Safety,Official Highway Code in print,04,2019,187.50,14371,03/07/2018,KPIN,TSO - THE STATIONERY OFFICE LTD,
Stores,B205,Stocks & WIP (Purchasing & Supply Stores),Mattress waterproof (Crosby) 2,04,2019,437.50,14372,05/07/2018,KPIN,BEAUTY SLEEP LIMITED,
Stores,B205,Stocks & WIP (Purchasing & Supply Stores),CANCELLED BY KPIN14642,04,2019,45.00,14372,05/07/2018,KPIN,BEAUTY SLEEP LIMITED,
Stores,B205,Stocks & WIP (Purchasing & Supply Stores),Freight Misc,04,2019,80.00,14372,05/07/2018,KPIN,BEAUTY SLEEP LIMITED,
Purchasing & Supply,2024,Cleaning Equipment,6663 Scott Performance Hand To,04,2019,337.12,14373,06/07/2018,KPIN,BUNZL CLEANING & HYGIENE SUPPLIES,
Purchasing & Supply,1310,Cleaning products,8538 Scott 320 Toilet Roll 2Pl,04,2019,51.55,14373,06/07/2018,KPIN,BUNZL CLEANING & HYGIENE SUPPLIES,
Purchasing & Supply,1310,Cleaning products,Cleanline Rinse Aid 5L (EA) 80,04,2019,26.04,14374,06/07/2018,KPIN,BUNZL CLEANING & HYGIENE SUPPLIES,
Purchasing & Supply,2024,Cleaning Equipment,Cleanline Eco Hard Surface Cle,04,2019,24.44,14374,06/07/2018,KPIN,BUNZL CLEANING & HYGIENE SUPPLIES,
Purchasing & Supply,2024,Cleaning Equipment,Shield 3 Way Toilet Cleaner 1L,04,2019,13.62,14374,06/07/2018,KPIN,BUNZL CLEANING & HYGIENE SUPPLIES,
Purchasing & Supply,1310,Cleaning products,Bryta Dishwasher Powder 5KG (E,04,2019,23.68,14374,06/07/2018,KPIN,BUNZL CLEANING & HYGIENE SUPPLIES,
Purchasing & Supply,1310,Cleaning products,General Purpose Detergent 5L (,04,2019,15.40,14374,06/07/2018,KPIN,BUNZL CLEANING & HYGIENE SUPPLIES,
Purchasing & Supply,2024,Cleaning Equipment,6663 Scott Performance Hand To,04,2019,48.16,14374,06/07/2018,KPIN,BUNZL CLEANING & HYGIENE SUPPLIES,
Purchasing & Supply,2024,Cleaning Equipment,Cleanline Food Safe Sanitiser ,04,2019,7.20,14375,06/07/2018,KPIN,BUNZL CLEANING & HYGIENE SUPPLIES,
Purchasing & Supply,2024,Cleaning Equipment,Cleanline Heavy Duty Degreaser,04,2019,6.80,14375,06/07/2018,KPIN,BUNZL CLEANING & HYGIENE SUPPLIES,
Purchasing & Supply,2024,Cleaning Equipment,Flash All Purpose Lemon 5L (EA,04,2019,11.62,14375,06/07/2018,KPIN,BUNZL CLEANING & HYGIENE SUPPLIES,
Purchasing & Supply,1310,Cleaning products,Cleanline Rinse Aid 5L (EA) 80,04,2019,26.04,14375,06/07/2018,KPIN,BUNZL CLEANING & HYGIENE SUPPLIES,
Police Collaboration,6899,Miscellaneous Expenses,2 Vehicles to Basildon Sportin,04,2019,50.00,14376,06/07/2018,KPIN,BENFLEET SCRAP CO. LTD,
Property Services,1050,Building Maintenance,To remedy defective intruder a,04,2019,155.04,14377,09/07/2018,KPIN,BLAKE CONTRACTORS LTD,
Not Analysed,B113,Fixed Assets Under Construction Vehicles,Cycle Scheme 2018-19,04,2019,833.33,14378,09/07/2018,KPIN,CYCLESCHEME LTD,
Property Services,1050,Building Maintenance,To clear drain in front of sto,04,2019,88.00,14379,09/07/2018,KPIN,ARVON DRAIN CLEARING,
Property Services,1050,Building Maintenance,Ladies WC blocked (ground floo,04,2019,88.00,14379,09/07/2018,KPIN,ARVON DRAIN CLEARING,
Property Services,1050,Building Maintenance,Shower Blocked,04,2019,44.00,14379,09/07/2018,KPIN,ARVON DRAIN CLEARING,
Property Services,1050,Building Maintenance,Blocked WC - sign on door (fir,04,2019,88.00,14379,09/07/2018,KPIN,ARVON DRAIN CLEARING,
Property Services,1050,Building Maintenance,Sink to cleaning room blocked ,04,2019,88.00,14379,09/07/2018,KPIN,ARVON DRAIN CLEARING,
Property Services,1050,Building Maintenance,Female WC blocked,04,2019,44.00,14379,09/07/2018,KPIN,ARVON DRAIN CLEARING,
Property Services,1050,Building Maintenance,Renew bump strip to bottom of ,04,2019,198.55,14380,09/07/2018,KPIN,HS DOOR SYSTEMS LTD,
Property Services,1050,Building Maintenance,Bay door no 3 - Traffic lights,04,2019,198.55,14381,09/07/2018,KPIN,HS DOOR SYSTEMS LTD,
Human Resources,0960,Occupational Health,Occupational Health,04,2019,56.00,14382,11/06/2018,KPIN,PHYSIOTHERAPY ESSEX LTD,
Human Resources,0960,Occupational Health,Occupational Health,04,2019,625.00,14382,11/06/2018,KPIN,PHYSIOTHERAPY ESSEX LTD,
Property Services,1050,Building Maintenance,Rear door no 1.  Grinding nois,04,2019,198.55,14383,09/07/2018,KPIN,HS DOOR SYSTEMS LTD,
ICT,0180,Casual and Temporary Staff,Casual and Temporary Staff,04,2019,600.00,14384,29/06/2018,KPIN,THE PEOPLE NETWORK,
Human Resources,0960,Occupational Health,Occupational Health,04,2019,210.00,14385,06/07/2018,KPIN,DR G JACKSON CONSULTING LTD,
Workshops Management,3201,Petrol and Diesel,Petrol and Diesel,04,2019,1650.42,14386,05/07/2018,KPIN,CERTAS ENERGY UK LTD,
Property Services,1321,Water Meters,DOVERCOURT FIXED CHG,04,2019,20.22,14389,06/07/2018,KPIN,AFFINITY FOR BUSINESS LTD,
Property Services,1321,Water Meters,05.07.18 DOVERCOURT,04,2019,201.63,14389,06/07/2018,KPIN,AFFINITY FOR BUSINESS LTD,
ICT,2510,IT Communications,CHARGES FOR ESSEX FIRE1 SIM,04,2019,83.97,14390,30/06/2018,KPIN,7E COMMUNICATIONS LTD,
ICT,2510,IT Communications,CHARGES FOR ESSEX FIRE2 SIM,04,2019,83.97,14390,30/06/2018,KPIN,7E COMMUNICATIONS LTD,
Catering,4130,Hospitality & Entertaining,KP MESSCLUB,04,2019,180.72,14391,02/07/2018,KPIN,DIRECT MEATS,
ICT,2510,IT Communications,MONTHLY CHARGES JUNE 2018,04,2019,839.92,14392,01/07/2018,KPIN,EE LTD,
Property Services,1322,Sewerage Charges,01/04/18-31/10/18,04,2019,75.58,14394,30/06/2018,KPIN,CASTLE WATER LIMITED,
Property Services,1322,Sewerage Charges,01/04/18-31/10/18,04,2019,111.48,14395,30/06/2018,KPIN,CASTLE WATER LIMITED,
Catering,4130,Hospitality & Entertaining,KP MESSCLUB,04,2019,127.20,14396,09/07/2018,KPIN,DIRECT MEATS,
Water Services,2087,Water Services,H9897,04,2019,503.00,14397,05/07/2018,KPIN,NORTHUMBRIAN WATER LTD (HYDRANTS),
Property Services,1322,Sewerage Charges,07/04/18-03/07/18,04,2019,61.20,14398,04/07/2018,KPIN,ANGLIAN WATER BUSINESS (NATIONAL) LTD,
Property Services,1321,Water Meters,07/04/18-03/07/18,04,2019,46.77,14398,04/07/2018,KPIN,ANGLIAN WATER BUSINESS (NATIONAL) LTD,
Training,0702,External Training - L&D Panel,External Training - L&D Panel,04,2019,500.00,14399,09/07/2018,KPIN,PCC WEST MIDLANDS POLICE,
Technical Services,2030,Operational Equipment Support,"Surcoat Label, LOGISTICS OFFIC",04,2019,33.00,14400,09/07/2018,KPIN,SPEEDINGS LTD,
Technical Services,2030,Operational Equipment Support,"Surcoat Label, MARSHALLING OFF",04,2019,33.00,14400,09/07/2018,KPIN,SPEEDINGS LTD,
Technical Services,2030,Operational Equipment Support,"Surcoat Label, SALVAGE OFFICER",04,2019,33.00,14400,09/07/2018,KPIN,SPEEDINGS LTD,
Technical Services,2030,Operational Equipment Support,Freight Misc,04,2019,14.00,14400,09/07/2018,KPIN,SPEEDINGS LTD,
Technical Services,2030,Operational Equipment Support,"Surcoat Label, WELFARE OFFICER",04,2019,33.00,14400,09/07/2018,KPIN,SPEEDINGS LTD,
Operations,4009,Operational Support Costs,"Monthly retainer fee, July 18",04,2019,4166.66,14401,09/07/2018,KPIN,EXTREME RESCUE LIMITED,
Property Services,1050,Building Maintenance,Intruder alarm activated,04,2019,132.83,14403,10/07/2018,KPIN,BLAKE CONTRACTORS LTD,
Stores,B205,Stocks & WIP (Purchasing & Supply Stores),Fleece Thor III dark navy cres,04,2019,93.54,14404,09/07/2018,KPIN,BALLANTYNE EDWARDS LTD,
Stores,B205,Stocks & WIP (Purchasing & Supply Stores),Polo Shirt Navy Crest Med,04,2019,59.52,14404,09/07/2018,KPIN,BALLANTYNE EDWARDS LTD,
Stores,B205,Stocks & WIP (Purchasing & Supply Stores),Fleece - Thor III dark navy cr,04,2019,46.77,14404,09/07/2018,KPIN,BALLANTYNE EDWARDS LTD,
Stores,B205,Stocks & WIP (Purchasing & Supply Stores),Sweatshirt Navy Crest Xl,04,2019,32.82,14404,09/07/2018,KPIN,BALLANTYNE EDWARDS LTD,
Stores,B205,Stocks & WIP (Purchasing & Supply Stores),Fleece - Thor III dark navy cr,04,2019,93.54,14404,09/07/2018,KPIN,BALLANTYNE EDWARDS LTD,
Human Resources,4016,Recruitment,Recruitment,04,2019,5022.10,14405,25/06/2018,KPIN,WADDINGTON BROWN LIMITED,
Stores,B205,Stocks & WIP (Purchasing & Supply Stores),XEROX A4 RECYCLED SUPREME PAPE,04,2019,670.00,14406,10/07/2018,KPIN,OFFICE IS LIMITED,
Property Services,1050,Building Maintenance,Floodlight not working.  Bolla,04,2019,463.00,14407,26/03/2018,KPIN,KIRKMAN & JOURDAIN LTD,
Police Collaboration,6899,Miscellaneous Expenses,Food for PFCC Games,04,2019,1739.00,14408,01/07/2018,KPIN,EVERYONE ACTIVE (SLM),
ICT,4005,IT Consumables,(Manufacturer Part: SFMT40) PR,04,2019,40.35,14409,15/06/2018,KPIN,CPC,
ICT,4005,IT Consumables,(Manufacturer Part: CT30) PRO ,04,2019,59.88,14409,15/06/2018,KPIN,CPC,
ICT,2040,IT Maintenance and Contracts,Kelvedon Core Servers,04,2019,630.45,14410,03/07/2018,KPIN,HEWLETT PACKARD LTD,
ICT,2040,IT Maintenance and Contracts,Kelvedon Hype Server,04,2019,1263.90,14410,03/07/2018,KPIN,HEWLETT PACKARD LTD,
ICT,2040,IT Maintenance and Contracts,Kelvedon SAN Nodes,04,2019,5463.84,14410,03/07/2018,KPIN,HEWLETT PACKARD LTD,
ICT,2040,IT Maintenance and Contracts,REMSDAQ Servers,04,2019,560.28,14410,03/07/2018,KPIN,HEWLETT PACKARD LTD,
ICT,2040,IT Maintenance and Contracts,DR SAN NODES,04,2019,4448.16,14410,03/07/2018,KPIN,HEWLETT PACKARD LTD,
ICT,2040,IT Maintenance and Contracts,DR VDI SERVERS,04,2019,443.64,14410,03/07/2018,KPIN,HEWLETT PACKARD LTD,
